Department,Entity,Transaction Date,Expense Type,Expense Area,Supplier,Transaction No.,Amount,
"Department for Business, Energy and Industrial Strategy",The Coal Authority,01/10/2021,Bank Charges,Finance,National Westminster Bank Plc,113826,65.61,
"Department for Business, Energy and Industrial Strategy",The Coal Authority,04/10/2021,Business Entertainment / Hospitality,Executive,S P Foods,113085,91.00,
"Department for Business, Energy and Industrial Strategy",The Coal Authority,04/10/2021,Business Entertainment / Hospitality,Executive,S P Foods,113085,5.20,
"Department for Business, Energy and Industrial Strategy",The Coal Authority,05/10/2021,Business Entertainment / Hospitality,Executive,S P Foods,113087,91.00,
"Department for Business, Energy and Industrial Strategy",The Coal Authority,05/10/2021,Business Entertainment / Hospitality,Executive,S P Foods,113087,5.20,
"Department for Business, Energy and Industrial Strategy",The Coal Authority,29/09/2021,Business Entertainment / Hospitality,PS&S - General Claims,Hopewell Mine Tours,114220,500.00,
"Department for Business, Energy and Industrial Strategy",The Coal Authority,11/10/2021,Business Meetings,PS&S - Management,Calder Conference Ltd,113473,"3,003.33",
"Department for Business, Energy and Industrial Strategy",The Coal Authority,22/09/2021,Business Meetings,PS&S - General Claims,West Denton Community Centre,114037,20.00,
"Department for Business, Energy and Industrial Strategy",The Coal Authority,08/10/2021,Business Meetings,PS&S - General Claims,West Denton Community Centre,114038,22.50,
"Department for Business, Energy and Industrial Strategy",The Coal Authority,22/10/2021,Business Meetings,Executive,House of Commons,114346,213.68,
"Department for Business, Energy and Industrial Strategy",The Coal Authority,22/10/2021,Business Meetings,Executive,House of Commons,114346,"1,123.47",
"Department for Business, Energy and Industrial Strategy",The Coal Authority,21/10/2021,Business Meetings,Executive,Imprint,114361,135.06,
"Department for Business, Energy and Industrial Strategy",The Coal Authority,07/09/2021,Business Meetings,PS&S - Industry Claims,Government Procurement Card,114630,5.24,
"Department for Business, Energy and Industrial Strategy",The Coal Authority,07/09/2021,Business Meetings,Tips Response,Government Procurement Card,114630,6.05,
"Department for Business, Energy and Industrial Strategy",The Coal Authority,08/09/2021,Business Meetings,PS&S - Industry Claims,Government Procurement Card,114630,9.00,
"Department for Business, Energy and Industrial Strategy",The Coal Authority,08/09/2021,Business Meetings,PS&S - Industry Claims,Government Procurement Card,114630,9.95,
"Department for Business, Energy and Industrial Strategy",The Coal Authority,08/09/2021,Business Meetings,PS&S - Industry Claims,Government Procurement Card,114630,5.05,
"Department for Business, Energy and Industrial Strategy",The Coal Authority,22/09/2021,Business Meetings,PS&S - Industry Claims,Government Procurement Card,114630,2.48,
"Department for Business, Energy and Industrial Strategy",The Coal Authority,23/09/2021,Business Meetings,Tips Response,Government Procurement Card,114630,23.00,
"Department for Business, Energy and Industrial Strategy",The Coal Authority,28/09/2021,Business Meetings,Engineering,Government Procurement Card,114630,154.25,
"Department for Business, Energy and Industrial Strategy",The Coal Authority,28/09/2021,Business Meetings,Engineering,Government Procurement Card,114630,109.05,
"Department for Business, Energy and Industrial Strategy",The Coal Authority,06/08/2021,Business Publications,Operations Programme Office,Staff Expenses Control,113393,85.00,
"Department for Business, Energy and Industrial Strategy",The Coal Authority,30/09/2021,Business Publications,PS&S - Industry Claims,Government Procurement Card,114630,45.00,
"Department for Business, Energy and Industrial Strategy",The Coal Authority,25/09/2021,Canteen Equipment,Facilities,Eden Springs UK LTD,113285,129.12,
"Department for Business, Energy and Industrial Strategy",The Coal Authority,27/08/2021,Canteen Equipment,Facilities,Selecta UK Limited,113779,80.00,
"Department for Business, Energy and Industrial Strategy",The Coal Authority,28/07/2021,Canteen Equipment,Facilities,Selecta UK Limited,114400,80.00,
"Department for Business, Energy and Industrial Strategy",The Coal Authority,30/09/2021,Central Training,"Health, Safety & Wellbeing",Mines Rescue Service Limited,112882,640.00,
"Department for Business, Energy and Industrial Strategy",The Coal Authority,08/09/2021,Central Training,ENV - Technical,Staff Expenses Control,112948,50.00,
"Department for Business, Energy and Industrial Strategy",The Coal Authority,09/06/2021,Central Training,People & Organisational Development,Oe Cam Llp,113078,321.44,
"Department for Business, Energy and Industrial Strategy",The Coal Authority,08/10/2021,Central Training,"Health, Safety & Wellbeing",Mines Rescue Service Limited,113404,456.00,
"Department for Business, Energy and Industrial Strategy",The Coal Authority,11/10/2021,Central Training,"Health, Safety & Wellbeing",Mines Rescue Service Limited,113405,396.00,
"Department for Business, Energy and Industrial Strategy",The Coal Authority,08/10/2021,Central Training,"Health, Safety & Wellbeing",Mines Rescue Service Limited,113406,456.00,
"Department for Business, Energy and Industrial Strategy",The Coal Authority,12/10/2021,Central Training,People & Organisational Development,Oe Cam Llp,113709,"1,716.08",
"Department for Business, Energy and Industrial Strategy",The Coal Authority,12/10/2021,Central Training,People & Organisational Development,Oe Cam Llp,113709,"1,910.73",
"Department for Business, Energy and Industrial Strategy",The Coal Authority,15/10/2021,Central Training,People & Organisational Development,Radius Business Ltd,113867,"6,500.00",
"Department for Business, Energy and Industrial Strategy",The Coal Authority,21/10/2021,Central Training,"Health, Safety & Wellbeing",Mines Rescue Service Limited,114286,321.00,
"Department for Business, Energy and Industrial Strategy",The Coal Authority,21/10/2021,Central Training,"Health, Safety & Wellbeing",Mines Rescue Service Limited,114287,244.00,
"Department for Business, Energy and Industrial Strategy",The Coal Authority,21/10/2021,Central Training,"Health, Safety & Wellbeing",Mines Rescue Service Limited,114288,244.00,
"Department for Business, Energy and Industrial Strategy",The Coal Authority,17/09/2021,Central Training,People & Organisational Development,9.9 World Class Performance,114485,"5,000.00",
"Department for Business, Energy and Industrial Strategy",The Coal Authority,30/09/2021,Cleaning Materials,Facilities,Regent Office Care Ltd T/A Regent Samsic,113780,215.29,
"Department for Business, Energy and Industrial Strategy",The Coal Authority,30/09/2021,Consultancy-Legacy Mine Workings,Community Response,barcourt communications limited,113254,"2,875.00",
"Department for Business, Energy and Industrial Strategy",The Coal Authority,30/09/2021,Consultancy-Legacy Mine Workings,Community Response,barcourt communications limited,113255,"4,410.00",
"Department for Business, Energy and Industrial Strategy",The Coal Authority,30/09/2021,Consultancy-Legacy Mine Workings,Community Response,barcourt communications limited,113255,573.00,
"Department for Business, Energy and Industrial Strategy",The Coal Authority,05/10/2021,Contract Hire Vehicles,PS&S - General Claims,Lex Autolease Ltd,113846,232.84,
"Department for Business, Energy and Industrial Strategy",The Coal Authority,05/10/2021,Contract Hire Vehicles,PS&S - General Claims,Lex Autolease Ltd,113846,23.28,
"Department for Business, Energy and Industrial Strategy",The Coal Authority,05/10/2021,Contract Hire Vehicles,PS&S - General Claims,Lex Autolease Ltd,113846,33.76,
"Department for Business, Energy and Industrial Strategy",The Coal Authority,19/10/2021,Contract Hire Vehicles,PS&S - General Claims,Days Fleet,114612,20.00,
"Department for Business, Energy and Industrial Strategy",The Coal Authority,07/09/2021,Contract Hire Vehicles,ENV - Projects & Delivery,Government Procurement Card,114630,5.50,
"Department for Business, Energy and Industrial Strategy",The Coal Authority,10/09/2021,Contract Hire Vehicles,PS&S - General Claims,Government Procurement Card,114630,2.99,
"Department for Business, Energy and Industrial Strategy",The Coal Authority,10/09/2021,Contract Hire Vehicles,PS&S - General Claims,Government Procurement Card,114630,16.66,
"Department for Business, Energy and Industrial Strategy",The Coal Authority,08/10/2021,CY - Head Office Buildings - Additions,Facilities,Lindum Group Ltd,113966,"19,850.00",
"Department for Business, Energy and Industrial Strategy",The Coal Authority,13/10/2021,CY - Intangible IT - Additions,ENV - Mine Water Operations,Severn Trent Serv Ops Uk Ltd,113822,"2,891.01",
"Department for Business, Energy and Industrial Strategy",The Coal Authority,06/08/2021,CY - Land - Additions,ENV - Projects & Delivery,George F White,113185,"1,000.00",
"Department for Business, Energy and Industrial Strategy",The Coal Authority,06/08/2021,CY - Land - Additions,ENV - Projects & Delivery,George F White,113186,"2,000.00",
"Department for Business, Energy and Industrial Strategy",The Coal Authority,20/08/2021,CY - Minewater Scheme - Additions,ENV - Projects & Delivery,Turner and Townsend Project Management Ltd.,112819,"4,045.44",
"Department for Business, Energy and Industrial Strategy",The Coal Authority,13/09/2021,CY - Minewater Scheme - Additions,ENV - Projects & Delivery,George Leslie Limited,112897,"279,028.59",
"Department for Business, Energy and Industrial Strategy",The Coal Authority,23/09/2021,CY - Minewater Scheme - Additions,ENV - Projects & Delivery,George Leslie Limited,112898,"214,796.22",
"Department for Business, Energy and Industrial Strategy",The Coal Authority,30/07/2021,CY - Minewater Scheme - Additions,ENV - Projects & Delivery,Dunelm Geotechnical and Environmental Ltd,112899,"3,636.40",
"Department for Business, Energy and Industrial Strategy",The Coal Authority,30/07/2021,CY - Minewater Scheme - Additions,ENV - Projects & Delivery,Dunelm Geotechnical and Environmental Ltd,112899,"1,747.00",
"Department for Business, Energy and Industrial Strategy",The Coal Authority,09/09/2021,CY - Minewater Scheme - Additions,ENV - Projects & Delivery,Integrated Water Services Ltd,112921,"44,320.76",
"Department for Business, Energy and Industrial Strategy",The Coal Authority,09/09/2021,CY - Minewater Scheme - Additions,ENV - Projects & Delivery,Integrated Water Services Ltd,112921,"12,366.43",
"Department for Business, Energy and Industrial Strategy",The Coal Authority,09/09/2021,CY - Minewater Scheme - Additions,ENV - Projects & Delivery,Integrated Water Services Ltd,112921,"87,417.28",
"Department for Business, Energy and Industrial Strategy",The Coal Authority,04/10/2021,CY - Minewater Scheme - Additions,ENV - Projects & Delivery,Integrated Water Services Ltd,112922,"-47,477.57",
"Department for Business, Energy and Industrial Strategy",The Coal Authority,09/09/2021,CY - Minewater Scheme - Additions,ENV - Projects & Delivery,Integrated Water Services Ltd,112926,"44,320.76",
"Department for Business, Energy and Industrial Strategy",The Coal Authority,09/09/2021,CY - Minewater Scheme - Additions,ENV - Projects & Delivery,Integrated Water Services Ltd,112926,"3,156.81",
"Department for Business, Energy and Industrial Strategy",The Coal Authority,30/09/2021,CY - Minewater Scheme - Additions,ENV - Projects & Delivery,J N Bentley Limited,113219,"1,070.98",
"Department for Business, Energy and Industrial Strategy",The Coal Authority,30/09/2021,CY - Minewater Scheme - Additions,ENV - Projects & Delivery,J N Bentley Limited,113219,919.81,
"Department for Business, Energy and Industrial Strategy",The Coal Authority,30/09/2021,CY - Minewater Scheme - Additions,ENV - Projects & Delivery,J N Bentley Limited,113219,497.09,
"Department for Business, Energy and Industrial Strategy",The Coal Authority,11/10/2021,CY - Minewater Scheme - Additions,ENV - Projects & Delivery,J N Bentley Limited,113550,"4,644.73",
"Department for Business, Energy and Industrial Strategy",The Coal Authority,11/10/2021,CY - Minewater Scheme - Additions,ENV - Projects & Delivery,J N Bentley Limited,113550,"7,007.64",
"Department for Business, Energy and Industrial Strategy",The Coal Authority,11/10/2021,CY - Minewater Scheme - Additions,ENV - Projects & Delivery,J N Bentley Limited,113550,"2,909.60",
"Department for Business, Energy and Industrial Strategy",The Coal Authority,11/10/2021,CY - Minewater Scheme - Additions,ENV - Projects & Delivery,J N Bentley Limited,113550,"4,591.30",
"Department for Business, Energy and Industrial Strategy",The Coal Authority,11/10/2021,CY - Minewater Scheme - Additions,ENV - Projects & Delivery,J N Bentley Limited,113550,"1,909.03",
"Department for Business, Energy and Industrial Strategy",The Coal Authority,03/09/2021,CY - Minewater Scheme - Additions,ENV - Projects & Delivery,AECOM Ltd,113578,"1,601.82",
"Department for Business, Energy and Industrial Strategy",The Coal Authority,03/09/2021,CY - Minewater Scheme - Additions,ENV - Projects & Delivery,AECOM Ltd,113578,"4,599.55",
"Department for Business, Energy and Industrial Strategy",The Coal Authority,03/09/2021,CY - Minewater Scheme - Additions,ENV - Projects & Delivery,AECOM Ltd,113578,126.00,
"Department for Business, Energy and Industrial Strategy",The Coal Authority,03/09/2021,CY - Minewater Scheme - Additions,ENV - Projects & Delivery,AECOM Ltd,113578,607.50,
"Department for Business, Energy and Industrial Strategy",The Coal Authority,03/09/2021,CY - Minewater Scheme - Additions,ENV - Projects & Delivery,AECOM Ltd,113578,176.25,
"Department for Business, Energy and Industrial Strategy",The Coal Authority,13/10/2021,CY - Minewater Scheme - Additions,ENV - Mine Water Operations,Severn Trent Serv Ops Uk Ltd,113822,109.58,
"Department for Business, Energy and Industrial Strategy",The Coal Authority,13/10/2021,CY - Minewater Scheme - Additions,ENV - Mine Water Operations,Severn Trent Serv Ops Uk Ltd,113822,246.61,
"Department for Business, Energy and Industrial Strategy",The Coal Authority,13/10/2021,CY - Minewater Scheme - Additions,ENV - Mine Water Operations,Severn Trent Serv Ops Uk Ltd,113822,244.67,
"Department for Business, Energy and Industrial Strategy",The Coal Authority,13/10/2021,CY - Minewater Scheme - Additions,ENV - Mine Water Operations,Severn Trent Serv Ops Uk Ltd,113822,73.05,
"Department for Business, Energy and Industrial Strategy",The Coal Authority,13/10/2021,CY - Minewater Scheme - Additions,ENV - Mine Water Operations,Severn Trent Serv Ops Uk Ltd,113822,244.67,
"Department for Business, Energy and Industrial Strategy",The Coal Authority,13/10/2021,CY - Minewater Scheme - Additions,ENV - Mine Water Operations,Severn Trent Serv Ops Uk Ltd,113822,484.56,
"Department for Business, Energy and Industrial Strategy",The Coal Authority,13/10/2021,CY - Minewater Scheme - Additions,ENV - Mine Water Operations,Severn Trent Serv Ops Uk Ltd,113822,244.67,
"Department for Business, Energy and Industrial Strategy",The Coal Authority,13/10/2021,CY - Minewater Scheme - Additions,ENV - Mine Water Operations,Severn Trent Serv Ops Uk Ltd,113822,"1,010.56",
"Department for Business, Energy and Industrial Strategy",The Coal Authority,13/10/2021,CY - Minewater Scheme - Additions,ENV - Mine Water Operations,Severn Trent Serv Ops Uk Ltd,113822,"55,593.14",
"Department for Business, Energy and Industrial Strategy",The Coal Authority,13/10/2021,CY - Minewater Scheme - Additions,ENV - Mine Water Operations,Severn Trent Serv Ops Uk Ltd,113822,"32,450.64",
"Department for Business, Energy and Industrial Strategy",The Coal Authority,13/10/2021,CY - Minewater Scheme - Additions,ENV - Mine Water Operations,Severn Trent Serv Ops Uk Ltd,113822,484.56,
"Department for Business, Energy and Industrial Strategy",The Coal Authority,13/10/2021,CY - Minewater Scheme - Additions,ENV - Mine Water Operations,Severn Trent Serv Ops Uk Ltd,113822,"99,048.36",
"Department for Business, Energy and Industrial Strategy",The Coal Authority,13/10/2021,CY - Minewater Scheme - Additions,ENV - Mine Water Operations,Severn Trent Serv Ops Uk Ltd,113822,"3,135.41",
"Department for Business, Energy and Industrial Strategy",The Coal Authority,13/10/2021,CY - Minewater Scheme - Additions,ENV - Mine Water Operations,Severn Trent Serv Ops Uk Ltd,113822,"7,594.28",
"Department for Business, Energy and Industrial Strategy",The Coal Authority,13/10/2021,CY - Minewater Scheme - Additions,ENV - Mine Water Operations,Severn Trent Serv Ops Uk Ltd,113822,73.05,
"Department for Business, Energy and Industrial Strategy",The Coal Authority,13/10/2021,CY - Minewater Scheme - Additions,ENV - Mine Water Operations,Severn Trent Serv Ops Uk Ltd,113822,71.59,
"Department for Business, Energy and Industrial Strategy",The Coal Authority,13/10/2021,CY - Minewater Scheme - Additions,ENV - Mine Water Operations,Severn Trent Serv Ops Uk Ltd,113822,726.83,
"Department for Business, Energy and Industrial Strategy",The Coal Authority,13/10/2021,CY - Minewater Scheme - Additions,ENV - Mine Water Operations,Severn Trent Serv Ops Uk Ltd,113822,305.84,
"Department for Business, Energy and Industrial Strategy",The Coal Authority,13/10/2021,CY - Minewater Scheme - Additions,ENV - Mine Water Operations,Severn Trent Serv Ops Uk Ltd,113822,726.83,
"Department for Business, Energy and Industrial Strategy",The Coal Authority,13/10/2021,CY - Minewater Scheme - Additions,ENV - Projects & Delivery,Severn Trent Serv Ops Uk Ltd,113822,"1,235.05",
"Department for Business, Energy and Industrial Strategy",The Coal Authority,13/10/2021,CY - Minewater Scheme - Additions,ENV - Projects & Delivery,Severn Trent Serv Ops Uk Ltd,113822,63.89,
"Department for Business, Energy and Industrial Strategy",The Coal Authority,13/10/2021,CY - Minewater Scheme - Additions,ENV - Projects & Delivery,Severn Trent Serv Ops Uk Ltd,113822,5.59,
"Department for Business, Energy and Industrial Strategy",The Coal Authority,13/10/2021,CY - Minewater Scheme - Additions,ENV - Projects & Delivery,Severn Trent Serv Ops Uk Ltd,113822,283.99,
"Department for Business, Energy and Industrial Strategy",The Coal Authority,13/10/2021,CY - Minewater Scheme - Additions,ENV - Projects & Delivery,Severn Trent Serv Ops Uk Ltd,113822,"20,847.57",
"Department for Business, Energy and Industrial Strategy",The Coal Authority,13/10/2021,CY - Minewater Scheme - Additions,ENV - Projects & Delivery,Severn Trent Serv Ops Uk Ltd,113822,442.18,
"Department for Business, Energy and Industrial Strategy",The Coal Authority,13/10/2021,CY - Minewater Scheme - Additions,ENV - Mine Water Operations,Severn Trent Serv Ops Uk Ltd,113825,"1,063.02",
"Department for Business, Energy and Industrial Strategy",The Coal Authority,22/10/2021,CY - Minewater Scheme - Additions,ENV - Projects & Delivery,AECOM Ltd,114244,37.80,
"Department for Business, Energy and Industrial Strategy",The Coal Authority,22/10/2021,CY - Minewater Scheme - Additions,ENV - Projects & Delivery,AECOM Ltd,114244,13.74,
"Department for Business, Energy and Industrial Strategy",The Coal Authority,22/10/2021,CY - Minewater Scheme - Additions,ENV - Projects & Delivery,AECOM Ltd,114244,103.02,
"Department for Business, Energy and Industrial Strategy",The Coal Authority,22/10/2021,CY - Minewater Scheme - Additions,ENV - Projects & Delivery,AECOM Ltd,114244,205.70,
"Department for Business, Energy and Industrial Strategy",The Coal Authority,26/10/2021,CY - Minewater Scheme - Additions,ENV - Projects & Delivery,Integrated Water Services Ltd,114604,"20,064.36",
"Department for Business, Energy and Industrial Strategy",The Coal Authority,26/10/2021,CY - Minewater Scheme - Additions,ENV - Projects & Delivery,Integrated Water Services Ltd,114604,"2,142.86",
"Department for Business, Energy and Industrial Strategy",The Coal Authority,26/10/2021,CY - Minewater Scheme - Additions,ENV - Projects & Delivery,Integrated Water Services Ltd,114604,"16,468.51",
"Department for Business, Energy and Industrial Strategy",The Coal Authority,28/09/2021,CY - Non-coal Minewater - Additions,DEFRA LEP Funding,J N Bentley Limited,112769,"18,927.49",
"Department for Business, Energy and Industrial Strategy",The Coal Authority,01/10/2021,CY - Non-coal Minewater - Additions,DEFRA LEP Funding,H T Media Ltd,112938,"3,124.15",
"Department for Business, Energy and Industrial Strategy",The Coal Authority,27/09/2021,CY - Non-coal Minewater - Additions,DEFRA LEP Funding,Turner and Townsend Project Management Ltd.,112997,"4,162.73",
"Department for Business, Energy and Industrial Strategy",The Coal Authority,27/09/2021,CY - Non-coal Minewater - Additions,DEFRA LEP Funding,Turner and Townsend Project Management Ltd.,112997,0.04,
"Department for Business, Energy and Industrial Strategy",The Coal Authority,04/10/2021,CY - Non-coal Minewater - Additions,DEFRA LEP Funding,TerrAffix Soil Solutions Ltd,113034,"12,552.66",
"Department for Business, Energy and Industrial Strategy",The Coal Authority,30/08/2021,CY - Non-coal Minewater - Additions,DEFRA LEP Funding,Turner and Townsend Project Management Ltd.,113292,0.04,
"Department for Business, Energy and Industrial Strategy",The Coal Authority,30/08/2021,CY - Non-coal Minewater - Additions,DEFRA LEP Funding,Turner and Townsend Project Management Ltd.,113292,"5,087.78",
"Department for Business, Energy and Industrial Strategy",The Coal Authority,08/10/2021,CY - Non-coal Minewater - Additions,DEFRA LEP Funding,I & H Brown Limited,113651,540.00,
"Department for Business, Energy and Industrial Strategy",The Coal Authority,08/10/2021,CY - Non-coal Minewater - Additions,DEFRA LEP Funding,I & H Brown Limited,113651,"210,633.04",
"Department for Business, Energy and Industrial Strategy",The Coal Authority,13/10/2021,CY - Non-coal Minewater - Additions,DEFRA Metal Mine Programme,Severn Trent Serv Ops Uk Ltd,113795,489.35,
"Department for Business, Energy and Industrial Strategy",The Coal Authority,15/10/2021,CY - Non-coal Minewater - Additions,DEFRA Metal Mine Programme,Wear Rivers Trust,114202,"13,187.76",
"Department for Business, Energy and Industrial Strategy",The Coal Authority,13/10/2021,CY - Plant & Machinery - Additions,ENV - Mine Water Operations,Severn Trent Serv Ops Uk Ltd,113822,"133,391.38",
"Department for Business, Energy and Industrial Strategy",The Coal Authority,01/10/2021,eCommerce Commission Charges,DEV - Permissions,Worldpay Limited,113227,8.15,
"Department for Business, Energy and Industrial Strategy",The Coal Authority,31/03/2021,eCommerce Commission Charges,DEV - Licensing,Worldpay,113230,2.00,
"Department for Business, Energy and Industrial Strategy",The Coal Authority,31/03/2021,eCommerce Commission Charges,DEV - Permissions,Worldpay,113230,807.32,
"Department for Business, Energy and Industrial Strategy",The Coal Authority,31/03/2021,eCommerce Commission Charges,DEV - Permissions,Worldpay,113230,25.00,
"Department for Business, Energy and Industrial Strategy",The Coal Authority,31/03/2021,eCommerce Commission Charges,Mining Reports,Worldpay,113230,"1,143.34",
"Department for Business, Energy and Industrial Strategy",The Coal Authority,31/03/2021,eCommerce Commission Charges,Records Management,Worldpay,113230,15.00,
"Department for Business, Energy and Industrial Strategy",The Coal Authority,01/10/2021,eCommerce Commission Charges,Mining Reports,Worldpay Limited,113562,263.75,
"Department for Business, Energy and Industrial Strategy",The Coal Authority,01/09/2021,eCommerce Commission Charges,Mining Reports,Worldpay Limited,113563,304.12,
"Department for Business, Energy and Industrial Strategy",The Coal Authority,30/09/2021,eCommerce Commission Charges,DEV - Permissions,Worldpay,114305,971.65,
"Department for Business, Energy and Industrial Strategy",The Coal Authority,30/09/2021,eCommerce Commission Charges,DEV - Permissions,Worldpay,114305,25.00,
"Department for Business, Energy and Industrial Strategy",The Coal Authority,30/09/2021,eCommerce Commission Charges,DEV - Planning & Local Authority Liaison,Worldpay,114305,58.27,
"Department for Business, Energy and Industrial Strategy",The Coal Authority,30/09/2021,eCommerce Commission Charges,DIG - Data Licensing,Worldpay,114305,11.88,
"Department for Business, Energy and Industrial Strategy",The Coal Authority,30/09/2021,eCommerce Commission Charges,Mining Reports,Worldpay,114305,"1,091.56",
"Department for Business, Energy and Industrial Strategy",The Coal Authority,30/09/2021,eCommerce Commission Charges,Records Management,Worldpay,114305,15.00,
"Department for Business, Energy and Industrial Strategy",The Coal Authority,07/10/2021,Electricity Usage,Facilities,Edf Energy,113724,"10,798.41",
"Department for Business, Energy and Industrial Strategy",The Coal Authority,13/09/2021,External Agency / Introduction Fees,People & Organisational Development,Distinct Recruitment,113307,"3,302.10",
"Department for Business, Energy and Industrial Strategy",The Coal Authority,30/09/2021,Fares - Public Transport,Customer Services & Strategy,Ace Of Mansfield Ltd,113086,12.81,
"Department for Business, Energy and Industrial Strategy",The Coal Authority,05/10/2021,Fares - Rail,Innovation By-Product & Services Delivery,Staff Expenses Control,113393,3.30,
"Department for Business, Energy and Industrial Strategy",The Coal Authority,06/10/2021,Fares - Rail,Innovation By-Product & Services Delivery,Staff Expenses Control,113393,4.40,
"Department for Business, Energy and Industrial Strategy",The Coal Authority,30/09/2021,Fares - Rail,Finance,Corporate Travel Management North,114298,"3,147.20",
"Department for Business, Energy and Industrial Strategy",The Coal Authority,08/09/2021,Fares - Rail,Other Customers,Government Procurement Card,114630,186.68,
"Department for Business, Energy and Industrial Strategy",The Coal Authority,10/09/2021,Fares - Rail,Executive Assistants,Government Procurement Card,114630,121.50,
"Department for Business, Energy and Industrial Strategy",The Coal Authority,10/09/2021,Fares - Rail,Executive Assistants,Government Procurement Card,114630,40.20,
"Department for Business, Energy and Industrial Strategy",The Coal Authority,10/09/2021,Fares - Rail,Executive Assistants,Government Procurement Card,114630,81.50,
"Department for Business, Energy and Industrial Strategy",The Coal Authority,23/09/2021,Fuel (Vehicle),Other Customers,Staff Expenses Control,112948,25.02,
"Department for Business, Energy and Industrial Strategy",The Coal Authority,23/09/2021,Fuel (Vehicle),Other Customers,Staff Expenses Control,112948,12.51,
"Department for Business, Energy and Industrial Strategy",The Coal Authority,29/09/2021,Fuel (Vehicle),PS&S - General Claims,Allstar Business Solutions Ltd,113059,18.17,
"Department for Business, Energy and Industrial Strategy",The Coal Authority,29/09/2021,Fuel (Vehicle),PS&S - General Claims,Allstar Business Solutions Ltd,113059,15.20,
"Department for Business, Energy and Industrial Strategy",The Coal Authority,29/09/2021,Fuel (Vehicle),PS&S - General Claims,Allstar Business Solutions Ltd,113059,89.60,
"Department for Business, Energy and Industrial Strategy",The Coal Authority,29/09/2021,Fuel (Vehicle),PS&S - General Claims,Allstar Business Solutions Ltd,113059,56.98,
"Department for Business, Energy and Industrial Strategy",The Coal Authority,29/09/2021,Fuel (Vehicle),PS&S - General Claims,Allstar Business Solutions Ltd,113059,58.82,
"Department for Business, Energy and Industrial Strategy",The Coal Authority,29/09/2021,Fuel (Vehicle),PS&S - General Claims,Allstar Business Solutions Ltd,113059,62.43,
"Department for Business, Energy and Industrial Strategy",The Coal Authority,29/09/2021,Fuel (Vehicle),PS&S - General Claims,Allstar Business Solutions Ltd,113059,22.92,
"Department for Business, Energy and Industrial Strategy",The Coal Authority,29/09/2021,Fuel (Vehicle),Tips Response,Allstar Business Solutions Ltd,113059,84.89,
"Department for Business, Energy and Industrial Strategy",The Coal Authority,29/09/2021,Fuel (Vehicle),Tips Response,Allstar Business Solutions Ltd,113059,25.00,
"Department for Business, Energy and Industrial Strategy",The Coal Authority,29/09/2021,Fuel (Vehicle),Facilities,Allstar Business Solutions Ltd,113099,72.64,
"Department for Business, Energy and Industrial Strategy",The Coal Authority,29/09/2021,Fuel (Vehicle),Facilities,Allstar Business Solutions Ltd,113099,55.98,
"Department for Business, Energy and Industrial Strategy",The Coal Authority,29/09/2021,Fuel (Vehicle),Facilities,Allstar Business Solutions Ltd,113099,51.79,
"Department for Business, Energy and Industrial Strategy",The Coal Authority,29/09/2021,Fuel (Vehicle),Facilities,Allstar Business Solutions Ltd,113099,7.60,
"Department for Business, Energy and Industrial Strategy",The Coal Authority,29/09/2021,Fuel (Vehicle),ENV - Projects & Delivery,Allstar Business Solutions Ltd,113127,23.52,
"Department for Business, Energy and Industrial Strategy",The Coal Authority,06/10/2021,Fuel (Vehicle),PS&S - General Claims,Allstar Business Solutions Ltd,113278,28.88,
"Department for Business, Energy and Industrial Strategy",The Coal Authority,06/10/2021,Fuel (Vehicle),PS&S - General Claims,Allstar Business Solutions Ltd,113278,25.60,
"Department for Business, Energy and Industrial Strategy",The Coal Authority,06/10/2021,Fuel (Vehicle),PS&S - General Claims,Allstar Business Solutions Ltd,113278,25.39,
"Department for Business, Energy and Industrial Strategy",The Coal Authority,06/10/2021,Fuel (Vehicle),PS&S - General Claims,Allstar Business Solutions Ltd,113278,103.91,
"Department for Business, Energy and Industrial Strategy",The Coal Authority,06/10/2021,Fuel (Vehicle),PS&S - General Claims,Allstar Business Solutions Ltd,113278,60.00,
"Department for Business, Energy and Industrial Strategy",The Coal Authority,06/10/2021,Fuel (Vehicle),PS&S - General Claims,Allstar Business Solutions Ltd,113278,39.82,
"Department for Business, Energy and Industrial Strategy",The Coal Authority,06/10/2021,Fuel (Vehicle),PS&S - General Claims,Allstar Business Solutions Ltd,113278,11.40,
"Department for Business, Energy and Industrial Strategy",The Coal Authority,06/10/2021,Fuel (Vehicle),Tips Response,Allstar Business Solutions Ltd,113278,33.34,
"Department for Business, Energy and Industrial Strategy",The Coal Authority,06/10/2021,Fuel (Vehicle),Tips Response,Allstar Business Solutions Ltd,113278,48.10,
"Department for Business, Energy and Industrial Strategy",The Coal Authority,21/09/2021,Fuel (Vehicle),ENV - Mine Water Operations,Staff Expenses Control,113393,63.85,
"Department for Business, Energy and Industrial Strategy",The Coal Authority,14/10/2021,Fuel (Vehicle),Other Customers,Staff Expenses Control,113817,36.23,
"Department for Business, Energy and Industrial Strategy",The Coal Authority,27/09/2021,Fuel (Vehicle),ENV - Mine Water Operations,Staff Expenses Control,114289,12.50,
"Department for Business, Energy and Industrial Strategy",The Coal Authority,29/09/2021,Fuel (Vehicle),ENV - Projects & Delivery,Staff Expenses Control,114289,16.68,
"Department for Business, Energy and Industrial Strategy",The Coal Authority,01/10/2021,Fuel (Vehicle),ENV - Mine Water Operations,Staff Expenses Control,114289,15.13,
"Department for Business, Energy and Industrial Strategy",The Coal Authority,04/10/2021,Fuel (Vehicle),ENV - Projects & Delivery,Staff Expenses Control,114289,31.67,
"Department for Business, Energy and Industrial Strategy",The Coal Authority,27/10/2021,Fuel (Vehicle),PS&S - General Claims,Allstar Business Solutions Ltd,114591,37.50,
"Department for Business, Energy and Industrial Strategy",The Coal Authority,27/10/2021,Fuel (Vehicle),PS&S - General Claims,Allstar Business Solutions Ltd,114591,29.29,
"Department for Business, Energy and Industrial Strategy",The Coal Authority,27/10/2021,Fuel (Vehicle),PS&S - General Claims,Allstar Business Solutions Ltd,114591,58.34,
"Department for Business, Energy and Industrial Strategy",The Coal Authority,27/10/2021,Fuel (Vehicle),PS&S - General Claims,Allstar Business Solutions Ltd,114591,71.05,
"Department for Business, Energy and Industrial Strategy",The Coal Authority,27/10/2021,Fuel (Vehicle),PS&S - General Claims,Allstar Business Solutions Ltd,114591,9.50,
"Department for Business, Energy and Industrial Strategy",The Coal Authority,27/10/2021,Fuel (Vehicle),PS&S - General Claims,Allstar Business Solutions Ltd,114591,87.71,
"Department for Business, Energy and Industrial Strategy",The Coal Authority,27/10/2021,Fuel (Vehicle),Tips Response,Allstar Business Solutions Ltd,114591,62.33,
"Department for Business, Energy and Industrial Strategy",The Coal Authority,20/10/2021,Fuel (Vehicle),PS&S - General Claims,Allstar Business Solutions Ltd,114592,9.50,
"Department for Business, Energy and Industrial Strategy",The Coal Authority,20/10/2021,Fuel (Vehicle),PS&S - General Claims,Allstar Business Solutions Ltd,114592,37.50,
"Department for Business, Energy and Industrial Strategy",The Coal Authority,20/10/2021,Fuel (Vehicle),PS&S - General Claims,Allstar Business Solutions Ltd,114592,88.45,
"Department for Business, Energy and Industrial Strategy",The Coal Authority,20/10/2021,Fuel (Vehicle),PS&S - General Claims,Allstar Business Solutions Ltd,114592,38.36,
"Department for Business, Energy and Industrial Strategy",The Coal Authority,20/10/2021,Fuel (Vehicle),Tips Response,Allstar Business Solutions Ltd,114592,43.04,
"Department for Business, Energy and Industrial Strategy",The Coal Authority,20/10/2021,Fuel (Vehicle),Tips Response,Allstar Business Solutions Ltd,114592,50.64,
"Department for Business, Energy and Industrial Strategy",The Coal Authority,13/10/2021,Fuel (Vehicle),PS&S - General Claims,Allstar Business Solutions Ltd,114593,15.20,
"Department for Business, Energy and Industrial Strategy",The Coal Authority,13/10/2021,Fuel (Vehicle),PS&S - General Claims,Allstar Business Solutions Ltd,114593,29.36,
"Department for Business, Energy and Industrial Strategy",The Coal Authority,13/10/2021,Fuel (Vehicle),PS&S - General Claims,Allstar Business Solutions Ltd,114593,33.26,
"Department for Business, Energy and Industrial Strategy",The Coal Authority,13/10/2021,Fuel (Vehicle),PS&S - General Claims,Allstar Business Solutions Ltd,114593,25.00,
"Department for Business, Energy and Industrial Strategy",The Coal Authority,13/10/2021,Fuel (Vehicle),PS&S - General Claims,Allstar Business Solutions Ltd,114593,54.19,
"Department for Business, Energy and Industrial Strategy",The Coal Authority,13/10/2021,Fuel (Vehicle),PS&S - General Claims,Allstar Business Solutions Ltd,114593,97.43,
"Department for Business, Energy and Industrial Strategy",The Coal Authority,13/10/2021,Fuel (Vehicle),PS&S - General Claims,Allstar Business Solutions Ltd,114593,134.21,
"Department for Business, Energy and Industrial Strategy",The Coal Authority,13/10/2021,Fuel (Vehicle),PS&S - General Claims,Allstar Business Solutions Ltd,114593,54.28,
"Department for Business, Energy and Industrial Strategy",The Coal Authority,13/10/2021,Fuel (Vehicle),Tips Response,Allstar Business Solutions Ltd,114593,73.02,
"Department for Business, Energy and Industrial Strategy",The Coal Authority,13/10/2021,Fuel (Vehicle),Tips Response,Allstar Business Solutions Ltd,114593,33.35,
"Department for Business, Energy and Industrial Strategy",The Coal Authority,27/10/2021,Fuel (Vehicle),Facilities,Allstar Business Solutions Ltd,114620,13.18,
"Department for Business, Energy and Industrial Strategy",The Coal Authority,27/10/2021,Fuel (Vehicle),Facilities,Allstar Business Solutions Ltd,114620,37.23,
"Department for Business, Energy and Industrial Strategy",The Coal Authority,27/10/2021,Fuel (Vehicle),Facilities,Allstar Business Solutions Ltd,114620,47.39,
"Department for Business, Energy and Industrial Strategy",The Coal Authority,13/10/2021,Fuel (Vehicle),Facilities,Allstar Business Solutions Ltd,114621,47.92,
"Department for Business, Energy and Industrial Strategy",The Coal Authority,13/10/2021,Fuel (Vehicle),Facilities,Allstar Business Solutions Ltd,114621,55.22,
"Department for Business, Energy and Industrial Strategy",The Coal Authority,13/10/2021,Fuel (Vehicle),Facilities,Allstar Business Solutions Ltd,114621,51.67,
"Department for Business, Energy and Industrial Strategy",The Coal Authority,13/10/2021,Fuel (Vehicle),Facilities,Allstar Business Solutions Ltd,114621,52.50,
"Department for Business, Energy and Industrial Strategy",The Coal Authority,13/10/2021,Fuel (Vehicle),Facilities,Allstar Business Solutions Ltd,114621,53.24,
"Department for Business, Energy and Industrial Strategy",The Coal Authority,13/10/2021,Fuel (Vehicle),Facilities,Allstar Business Solutions Ltd,114621,7.60,
"Department for Business, Energy and Industrial Strategy",The Coal Authority,20/10/2021,Fuel (Vehicle),Facilities,Allstar Business Solutions Ltd,114622,28.33,
"Department for Business, Energy and Industrial Strategy",The Coal Authority,20/10/2021,Fuel (Vehicle),Facilities,Allstar Business Solutions Ltd,114622,38.84,
"Department for Business, Energy and Industrial Strategy",The Coal Authority,20/10/2021,Fuel (Vehicle),Facilities,Allstar Business Solutions Ltd,114622,72.73,
"Department for Business, Energy and Industrial Strategy",The Coal Authority,20/10/2021,Fuel (Vehicle),Facilities,Allstar Business Solutions Ltd,114622,144.38,
"Department for Business, Energy and Industrial Strategy",The Coal Authority,20/10/2021,Fuel (Vehicle),Facilities,Allstar Business Solutions Ltd,114622,47.99,
"Department for Business, Energy and Industrial Strategy",The Coal Authority,20/10/2021,Fuel (Vehicle),Facilities,Allstar Business Solutions Ltd,114622,84.49,
"Department for Business, Energy and Industrial Strategy",The Coal Authority,20/10/2021,Fuel (Vehicle),Facilities,Allstar Business Solutions Ltd,114622,7.60,
"Department for Business, Energy and Industrial Strategy",The Coal Authority,03/09/2021,Fuel (Vehicle),Tips Response,Government Procurement Card,114630,48.96,
"Department for Business, Energy and Industrial Strategy",The Coal Authority,06/09/2021,Fuel (Vehicle),DEFRA Metal Mine Programme,Government Procurement Card,114630,45.61,
"Department for Business, Energy and Industrial Strategy",The Coal Authority,06/09/2021,Fuel (Vehicle),PS&S - General Claims,Government Procurement Card,114630,44.43,
"Department for Business, Energy and Industrial Strategy",The Coal Authority,08/09/2021,Fuel (Vehicle),PS&S - General Claims,Government Procurement Card,114630,25.12,
"Department for Business, Energy and Industrial Strategy",The Coal Authority,09/09/2021,Fuel (Vehicle),PS&S - Industry Claims,Government Procurement Card,114630,47.48,
"Department for Business, Energy and Industrial Strategy",The Coal Authority,10/09/2021,Fuel (Vehicle),ENV - Mine Water Operations,Government Procurement Card,114630,45.01,
"Department for Business, Energy and Industrial Strategy",The Coal Authority,10/09/2021,Fuel (Vehicle),Executive,Government Procurement Card,114630,43.93,
"Department for Business, Energy and Industrial Strategy",The Coal Authority,10/09/2021,Fuel (Vehicle),PS&S - General Claims,Government Procurement Card,114630,45.33,
"Department for Business, Energy and Industrial Strategy",The Coal Authority,15/09/2021,Fuel (Vehicle),DEFRA Metal Mine Programme,Government Procurement Card,114630,34.97,
"Department for Business, Energy and Industrial Strategy",The Coal Authority,15/09/2021,Fuel (Vehicle),PS&S - General Claims,Government Procurement Card,114630,42.81,
"Department for Business, Energy and Industrial Strategy",The Coal Authority,16/09/2021,Fuel (Vehicle),Engineering,Government Procurement Card,114630,20.60,
"Department for Business, Energy and Industrial Strategy",The Coal Authority,16/09/2021,Fuel (Vehicle),NRW Metal Mine Programme,Government Procurement Card,114630,58.75,
"Department for Business, Energy and Industrial Strategy",The Coal Authority,16/09/2021,Fuel (Vehicle),NRW Metal Mine Programme,Government Procurement Card,114630,16.67,
"Department for Business, Energy and Industrial Strategy",The Coal Authority,17/09/2021,Fuel (Vehicle),PS&S - General Claims,Government Procurement Card,114630,25.18,
"Department for Business, Energy and Industrial Strategy",The Coal Authority,20/09/2021,Fuel (Vehicle),DEFRA LEP Funding,Government Procurement Card,114630,54.60,
"Department for Business, Energy and Industrial Strategy",The Coal Authority,20/09/2021,Fuel (Vehicle),ENV - Mine Water Operations,Government Procurement Card,114630,37.50,
"Department for Business, Energy and Industrial Strategy",The Coal Authority,20/09/2021,Fuel (Vehicle),PS&S - General Claims,Government Procurement Card,114630,46.67,
"Department for Business, Energy and Industrial Strategy",The Coal Authority,21/09/2021,Fuel (Vehicle),NRW Metal Mine Programme,Government Procurement Card,114630,46.67,
"Department for Business, Energy and Industrial Strategy",The Coal Authority,21/09/2021,Fuel (Vehicle),PS&S - Industry Claims,Government Procurement Card,114630,25.02,
"Department for Business, Energy and Industrial Strategy",The Coal Authority,22/09/2021,Fuel (Vehicle),DEFRA LEP Funding,Government Procurement Card,114630,38.33,
"Department for Business, Energy and Industrial Strategy",The Coal Authority,22/09/2021,Fuel (Vehicle),PS&S - General Claims,Government Procurement Card,114630,12.58,
"Department for Business, Energy and Industrial Strategy",The Coal Authority,22/09/2021,Fuel (Vehicle),PS&S - Industry Claims,Government Procurement Card,114630,39.99,
"Department for Business, Energy and Industrial Strategy",The Coal Authority,23/09/2021,Fuel (Vehicle),DEFRA LEP Funding,Government Procurement Card,114630,29.39,
"Department for Business, Energy and Industrial Strategy",The Coal Authority,23/09/2021,Fuel (Vehicle),ENV - Mine Water Operations,Government Procurement Card,114630,43.00,
"Department for Business, Energy and Industrial Strategy",The Coal Authority,24/09/2021,Fuel (Vehicle),PS&S - General Claims,Government Procurement Card,114630,37.95,
"Department for Business, Energy and Industrial Strategy",The Coal Authority,27/09/2021,Fuel (Vehicle),ENV - Mine Water Operations,Government Procurement Card,114630,29.18,
"Department for Business, Energy and Industrial Strategy",The Coal Authority,27/09/2021,Fuel (Vehicle),Other Customers,Government Procurement Card,114630,49.11,
"Department for Business, Energy and Industrial Strategy",The Coal Authority,27/09/2021,Fuel (Vehicle),PS&S - General Claims,Government Procurement Card,114630,37.64,
"Department for Business, Energy and Industrial Strategy",The Coal Authority,28/09/2021,Fuel (Vehicle),PS&S - General Claims,Government Procurement Card,114630,25.83,
"Department for Business, Energy and Industrial Strategy",The Coal Authority,29/09/2021,Fuel (Vehicle),PS&S - General Claims,Government Procurement Card,114630,35.00,
"Department for Business, Energy and Industrial Strategy",The Coal Authority,30/09/2021,Fuel (Vehicle),PS&S - General Claims,Government Procurement Card,114630,25.33,
"Department for Business, Energy and Industrial Strategy",The Coal Authority,30/09/2021,Groundsure Royalty,Mining Reports,Groundsure Limited,114306,"64,095.99",
"Department for Business, Energy and Industrial Strategy",The Coal Authority,11/10/2021,Hardware Equipment & Support,DIG - Service & Assurance,Insight Direct (UK) Limited,113815,133.84,
"Department for Business, Energy and Industrial Strategy",The Coal Authority,07/09/2021,Hardware Equipment & Support,DIG - Service & Assurance,Government Procurement Card,114630,"2,199.99",
"Department for Business, Energy and Industrial Strategy",The Coal Authority,08/09/2021,Hardware Equipment & Support,Facilities,Government Procurement Card,114630,765.84,
"Department for Business, Energy and Industrial Strategy",The Coal Authority,28/09/2021,Hardware Equipment & Support,PS&S - General Claims,Government Procurement Card,114630,66.99,
"Department for Business, Energy and Industrial Strategy",The Coal Authority,26/09/2021,Hotel & Accommodation,Engineering,Staff Expenses Control,113393,144.15,
"Department for Business, Energy and Industrial Strategy",The Coal Authority,28/09/2021,Hotel & Accommodation,ENV - Mine Water Operations,Staff Expenses Control,114289,79.35,
"Department for Business, Energy and Industrial Strategy",The Coal Authority,30/09/2021,Hotel & Accommodation,Finance,Corporate Travel Management North,114298,"9,105.85",
"Department for Business, Energy and Industrial Strategy",The Coal Authority,30/09/2021,Hotel & Accommodation,Finance,Corporate Travel Management North,114298,59.21,
"Department for Business, Energy and Industrial Strategy",The Coal Authority,14/09/2021,Hotel & Accommodation,DEFRA Metal Mine Programme,Government Procurement Card,114630,66.00,
"Department for Business, Energy and Industrial Strategy",The Coal Authority,14/09/2021,Hotel & Accommodation,Heat & By-Product Innovation,Government Procurement Card,114630,66.00,
"Department for Business, Energy and Industrial Strategy",The Coal Authority,14/09/2021,Hotel & Accommodation,Heat & By-Product Innovation,Government Procurement Card,114630,66.00,
"Department for Business, Energy and Industrial Strategy",The Coal Authority,15/09/2021,Hotel & Accommodation,Heat & By-Product Innovation,Government Procurement Card,114630,3.36,
"Department for Business, Energy and Industrial Strategy",The Coal Authority,15/09/2021,Hotel & Accommodation,Heat & By-Product Innovation,Government Procurement Card,114630,3.36,
"Department for Business, Energy and Industrial Strategy",The Coal Authority,15/09/2021,Hotel & Accommodation,Heat & By-Product Innovation,Government Procurement Card,114630,3.45,
"Department for Business, Energy and Industrial Strategy",The Coal Authority,15/09/2021,Hotel & Accommodation,NRW Metal Mine Programme,Government Procurement Card,114630,142.86,
"Department for Business, Energy and Industrial Strategy",The Coal Authority,30/09/2021,Hotel & Accommodation,Other Customers,Government Procurement Card,114630,342.90,
"Department for Business, Energy and Industrial Strategy",The Coal Authority,17/09/2021,Incidentals,Innovation By-Product & Services Delivery,Staff Expenses Control,112948,4.00,
"Department for Business, Energy and Industrial Strategy",The Coal Authority,21/09/2021,Incidentals,Innovation By-Product & Services Delivery,Staff Expenses Control,112948,1.90,
"Department for Business, Energy and Industrial Strategy",The Coal Authority,21/09/2021,Incidentals,Innovation By-Product & Services Delivery,Staff Expenses Control,112948,1.90,
"Department for Business, Energy and Industrial Strategy",The Coal Authority,23/09/2021,Incidentals,Innovation By-Product & Services Delivery,Staff Expenses Control,112948,16.00,
"Department for Business, Energy and Industrial Strategy",The Coal Authority,07/07/2021,Incidentals,ENV - Technical,Staff Expenses Control,113393,2.08,
"Department for Business, Energy and Industrial Strategy",The Coal Authority,07/07/2021,Incidentals,ENV - Technical,Staff Expenses Control,113393,2.50,
"Department for Business, Energy and Industrial Strategy",The Coal Authority,22/09/2021,Incidentals,ENV - Mine Water Operations,Staff Expenses Control,113393,1.90,
"Department for Business, Energy and Industrial Strategy",The Coal Authority,22/09/2021,Incidentals,ENV - Mine Water Operations,Staff Expenses Control,113393,1.90,
"Department for Business, Energy and Industrial Strategy",The Coal Authority,29/09/2021,Incidentals,Heat & By-Product Innovation,Staff Expenses Control,113393,1.58,
"Department for Business, Energy and Industrial Strategy",The Coal Authority,29/09/2021,Incidentals,Heat & By-Product Innovation,Staff Expenses Control,113393,1.58,
"Department for Business, Energy and Industrial Strategy",The Coal Authority,05/10/2021,Incidentals,Innovation By-Product & Services Delivery,Staff Expenses Control,113393,4.00,
"Department for Business, Energy and Industrial Strategy",The Coal Authority,06/10/2021,Incidentals,Innovation By-Product & Services Delivery,Staff Expenses Control,113393,4.00,
"Department for Business, Energy and Industrial Strategy",The Coal Authority,07/10/2021,Incidentals,Engineering,Staff Expenses Control,113393,4.30,
"Department for Business, Energy and Industrial Strategy",The Coal Authority,30/09/2021,Incidentals,Mining Reports,Security Plus Limited,113836,30.06,
"Department for Business, Energy and Industrial Strategy",The Coal Authority,05/10/2021,Incidentals,Innovation By-Product & Services Delivery,Staff Expenses Control,114289,1.90,
"Department for Business, Energy and Industrial Strategy",The Coal Authority,05/10/2021,Incidentals,Innovation By-Product & Services Delivery,Staff Expenses Control,114289,1.90,
"Department for Business, Energy and Industrial Strategy",The Coal Authority,14/10/2021,Incidentals,Engineering,Staff Expenses Control,114289,4.30,
"Department for Business, Energy and Industrial Strategy",The Coal Authority,14/10/2021,Incidentals,Innovation By-Product & Services Delivery,Staff Expenses Control,114289,1.90,
"Department for Business, Energy and Industrial Strategy",The Coal Authority,14/10/2021,Incidentals,Innovation By-Product & Services Delivery,Staff Expenses Control,114289,1.90,
"Department for Business, Energy and Industrial Strategy",The Coal Authority,21/10/2021,Incidentals,Engineering,Staff Expenses Control,114289,4.30,
"Department for Business, Energy and Industrial Strategy",The Coal Authority,09/09/2021,Incidentals,ENV - Mine Water Operations,Government Procurement Card,114630,5.80,
"Department for Business, Energy and Industrial Strategy",The Coal Authority,10/09/2021,Incidentals,Executive,Government Procurement Card,114630,5.00,
"Department for Business, Energy and Industrial Strategy",The Coal Authority,13/09/2021,Incidentals,NRW Metal Mine Programme,Government Procurement Card,114630,4.17,
"Department for Business, Energy and Industrial Strategy",The Coal Authority,14/09/2021,Incidentals,Executive,Government Procurement Card,114630,8.33,
"Department for Business, Energy and Industrial Strategy",The Coal Authority,22/09/2021,Incidentals,ENV - Mine Water Operations,Government Procurement Card,114630,1.90,
"Department for Business, Energy and Industrial Strategy",The Coal Authority,23/09/2021,Incidentals,PS&S - Industry Claims,Government Procurement Card,114630,10.83,
"Department for Business, Energy and Industrial Strategy",The Coal Authority,28/09/2021,Incidentals,ENV - Mine Water Operations,Government Procurement Card,114630,5.00,
"Department for Business, Energy and Industrial Strategy",The Coal Authority,28/09/2021,Incidentals,"Health, Safety & Wellbeing",Government Procurement Card,114630,1.67,
"Department for Business, Energy and Industrial Strategy",The Coal Authority,30/09/2021,Incidentals,Executive,Government Procurement Card,114630,4.17,
"Department for Business, Energy and Industrial Strategy",The Coal Authority,30/09/2021,Information Security software support,DIG - Technical Delivery,WCL UK Ltd (trading as Everything ICT),112852,"12,000.00",
"Department for Business, Energy and Industrial Strategy",The Coal Authority,29/09/2021,Innovation Costs,By-Products - Energy,Orsis (UK) Ltd,112890,36.05,
"Department for Business, Energy and Industrial Strategy",The Coal Authority,29/09/2021,Innovation Costs,By-Products - Energy,Orsis (UK) Ltd,112890,17.00,
"Department for Business, Energy and Industrial Strategy",The Coal Authority,26/07/2021,Innovation Costs,Environment - Innovation Concept & Feasibility,X-ray Mineral Services Ltd,113193,550.00,
"Department for Business, Energy and Industrial Strategy",The Coal Authority,11/10/2021,Innovation Costs,Heat & By-Product Innovation,Roadnight Taylor Ltd,113616,"5,662.50",
"Department for Business, Energy and Industrial Strategy",The Coal Authority,13/10/2021,Innovation Costs,By-Products - Ochre,Severn Trent Serv Ops Uk Ltd,113822,"5,043.86",
"Department for Business, Energy and Industrial Strategy",The Coal Authority,13/10/2021,Innovation Costs,Heat & By-Product Innovation,Severn Trent Serv Ops Uk Ltd,113822,367.01,
"Department for Business, Energy and Industrial Strategy",The Coal Authority,13/10/2021,Innovation Costs,Heat & By-Product Innovation,Severn Trent Serv Ops Uk Ltd,113822,109.58,
"Department for Business, Energy and Industrial Strategy",The Coal Authority,30/09/2021,Innovation Costs,Heat & By-Product Innovation,Carter Jonas,113941,"3,627.00",
"Department for Business, Energy and Industrial Strategy",The Coal Authority,30/09/2021,Innovation Costs,Heat & By-Product Innovation,Carter Jonas,113942,761.00,
"Department for Business, Energy and Industrial Strategy",The Coal Authority,14/09/2021,Innovation Costs,Heat & By-Product Innovation,Government Procurement Card,114630,26.66,
"Department for Business, Energy and Industrial Strategy",The Coal Authority,21/09/2021,Innovation Costs,ENV - Projects & Delivery,Government Procurement Card,114630,83.33,
"Department for Business, Energy and Industrial Strategy",The Coal Authority,20/10/2021,Insurance Premiums,Mining Reports,LEGAL AND INSUR,114259,"40,813.20",
"Department for Business, Energy and Industrial Strategy",The Coal Authority,19/10/2021,Law Society Facilitation Fee,Mining Reports,The Law Society,114048,"2,069.05",
"Department for Business, Energy and Industrial Strategy",The Coal Authority,07/10/2021,Legal - General,Legal & Governance,Information Commissioners Office,113245,"2,900.00",
"Department for Business, Energy and Industrial Strategy",The Coal Authority,27/09/2021,Legal - General,Legal & Governance,Browne Jacobson Llp Client Account,113266,"1,910.00",
"Department for Business, Energy and Industrial Strategy",The Coal Authority,28/09/2021,Legal - General,Legal & Governance,Browne Jacobson Llp Client Account,113267,"1,468.50",
"Department for Business, Energy and Industrial Strategy",The Coal Authority,27/09/2021,Legal - General,Legal & Governance,Browne Jacobson Llp Client Account,113268,750.00,
"Department for Business, Energy and Industrial Strategy",The Coal Authority,28/09/2021,Legal - General,Legal & Governance,Browne Jacobson Llp Client Account,113269,"1,448.00",
"Department for Business, Energy and Industrial Strategy",The Coal Authority,28/09/2021,Legal - General,Legal & Governance,Browne Jacobson Llp Client Account,113270,"6,745.50",
"Department for Business, Energy and Industrial Strategy",The Coal Authority,27/09/2021,Legal - General,Legal & Governance,Browne Jacobson Llp Client Account,113271,"1,139.00",
"Department for Business, Energy and Industrial Strategy",The Coal Authority,06/10/2021,Legal - General,Legal & Governance,Anderson Strathern,113319,429.00,
"Department for Business, Energy and Industrial Strategy",The Coal Authority,06/10/2021,Legal - General,Legal & Governance,Anderson Strathern,113320,441.50,
"Department for Business, Energy and Industrial Strategy",The Coal Authority,08/10/2021,Legal - General,Legal & Governance,Dla Piper Uk Llp,113634,686.01,
"Department for Business, Energy and Industrial Strategy",The Coal Authority,08/10/2021,Legal - General,Legal & Governance,Dla Piper Uk Llp,113634,"1,460.16",
"Department for Business, Energy and Industrial Strategy",The Coal Authority,08/10/2021,Legal - General,Legal & Governance,Dla Piper Uk Llp,113634,22.46,
"Department for Business, Energy and Industrial Strategy",The Coal Authority,15/10/2021,Legal - General,PS&S - General Claims,Premier Property Lawyers,114624,"140,843.60",
"Department for Business, Energy and Industrial Strategy",The Coal Authority,22/09/2021,Legal - Property Title Search,Legal & Governance,Land Registry,112770,51.00,
"Department for Business, Energy and Industrial Strategy",The Coal Authority,10/09/2021,Legal - Property Title Search,Legal & Governance,Land Registry,112771,42.00,
"Department for Business, Energy and Industrial Strategy",The Coal Authority,24/09/2021,Legal - Property Title Search,Legal & Governance,Land Registry,112772,21.00,
"Department for Business, Energy and Industrial Strategy",The Coal Authority,17/09/2021,Legal - Property Title Search,Legal & Governance,Land Registry,112774,86.00,
"Department for Business, Energy and Industrial Strategy",The Coal Authority,01/10/2021,Legal - Property Title Search,Legal & Governance,Land Registry,113204,21.00,
"Department for Business, Energy and Industrial Strategy",The Coal Authority,29/09/2021,Legal - Property Title Search,Legal & Governance,Land Registry,113205,69.00,
"Department for Business, Energy and Industrial Strategy",The Coal Authority,04/10/2021,Legal - Property Title Search,Legal & Governance,Land Registry,113561,36.00,
"Department for Business, Energy and Industrial Strategy",The Coal Authority,24/09/2021,Legal - Property Title Search,Legal & Governance,Mda Searchflow Ltd,114189,265.10,
"Department for Business, Energy and Industrial Strategy",The Coal Authority,25/10/2021,Legal - Property Title Search,Legal & Governance,Mda Searchflow Ltd,114190,-131.30,
"Department for Business, Energy and Industrial Strategy",The Coal Authority,08/10/2021,Legal - Property Title Search,Legal & Governance,Land Registry,114194,39.00,
"Department for Business, Energy and Industrial Strategy",The Coal Authority,30/09/2021,Legal - Property Valuation Fees,DEV - Property Management,Savills (Uk) Ltd,112879,"2,500.00",
"Department for Business, Energy and Industrial Strategy",The Coal Authority,18/10/2021,Legal - Property Valuation Fees,DEV - Property Management,Savills (Uk) Ltd,114008,"1,661.20",
"Department for Business, Energy and Industrial Strategy",The Coal Authority,31/08/2021,Legal - Property Valuation Fees,DEV - Property Management,Cooke & Arkwright,114036,"1,750.00",
"Department for Business, Energy and Industrial Strategy",The Coal Authority,25/10/2021,Membership Subscriptions,People & Organisational Development,Inclusive Employers Limited,114275,600.00,
"Department for Business, Energy and Industrial Strategy",The Coal Authority,12/09/2021,Membership Subscriptions,PS&S - General Claims,Government Procurement Card,114630,8.33,
"Department for Business, Energy and Industrial Strategy",The Coal Authority,27/09/2021,Membership Subscriptions,Innovation By-Product & Services Delivery,Government Procurement Card,114630,154.93,
"Department for Business, Energy and Industrial Strategy",The Coal Authority,19/08/2021,Mileage Payments,PS&S - Industry Claims,Staff Expenses Control,112948,4.83,
"Department for Business, Energy and Industrial Strategy",The Coal Authority,19/08/2021,Mileage Payments,PS&S - Industry Claims,Staff Expenses Control,112948,5.44,
"Department for Business, Energy and Industrial Strategy",The Coal Authority,20/08/2021,Mileage Payments,PS&S - Industry Claims,Staff Expenses Control,112948,3.18,
"Department for Business, Energy and Industrial Strategy",The Coal Authority,20/08/2021,Mileage Payments,PS&S - Industry Claims,Staff Expenses Control,112948,3.17,
"Department for Business, Energy and Industrial Strategy",The Coal Authority,01/09/2021,Mileage Payments,PS&S - Industry Claims,Staff Expenses Control,112948,24.03,
"Department for Business, Energy and Industrial Strategy",The Coal Authority,01/09/2021,Mileage Payments,PS&S - Industry Claims,Staff Expenses Control,112948,23.16,
"Department for Business, Energy and Industrial Strategy",The Coal Authority,01/09/2021,Mileage Payments,PS&S - Industry Claims,Staff Expenses Control,112948,1.90,
"Department for Business, Energy and Industrial Strategy",The Coal Authority,02/09/2021,Mileage Payments,PS&S - Industry Claims,Staff Expenses Control,112948,5.44,
"Department for Business, Energy and Industrial Strategy",The Coal Authority,02/09/2021,Mileage Payments,PS&S - Industry Claims,Staff Expenses Control,112948,4.84,
"Department for Business, Energy and Industrial Strategy",The Coal Authority,07/09/2021,Mileage Payments,PS&S - Industry Claims,Staff Expenses Control,112948,5.44,
"Department for Business, Energy and Industrial Strategy",The Coal Authority,07/09/2021,Mileage Payments,PS&S - Industry Claims,Staff Expenses Control,112948,4.84,
"Department for Business, Energy and Industrial Strategy",The Coal Authority,08/09/2021,Mileage Payments,ENV - Technical,Staff Expenses Control,112948,42.51,
"Department for Business, Energy and Industrial Strategy",The Coal Authority,08/09/2021,Mileage Payments,ENV - Technical,Staff Expenses Control,112948,42.52,
"Department for Business, Energy and Industrial Strategy",The Coal Authority,13/09/2021,Mileage Payments,PS&S - Industry Claims,Staff Expenses Control,112948,4.83,
"Department for Business, Energy and Industrial Strategy",The Coal Authority,13/09/2021,Mileage Payments,PS&S - Industry Claims,Staff Expenses Control,112948,5.44,
"Department for Business, Energy and Industrial Strategy",The Coal Authority,14/09/2021,Mileage Payments,Innovation By-Product & Services Delivery,Staff Expenses Control,112948,82.94,
"Department for Business, Energy and Industrial Strategy",The Coal Authority,14/09/2021,Mileage Payments,Innovation By-Product & Services Delivery,Staff Expenses Control,112948,82.78,
"Department for Business, Energy and Industrial Strategy",The Coal Authority,14/09/2021,Mileage Payments,Innovation By-Product & Services Delivery,Staff Expenses Control,112948,3.60,
"Department for Business, Energy and Industrial Strategy",The Coal Authority,14/09/2021,Mileage Payments,Innovation By-Product & Services Delivery,Staff Expenses Control,112948,3.66,
"Department for Business, Energy and Industrial Strategy",The Coal Authority,14/09/2021,Mileage Payments,PS&S - Industry Claims,Staff Expenses Control,112948,5.44,
"Department for Business, Energy and Industrial Strategy",The Coal Authority,14/09/2021,Mileage Payments,PS&S - Industry Claims,Staff Expenses Control,112948,4.84,
"Department for Business, Energy and Industrial Strategy",The Coal Authority,17/09/2021,Mileage Payments,Innovation By-Product & Services Delivery,Staff Expenses Control,112948,17.10,
"Department for Business, Energy and Industrial Strategy",The Coal Authority,20/09/2021,Mileage Payments,PS&S - Industry Claims,Staff Expenses Control,112948,50.19,
"Department for Business, Energy and Industrial Strategy",The Coal Authority,20/09/2021,Mileage Payments,PS&S - Industry Claims,Staff Expenses Control,112948,5.14,
"Department for Business, Energy and Industrial Strategy",The Coal Authority,20/09/2021,Mileage Payments,PS&S - Industry Claims,Staff Expenses Control,112948,39.61,
"Department for Business, Energy and Industrial Strategy",The Coal Authority,21/09/2021,Mileage Payments,Innovation By-Product & Services Delivery,Staff Expenses Control,112948,79.33,
"Department for Business, Energy and Industrial Strategy",The Coal Authority,21/09/2021,Mileage Payments,Innovation By-Product & Services Delivery,Staff Expenses Control,112948,79.49,
"Department for Business, Energy and Industrial Strategy",The Coal Authority,21/09/2021,Mileage Payments,PS&S - Industry Claims,Staff Expenses Control,112948,50.20,
"Department for Business, Energy and Industrial Strategy",The Coal Authority,21/09/2021,Mileage Payments,PS&S - Industry Claims,Staff Expenses Control,112948,5.14,
"Department for Business, Energy and Industrial Strategy",The Coal Authority,21/09/2021,Mileage Payments,PS&S - Industry Claims,Staff Expenses Control,112948,39.60,
"Department for Business, Energy and Industrial Strategy",The Coal Authority,22/09/2021,Mileage Payments,Innovation By-Product & Services Delivery,Staff Expenses Control,112948,4.34,
"Department for Business, Energy and Industrial Strategy",The Coal Authority,22/09/2021,Mileage Payments,Innovation By-Product & Services Delivery,Staff Expenses Control,112948,4.56,
"Department for Business, Energy and Industrial Strategy",The Coal Authority,22/09/2021,Mileage Payments,PS&S - Industry Claims,Staff Expenses Control,112948,5.44,
"Department for Business, Energy and Industrial Strategy",The Coal Authority,22/09/2021,Mileage Payments,PS&S - Industry Claims,Staff Expenses Control,112948,4.84,
"Department for Business, Energy and Industrial Strategy",The Coal Authority,23/09/2021,Mileage Payments,Innovation By-Product & Services Delivery,Staff Expenses Control,112948,22.43,
"Department for Business, Energy and Industrial Strategy",The Coal Authority,23/09/2021,Mileage Payments,PS&S - Industry Claims,Staff Expenses Control,112948,33.86,
"Department for Business, Energy and Industrial Strategy",The Coal Authority,23/09/2021,Mileage Payments,PS&S - Industry Claims,Staff Expenses Control,112948,4.84,
"Department for Business, Energy and Industrial Strategy",The Coal Authority,23/09/2021,Mileage Payments,PS&S - Industry Claims,Staff Expenses Control,112948,35.61,
"Department for Business, Energy and Industrial Strategy",The Coal Authority,24/09/2021,Mileage Payments,By-Products - Energy,Staff Expenses Control,112948,47.50,
"Department for Business, Energy and Industrial Strategy",The Coal Authority,24/09/2021,Mileage Payments,By-Products - Energy,Staff Expenses Control,112948,45.37,
"Department for Business, Energy and Industrial Strategy",The Coal Authority,24/09/2021,Mileage Payments,By-Products - Energy,Staff Expenses Control,112948,24.44,
"Department for Business, Energy and Industrial Strategy",The Coal Authority,24/09/2021,Mileage Payments,Innovation By-Product & Services Delivery,Staff Expenses Control,112948,11.70,
"Department for Business, Energy and Industrial Strategy",The Coal Authority,27/09/2021,Mileage Payments,ENV - Technical,Staff Expenses Control,112948,3.50,
"Department for Business, Energy and Industrial Strategy",The Coal Authority,27/09/2021,Mileage Payments,ENV - Technical,Staff Expenses Control,112948,3.38,
"Department for Business, Energy and Industrial Strategy",The Coal Authority,27/09/2021,Mileage Payments,PS&S - General Claims,Staff Expenses Control,112948,85.50,
"Department for Business, Energy and Industrial Strategy",The Coal Authority,27/09/2021,Mileage Payments,PS&S - Industry Claims,Staff Expenses Control,112948,16.50,
"Department for Business, Energy and Industrial Strategy",The Coal Authority,27/09/2021,Mileage Payments,PS&S - Industry Claims,Staff Expenses Control,112948,5.44,
"Department for Business, Energy and Industrial Strategy",The Coal Authority,27/09/2021,Mileage Payments,PS&S - Industry Claims,Staff Expenses Control,112948,4.84,
"Department for Business, Energy and Industrial Strategy",The Coal Authority,28/09/2021,Mileage Payments,ENV - Technical,Staff Expenses Control,112948,1.26,
"Department for Business, Energy and Industrial Strategy",The Coal Authority,28/09/2021,Mileage Payments,ENV - Technical,Staff Expenses Control,112948,0.97,
"Department for Business, Energy and Industrial Strategy",The Coal Authority,28/09/2021,Mileage Payments,ENV - Technical,Staff Expenses Control,112948,1.73,
"Department for Business, Energy and Industrial Strategy",The Coal Authority,28/09/2021,Mileage Payments,ENV - Technical,Staff Expenses Control,112948,19.92,
"Department for Business, Energy and Industrial Strategy",The Coal Authority,28/09/2021,Mileage Payments,ENV - Technical,Staff Expenses Control,112948,0.69,
"Department for Business, Energy and Industrial Strategy",The Coal Authority,28/09/2021,Mileage Payments,ENV - Technical,Staff Expenses Control,112948,1.82,
"Department for Business, Energy and Industrial Strategy",The Coal Authority,28/09/2021,Mileage Payments,ENV - Technical,Staff Expenses Control,112948,0.59,
"Department for Business, Energy and Industrial Strategy",The Coal Authority,28/09/2021,Mileage Payments,ENV - Technical,Staff Expenses Control,112948,0.36,
"Department for Business, Energy and Industrial Strategy",The Coal Authority,28/09/2021,Mileage Payments,ENV - Technical,Staff Expenses Control,112948,1.93,
"Department for Business, Energy and Industrial Strategy",The Coal Authority,28/09/2021,Mileage Payments,ENV - Technical,Staff Expenses Control,112948,1.37,
"Department for Business, Energy and Industrial Strategy",The Coal Authority,28/09/2021,Mileage Payments,ENV - Technical,Staff Expenses Control,112948,21.71,
"Department for Business, Energy and Industrial Strategy",The Coal Authority,28/09/2021,Mileage Payments,PS&S - Industry Claims,Staff Expenses Control,112948,1.57,
"Department for Business, Energy and Industrial Strategy",The Coal Authority,28/09/2021,Mileage Payments,PS&S - Industry Claims,Staff Expenses Control,112948,5.59,
"Department for Business, Energy and Industrial Strategy",The Coal Authority,28/09/2021,Mileage Payments,PS&S - Industry Claims,Staff Expenses Control,112948,21.36,
"Department for Business, Energy and Industrial Strategy",The Coal Authority,28/09/2021,Mileage Payments,PS&S - Industry Claims,Staff Expenses Control,112948,22.77,
"Department for Business, Energy and Industrial Strategy",The Coal Authority,29/09/2021,Mileage Payments,PS&S - Industry Claims,Staff Expenses Control,112948,39.66,
"Department for Business, Energy and Industrial Strategy",The Coal Authority,29/09/2021,Mileage Payments,PS&S - Industry Claims,Staff Expenses Control,112948,5.08,
"Department for Business, Energy and Industrial Strategy",The Coal Authority,29/09/2021,Mileage Payments,PS&S - Industry Claims,Staff Expenses Control,112948,39.49,
"Department for Business, Energy and Industrial Strategy",The Coal Authority,30/09/2021,Mileage Payments,PS&S - Industry Claims,Staff Expenses Control,112948,5.44,
"Department for Business, Energy and Industrial Strategy",The Coal Authority,30/09/2021,Mileage Payments,PS&S - Industry Claims,Staff Expenses Control,112948,4.83,
"Department for Business, Energy and Industrial Strategy",The Coal Authority,07/07/2021,Mileage Payments,ENV - Technical,Staff Expenses Control,113393,24.41,
"Department for Business, Energy and Industrial Strategy",The Coal Authority,07/07/2021,Mileage Payments,ENV - Technical,Staff Expenses Control,113393,30.19,
"Department for Business, Energy and Industrial Strategy",The Coal Authority,07/07/2021,Mileage Payments,ENV - Technical,Staff Expenses Control,113393,41.57,
"Department for Business, Energy and Industrial Strategy",The Coal Authority,21/07/2021,Mileage Payments,ENV - Technical,Staff Expenses Control,113393,17.60,
"Department for Business, Energy and Industrial Strategy",The Coal Authority,21/07/2021,Mileage Payments,ENV - Technical,Staff Expenses Control,113393,17.71,
"Department for Business, Energy and Industrial Strategy",The Coal Authority,01/09/2021,Mileage Payments,"Health, Safety & Wellbeing",Staff Expenses Control,113393,46.35,
"Department for Business, Energy and Industrial Strategy",The Coal Authority,01/09/2021,Mileage Payments,"Health, Safety & Wellbeing",Staff Expenses Control,113393,43.20,
"Department for Business, Energy and Industrial Strategy",The Coal Authority,01/09/2021,Mileage Payments,"Health, Safety & Wellbeing",Staff Expenses Control,113393,13.50,
"Department for Business, Energy and Industrial Strategy",The Coal Authority,08/09/2021,Mileage Payments,"Health, Safety & Wellbeing",Staff Expenses Control,113393,69.30,
"Department for Business, Energy and Industrial Strategy",The Coal Authority,08/09/2021,Mileage Payments,"Health, Safety & Wellbeing",Staff Expenses Control,113393,69.30,
"Department for Business, Energy and Industrial Strategy",The Coal Authority,10/09/2021,Mileage Payments,"Health, Safety & Wellbeing",Staff Expenses Control,113393,3.87,
"Department for Business, Energy and Industrial Strategy",The Coal Authority,14/09/2021,Mileage Payments,Engineering,Staff Expenses Control,113393,9.15,
"Department for Business, Energy and Industrial Strategy",The Coal Authority,16/09/2021,Mileage Payments,Engineering,Staff Expenses Control,113393,9.12,
"Department for Business, Energy and Industrial Strategy",The Coal Authority,17/09/2021,Mileage Payments,PS&S - Industry Claims,Staff Expenses Control,113393,34.00,
"Department for Business, Energy and Industrial Strategy",The Coal Authority,21/09/2021,Mileage Payments,"Health, Safety & Wellbeing",Staff Expenses Control,113393,21.74,
"Department for Business, Energy and Industrial Strategy",The Coal Authority,21/09/2021,Mileage Payments,"Health, Safety & Wellbeing",Staff Expenses Control,113393,21.73,
"Department for Business, Energy and Industrial Strategy",The Coal Authority,22/09/2021,Mileage Payments,PS&S - Industry Claims,Staff Expenses Control,113393,34.00,
"Department for Business, Energy and Industrial Strategy",The Coal Authority,26/09/2021,Mileage Payments,ENV - Technical,Staff Expenses Control,113393,70.68,
"Department for Business, Energy and Industrial Strategy",The Coal Authority,28/09/2021,Mileage Payments,"Health, Safety & Wellbeing",Staff Expenses Control,113393,80.10,
"Department for Business, Energy and Industrial Strategy",The Coal Authority,28/09/2021,Mileage Payments,"Health, Safety & Wellbeing",Staff Expenses Control,113393,32.27,
"Department for Business, Energy and Industrial Strategy",The Coal Authority,29/09/2021,Mileage Payments,"Health, Safety & Wellbeing",Staff Expenses Control,113393,47.70,
"Department for Business, Energy and Industrial Strategy",The Coal Authority,29/09/2021,Mileage Payments,"Health, Safety & Wellbeing",Staff Expenses Control,113393,8.55,
"Department for Business, Energy and Industrial Strategy",The Coal Authority,29/09/2021,Mileage Payments,Heat & By-Product Innovation,Staff Expenses Control,113393,66.71,
"Department for Business, Energy and Industrial Strategy",The Coal Authority,29/09/2021,Mileage Payments,Heat & By-Product Innovation,Staff Expenses Control,113393,17.58,
"Department for Business, Energy and Industrial Strategy",The Coal Authority,29/09/2021,Mileage Payments,Heat & By-Product Innovation,Staff Expenses Control,113393,3.58,
"Department for Business, Energy and Industrial Strategy",The Coal Authority,29/09/2021,Mileage Payments,Heat & By-Product Innovation,Staff Expenses Control,113393,15.36,
"Department for Business, Energy and Industrial Strategy",The Coal Authority,29/09/2021,Mileage Payments,Heat & By-Product Innovation,Staff Expenses Control,113393,60.45,
"Department for Business, Energy and Industrial Strategy",The Coal Authority,29/09/2021,Mileage Payments,Heat & By-Product Innovation,Staff Expenses Control,113393,17.85,
"Department for Business, Energy and Industrial Strategy",The Coal Authority,29/09/2021,Mileage Payments,PS&S - Industry Claims,Staff Expenses Control,113393,100.80,
"Department for Business, Energy and Industrial Strategy",The Coal Authority,30/09/2021,Mileage Payments,Engineering,Staff Expenses Control,113393,11.70,
"Department for Business, Energy and Industrial Strategy",The Coal Authority,30/09/2021,Mileage Payments,Engineering,Staff Expenses Control,113393,11.66,
"Department for Business, Energy and Industrial Strategy",The Coal Authority,30/09/2021,Mileage Payments,"Health, Safety & Wellbeing",Staff Expenses Control,113393,8.55,
"Department for Business, Energy and Industrial Strategy",The Coal Authority,30/09/2021,Mileage Payments,"Health, Safety & Wellbeing",Staff Expenses Control,113393,137.70,
"Department for Business, Energy and Industrial Strategy",The Coal Authority,30/09/2021,Mileage Payments,Heat & By-Product Innovation,Staff Expenses Control,113393,24.10,
"Department for Business, Energy and Industrial Strategy",The Coal Authority,30/09/2021,Mileage Payments,Heat & By-Product Innovation,Staff Expenses Control,113393,24.19,
"Department for Business, Energy and Industrial Strategy",The Coal Authority,01/10/2021,Mileage Payments,ENV - Technical,Staff Expenses Control,113393,72.46,
"Department for Business, Energy and Industrial Strategy",The Coal Authority,05/10/2021,Mileage Payments,Innovation By-Product & Services Delivery,Staff Expenses Control,113393,12.60,
"Department for Business, Energy and Industrial Strategy",The Coal Authority,06/10/2021,Mileage Payments,Innovation By-Product & Services Delivery,Staff Expenses Control,113393,12.60,
"Department for Business, Energy and Industrial Strategy",The Coal Authority,07/10/2021,Mileage Payments,Engineering,Staff Expenses Control,113393,10.97,
"Department for Business, Energy and Industrial Strategy",The Coal Authority,07/10/2021,Mileage Payments,Engineering,Staff Expenses Control,113393,11.27,
"Department for Business, Energy and Industrial Strategy",The Coal Authority,07/10/2021,Mileage Payments,Innovation By-Product & Services Delivery,Staff Expenses Control,113393,34.20,
"Department for Business, Energy and Industrial Strategy",The Coal Authority,09/08/2021,Mileage Payments,PS&S - Industry Claims,Staff Expenses Control,113817,12.60,
"Department for Business, Energy and Industrial Strategy",The Coal Authority,10/08/2021,Mileage Payments,PS&S - Industry Claims,Staff Expenses Control,113817,51.30,
"Department for Business, Energy and Industrial Strategy",The Coal Authority,12/08/2021,Mileage Payments,PS&S - Industry Claims,Staff Expenses Control,113817,51.30,
"Department for Business, Energy and Industrial Strategy",The Coal Authority,25/08/2021,Mileage Payments,PS&S - Industry Claims,Staff Expenses Control,113817,51.30,
"Department for Business, Energy and Industrial Strategy",The Coal Authority,03/09/2021,Mileage Payments,PS&S - Industry Claims,Staff Expenses Control,113817,51.30,
"Department for Business, Energy and Industrial Strategy",The Coal Authority,10/09/2021,Mileage Payments,PS&S - Industry Claims,Staff Expenses Control,113817,35.10,
"Department for Business, Energy and Industrial Strategy",The Coal Authority,14/09/2021,Mileage Payments,ENV - Projects & Delivery,Staff Expenses Control,113817,31.71,
"Department for Business, Energy and Industrial Strategy",The Coal Authority,14/09/2021,Mileage Payments,ENV - Projects & Delivery,Staff Expenses Control,113817,31.42,
"Department for Business, Energy and Industrial Strategy",The Coal Authority,14/09/2021,Mileage Payments,NRW Metal Mine Programme,Staff Expenses Control,113817,72.00,
"Department for Business, Energy and Industrial Strategy",The Coal Authority,16/09/2021,Mileage Payments,ENV - Projects & Delivery,Staff Expenses Control,113817,22.26,
"Department for Business, Energy and Industrial Strategy",The Coal Authority,16/09/2021,Mileage Payments,ENV - Projects & Delivery,Staff Expenses Control,113817,22.13,
"Department for Business, Energy and Industrial Strategy",The Coal Authority,22/09/2021,Mileage Payments,DEFRA LEP Funding,Staff Expenses Control,113817,67.99,
"Department for Business, Energy and Industrial Strategy",The Coal Authority,22/09/2021,Mileage Payments,DEFRA LEP Funding,Staff Expenses Control,113817,73.25,
"Department for Business, Energy and Industrial Strategy",The Coal Authority,22/09/2021,Mileage Payments,DEV - Historic Property Liabilities,Staff Expenses Control,113817,21.60,
"Department for Business, Energy and Industrial Strategy",The Coal Authority,22/09/2021,Mileage Payments,ENV - Mine Water Operations,Staff Expenses Control,113817,72.69,
"Department for Business, Energy and Industrial Strategy",The Coal Authority,22/09/2021,Mileage Payments,ENV - Mine Water Operations,Staff Expenses Control,113817,72.80,
"Department for Business, Energy and Industrial Strategy",The Coal Authority,27/09/2021,Mileage Payments,PS&S - Industry Claims,Staff Expenses Control,113817,12.60,
"Department for Business, Energy and Industrial Strategy",The Coal Authority,29/09/2021,Mileage Payments,ENV - Projects & Delivery,Staff Expenses Control,113817,22.50,
"Department for Business, Energy and Industrial Strategy",The Coal Authority,30/09/2021,Mileage Payments,ENV - Projects & Delivery,Staff Expenses Control,113817,29.70,
"Department for Business, Energy and Industrial Strategy",The Coal Authority,04/10/2021,Mileage Payments,PS&S - Industry Claims,Staff Expenses Control,113817,73.80,
"Department for Business, Energy and Industrial Strategy",The Coal Authority,06/10/2021,Mileage Payments,ENV - Projects & Delivery,Staff Expenses Control,113817,12.60,
"Department for Business, Energy and Industrial Strategy",The Coal Authority,06/10/2021,Mileage Payments,ENV - Projects & Delivery,Staff Expenses Control,113817,12.60,
"Department for Business, Energy and Industrial Strategy",The Coal Authority,07/10/2021,Mileage Payments,ENV - Technical,Staff Expenses Control,113817,118.80,
"Department for Business, Energy and Industrial Strategy",The Coal Authority,07/10/2021,Mileage Payments,Tips Response,Staff Expenses Control,113817,13.05,
"Department for Business, Energy and Industrial Strategy",The Coal Authority,07/10/2021,Mileage Payments,Tips Response,Staff Expenses Control,113817,12.88,
"Department for Business, Energy and Industrial Strategy",The Coal Authority,08/10/2021,Mileage Payments,ENV - Technical,Staff Expenses Control,113817,20.10,
"Department for Business, Energy and Industrial Strategy",The Coal Authority,08/10/2021,Mileage Payments,ENV - Technical,Staff Expenses Control,113817,9.61,
"Department for Business, Energy and Industrial Strategy",The Coal Authority,08/10/2021,Mileage Payments,ENV - Technical,Staff Expenses Control,113817,9.60,
"Department for Business, Energy and Industrial Strategy",The Coal Authority,08/10/2021,Mileage Payments,Tips Response,Staff Expenses Control,113817,14.64,
"Department for Business, Energy and Industrial Strategy",The Coal Authority,08/10/2021,Mileage Payments,Tips Response,Staff Expenses Control,113817,14.38,
"Department for Business, Energy and Industrial Strategy",The Coal Authority,09/10/2021,Mileage Payments,ENV - Technical,Staff Expenses Control,113817,97.65,
"Department for Business, Energy and Industrial Strategy",The Coal Authority,11/10/2021,Mileage Payments,Tips Response,Staff Expenses Control,113817,1.45,
"Department for Business, Energy and Industrial Strategy",The Coal Authority,11/10/2021,Mileage Payments,Tips Response,Staff Expenses Control,113817,1.18,
"Department for Business, Energy and Industrial Strategy",The Coal Authority,12/10/2021,Mileage Payments,Tips Response,Staff Expenses Control,113817,13.05,
"Department for Business, Energy and Industrial Strategy",The Coal Authority,12/10/2021,Mileage Payments,Tips Response,Staff Expenses Control,113817,12.87,
"Department for Business, Energy and Industrial Strategy",The Coal Authority,31/08/2021,Mileage Payments,Tip Management Services,Staff Expenses Control,114289,9.17,
"Department for Business, Energy and Industrial Strategy",The Coal Authority,31/08/2021,Mileage Payments,Tip Management Services,Staff Expenses Control,114289,9.15,
"Department for Business, Energy and Industrial Strategy",The Coal Authority,01/09/2021,Mileage Payments,Tip Management Services,Staff Expenses Control,114289,11.40,
"Department for Business, Energy and Industrial Strategy",The Coal Authority,01/09/2021,Mileage Payments,Tip Management Services,Staff Expenses Control,114289,3.94,
"Department for Business, Energy and Industrial Strategy",The Coal Authority,01/09/2021,Mileage Payments,Tip Management Services,Staff Expenses Control,114289,4.03,
"Department for Business, Energy and Industrial Strategy",The Coal Authority,01/09/2021,Mileage Payments,Tip Management Services,Staff Expenses Control,114289,9.90,
"Department for Business, Energy and Industrial Strategy",The Coal Authority,05/09/2021,Mileage Payments,Heat & By-Product Innovation,Staff Expenses Control,114289,65.25,
"Department for Business, Energy and Industrial Strategy",The Coal Authority,21/09/2021,Mileage Payments,Tip Management Services,Staff Expenses Control,114289,10.43,
"Department for Business, Energy and Industrial Strategy",The Coal Authority,21/09/2021,Mileage Payments,Tip Management Services,Staff Expenses Control,114289,10.26,
"Department for Business, Energy and Industrial Strategy",The Coal Authority,23/09/2021,Mileage Payments,Tip Management Services,Staff Expenses Control,114289,9.71,
"Department for Business, Energy and Industrial Strategy",The Coal Authority,23/09/2021,Mileage Payments,Tip Management Services,Staff Expenses Control,114289,9.54,
"Department for Business, Energy and Industrial Strategy",The Coal Authority,30/09/2021,Mileage Payments,Tip Management Services,Staff Expenses Control,114289,9.71,
"Department for Business, Energy and Industrial Strategy",The Coal Authority,30/09/2021,Mileage Payments,Tip Management Services,Staff Expenses Control,114289,9.54,
"Department for Business, Energy and Industrial Strategy",The Coal Authority,01/10/2021,Mileage Payments,Tip Management Services,Staff Expenses Control,114289,9.50,
"Department for Business, Energy and Industrial Strategy",The Coal Authority,01/10/2021,Mileage Payments,Tip Management Services,Staff Expenses Control,114289,10.84,
"Department for Business, Energy and Industrial Strategy",The Coal Authority,01/10/2021,Mileage Payments,Tip Management Services,Staff Expenses Control,114289,1.16,
"Department for Business, Energy and Industrial Strategy",The Coal Authority,04/10/2021,Mileage Payments,Heat & By-Product Innovation,Staff Expenses Control,114289,56.70,
"Department for Business, Energy and Industrial Strategy",The Coal Authority,04/10/2021,Mileage Payments,Heat & By-Product Innovation,Staff Expenses Control,114289,5.89,
"Department for Business, Energy and Industrial Strategy",The Coal Authority,04/10/2021,Mileage Payments,Heat & By-Product Innovation,Staff Expenses Control,114289,60.75,
"Department for Business, Energy and Industrial Strategy",The Coal Authority,05/10/2021,Mileage Payments,Innovation By-Product & Services Delivery,Staff Expenses Control,114289,64.80,
"Department for Business, Energy and Industrial Strategy",The Coal Authority,05/10/2021,Mileage Payments,Tip Management Services,Staff Expenses Control,114289,22.78,
"Department for Business, Energy and Industrial Strategy",The Coal Authority,05/10/2021,Mileage Payments,Tip Management Services,Staff Expenses Control,114289,18.37,
"Department for Business, Energy and Industrial Strategy",The Coal Authority,05/10/2021,Mileage Payments,Tip Management Services,Staff Expenses Control,114289,12.78,
"Department for Business, Energy and Industrial Strategy",The Coal Authority,06/10/2021,Mileage Payments,Tip Management Services,Staff Expenses Control,114289,10.67,
"Department for Business, Energy and Industrial Strategy",The Coal Authority,07/10/2021,Mileage Payments,Tip Management Services,Staff Expenses Control,114289,12.36,
"Department for Business, Energy and Industrial Strategy",The Coal Authority,07/10/2021,Mileage Payments,Tip Management Services,Staff Expenses Control,114289,12.41,
"Department for Business, Energy and Industrial Strategy",The Coal Authority,08/10/2021,Mileage Payments,DEFRA Metal Mine Programme,Staff Expenses Control,114289,14.40,
"Department for Business, Energy and Industrial Strategy",The Coal Authority,08/10/2021,Mileage Payments,Tip Management Services,Staff Expenses Control,114289,3.26,
"Department for Business, Energy and Industrial Strategy",The Coal Authority,08/10/2021,Mileage Payments,Tip Management Services,Staff Expenses Control,114289,2.46,
"Department for Business, Energy and Industrial Strategy",The Coal Authority,11/10/2021,Mileage Payments,DEFRA Metal Mine Programme,Staff Expenses Control,114289,13.50,
"Department for Business, Energy and Industrial Strategy",The Coal Authority,11/10/2021,Mileage Payments,Tip Management Services,Staff Expenses Control,114289,3.26,
"Department for Business, Energy and Industrial Strategy",The Coal Authority,11/10/2021,Mileage Payments,Tip Management Services,Staff Expenses Control,114289,2.45,
"Department for Business, Energy and Industrial Strategy",The Coal Authority,12/10/2021,Mileage Payments,DEFRA Metal Mine Programme,Staff Expenses Control,114289,14.40,
"Department for Business, Energy and Industrial Strategy",The Coal Authority,12/10/2021,Mileage Payments,DEFRA Metal Mine Programme,Staff Expenses Control,114289,2.14,
"Department for Business, Energy and Industrial Strategy",The Coal Authority,12/10/2021,Mileage Payments,DEFRA Metal Mine Programme,Staff Expenses Control,114289,13.50,
"Department for Business, Energy and Industrial Strategy",The Coal Authority,13/10/2021,Mileage Payments,Innovation By-Product & Services Delivery,Staff Expenses Control,114289,21.60,
"Department for Business, Energy and Industrial Strategy",The Coal Authority,14/10/2021,Mileage Payments,DEFRA Metal Mine Programme,Staff Expenses Control,114289,45.90,
"Department for Business, Energy and Industrial Strategy",The Coal Authority,14/10/2021,Mileage Payments,Engineering,Staff Expenses Control,114289,9.45,
"Department for Business, Energy and Industrial Strategy",The Coal Authority,14/10/2021,Mileage Payments,Engineering,Staff Expenses Control,114289,9.45,
"Department for Business, Energy and Industrial Strategy",The Coal Authority,14/10/2021,Mileage Payments,Innovation By-Product & Services Delivery,Staff Expenses Control,114289,65.25,
"Department for Business, Energy and Industrial Strategy",The Coal Authority,14/10/2021,Mileage Payments,Innovation By-Product & Services Delivery,Staff Expenses Control,114289,35.15,
"Department for Business, Energy and Industrial Strategy",The Coal Authority,14/10/2021,Mileage Payments,Innovation By-Product & Services Delivery,Staff Expenses Control,114289,34.20,
"Department for Business, Energy and Industrial Strategy",The Coal Authority,14/10/2021,Mileage Payments,Tip Management Services,Staff Expenses Control,114289,0.52,
"Department for Business, Energy and Industrial Strategy",The Coal Authority,14/10/2021,Mileage Payments,Tip Management Services,Staff Expenses Control,114289,3.48,
"Department for Business, Energy and Industrial Strategy",The Coal Authority,14/10/2021,Mileage Payments,Tip Management Services,Staff Expenses Control,114289,3.73,
"Department for Business, Energy and Industrial Strategy",The Coal Authority,15/10/2021,Mileage Payments,Tip Management Services,Staff Expenses Control,114289,3.43,
"Department for Business, Energy and Industrial Strategy",The Coal Authority,15/10/2021,Mileage Payments,Tip Management Services,Staff Expenses Control,114289,0.82,
"Department for Business, Energy and Industrial Strategy",The Coal Authority,15/10/2021,Mileage Payments,Tip Management Services,Staff Expenses Control,114289,3.50,
"Department for Business, Energy and Industrial Strategy",The Coal Authority,18/10/2021,Mileage Payments,Tip Management Services,Staff Expenses Control,114289,3.02,
"Department for Business, Energy and Industrial Strategy",The Coal Authority,18/10/2021,Mileage Payments,Tip Management Services,Staff Expenses Control,114289,3.69,
"Department for Business, Energy and Industrial Strategy",The Coal Authority,19/10/2021,Mileage Payments,DEV - Management,Staff Expenses Control,114289,77.85,
"Department for Business, Energy and Industrial Strategy",The Coal Authority,19/10/2021,Mileage Payments,Tip Management Services,Staff Expenses Control,114289,4.53,
"Department for Business, Energy and Industrial Strategy",The Coal Authority,19/10/2021,Mileage Payments,Tip Management Services,Staff Expenses Control,114289,4.42,
"Department for Business, Energy and Industrial Strategy",The Coal Authority,20/10/2021,Mileage Payments,Tip Management Services,Staff Expenses Control,114289,4.98,
"Department for Business, Energy and Industrial Strategy",The Coal Authority,20/10/2021,Mileage Payments,Tip Management Services,Staff Expenses Control,114289,4.94,
"Department for Business, Energy and Industrial Strategy",The Coal Authority,21/10/2021,Mileage Payments,DEV - Management,Staff Expenses Control,114289,23.85,
"Department for Business, Energy and Industrial Strategy",The Coal Authority,21/10/2021,Mileage Payments,DEV - Management,Staff Expenses Control,114289,94.95,
"Department for Business, Energy and Industrial Strategy",The Coal Authority,21/10/2021,Mileage Payments,Engineering,Staff Expenses Control,114289,9.45,
"Department for Business, Energy and Industrial Strategy",The Coal Authority,21/10/2021,Mileage Payments,Engineering,Staff Expenses Control,114289,9.45,
"Department for Business, Energy and Industrial Strategy",The Coal Authority,21/10/2021,Mileage Payments,Tip Management Services,Staff Expenses Control,114289,1.34,
"Department for Business, Energy and Industrial Strategy",The Coal Authority,21/10/2021,Mileage Payments,Tip Management Services,Staff Expenses Control,114289,0.91,
"Department for Business, Energy and Industrial Strategy",The Coal Authority,21/10/2021,Mileage Payments,Tip Management Services,Staff Expenses Control,114289,1.56,
"Department for Business, Energy and Industrial Strategy",The Coal Authority,06/10/2021,Mine Entry Inspection - Contractor Costs,PS&S - General Claims,Thomas Menzies Builders Ltd,113179,61.48,
"Department for Business, Energy and Industrial Strategy",The Coal Authority,06/10/2021,Mine Entry Inspection - Contractor Costs,PS&S - General Claims,Thomas Menzies Builders Ltd,113179,18.64,
"Department for Business, Energy and Industrial Strategy",The Coal Authority,06/10/2021,Mine Entry Inspection - Contractor Costs,PS&S - General Claims,Thomas Menzies Builders Ltd,113179,975.00,
"Department for Business, Energy and Industrial Strategy",The Coal Authority,06/10/2021,Mine Entry Inspection - Contractor Costs,PS&S - General Claims,Thomas Menzies Builders Ltd,113179,987.00,
"Department for Business, Energy and Industrial Strategy",The Coal Authority,06/10/2021,Mine Entry Inspection - Contractor Costs,PS&S - General Claims,Thomas Menzies Builders Ltd,113179,300.00,
"Department for Business, Energy and Industrial Strategy",The Coal Authority,06/10/2021,Mine Entry Inspection - Contractor Costs,PS&S - General Claims,Thomas Menzies Builders Ltd,113179,65.68,
"Department for Business, Energy and Industrial Strategy",The Coal Authority,06/10/2021,Mine Entry Inspection - Contractor Costs,PS&S - General Claims,Thomas Menzies Builders Ltd,113179,68.82,
"Department for Business, Energy and Industrial Strategy",The Coal Authority,06/10/2021,Mine Entry Inspection - Contractor Costs,PS&S - General Claims,Thomas Menzies Builders Ltd,113179,198.00,
"Department for Business, Energy and Industrial Strategy",The Coal Authority,06/10/2021,Mine Entry Inspection - Contractor Costs,PS&S - General Claims,Thomas Menzies Builders Ltd,113179,180.00,
"Department for Business, Energy and Industrial Strategy",The Coal Authority,06/10/2021,Mine Entry Inspection - Contractor Costs,PS&S - General Claims,Thomas Menzies Builders Ltd,113179,110.60,
"Department for Business, Energy and Industrial Strategy",The Coal Authority,06/10/2021,Mine Entry Inspection - Contractor Costs,PS&S - General Claims,Thomas Menzies Builders Ltd,113179,50.00,
"Department for Business, Energy and Industrial Strategy",The Coal Authority,06/10/2021,Mine Entry Inspection - Contractor Costs,PS&S - General Claims,Thomas Menzies Builders Ltd,113179,67.33,
"Department for Business, Energy and Industrial Strategy",The Coal Authority,28/09/2021,Mine Entry Inspection - Contractor Costs,Tips Response,Socotec,113293,"11,965.80",
"Department for Business, Energy and Industrial Strategy",The Coal Authority,30/09/2021,Mine Entry Inspection - Contractor Costs,Tips Response,Interlocks Surveys,113886,"8,946.00",
"Department for Business, Energy and Industrial Strategy",The Coal Authority,22/10/2021,Minewater Chemicals - Operational Sites,DEFRA Metal Mine Programme,John F Hunt Regeneration Ltd,114214,"10,139.14",
"Department for Business, Energy and Industrial Strategy",The Coal Authority,18/10/2021,Minewater Contractor Add. Task Order - Ops Site,ENV - Mine Water Operations,Severn Trent Serv Ops Uk Ltd,113821,"-1,063.02",
"Department for Business, Energy and Industrial Strategy",The Coal Authority,13/10/2021,Minewater Contractor Add. Task Order - Ops Site,ENV - Mine Water Operations,Severn Trent Serv Ops Uk Ltd,113822,"1,063.02",
"Department for Business, Energy and Industrial Strategy",The Coal Authority,22/10/2021,Minewater Contractor Add. Task Order - Ops Site,DEFRA Metal Mine Programme,John F Hunt Regeneration Ltd,114214,"1,994.03",
"Department for Business, Energy and Industrial Strategy",The Coal Authority,13/10/2021,Minewater Contractor Maint. Visits - Ops Site,ENV - Mine Water Operations,Severn Trent Serv Ops Uk Ltd,113795,"4,818.18",
"Department for Business, Energy and Industrial Strategy",The Coal Authority,13/10/2021,Minewater Contractor Maint. Visits - Ops Site,ENV - Mine Water Operations,Severn Trent Serv Ops Uk Ltd,113796,"6,110.40",
"Department for Business, Energy and Industrial Strategy",The Coal Authority,13/10/2021,Minewater Contractor Maint. Visits - Ops Site,ENV - Mine Water Operations,Severn Trent Serv Ops Uk Ltd,113800,"322,351.26",
"Department for Business, Energy and Industrial Strategy",The Coal Authority,13/10/2021,Minewater Contractor Maint. Visits - Ops Site,ENV - Mine Water Operations,Severn Trent Serv Ops Uk Ltd,113822,"1,889.84",
"Department for Business, Energy and Industrial Strategy",The Coal Authority,13/10/2021,Minewater Contractor Maint. Visits - Ops Site,ENV - Mine Water Operations,Severn Trent Serv Ops Uk Ltd,113822,"47,135.61",
"Department for Business, Energy and Industrial Strategy",The Coal Authority,01/10/2021,Minewater Contractor Maint. Visits - Ops Site,ENV - Mine Water Operations,National Coal Mining Museum,114215,"7,476.42",
"Department for Business, Energy and Industrial Strategy",The Coal Authority,05/10/2021,Minewater Cost Benefit Analysis,DEFRA Metal Mine Programme,Idox Software Ltd,113141,"4,980.00",
"Department for Business, Energy and Industrial Strategy",The Coal Authority,30/09/2021,Minewater Discharge Consents,ENV - Mine Water Operations,Sepa,113453,"1,748.53",
"Department for Business, Energy and Industrial Strategy",The Coal Authority,30/09/2021,Minewater Discharge Consents,ENV - Mine Water Operations,Sepa,113454,"1,748.53",
"Department for Business, Energy and Industrial Strategy",The Coal Authority,30/09/2021,Minewater Discharge Consents,ENV - Mine Water Operations,Sepa,113455,"1,748.53",
"Department for Business, Energy and Industrial Strategy",The Coal Authority,30/09/2021,Minewater Discharge Consents,ENV - Mine Water Operations,Sepa,113456,"4,706.81",
"Department for Business, Energy and Industrial Strategy",The Coal Authority,30/09/2021,Minewater Discharge Consents,ENV - Mine Water Operations,Sepa,113457,"3,747.87",
"Department for Business, Energy and Industrial Strategy",The Coal Authority,30/09/2021,Minewater Discharge Consents,ENV - Mine Water Operations,Sepa,113458,"1,731.41",
"Department for Business, Energy and Industrial Strategy",The Coal Authority,30/09/2021,Minewater Discharge Consents,ENV - Mine Water Operations,Sepa,113459,"2,766.63",
"Department for Business, Energy and Industrial Strategy",The Coal Authority,30/09/2021,Minewater Discharge Consents,ENV - Mine Water Operations,Sepa,113461,"2,766.63",
"Department for Business, Energy and Industrial Strategy",The Coal Authority,30/09/2021,Minewater Discharge Consents,ENV - Mine Water Operations,Sepa,113462,"3,789.70",
"Department for Business, Energy and Industrial Strategy",The Coal Authority,30/09/2021,Minewater Discharge Consents,ENV - Mine Water Operations,Sepa,113464,"2,766.63",
"Department for Business, Energy and Industrial Strategy",The Coal Authority,30/09/2021,Minewater Discharge Consents,ENV - Mine Water Operations,Sepa,114164,"1,748.53",
"Department for Business, Energy and Industrial Strategy",The Coal Authority,30/09/2021,Minewater Feasibility / Scoping,NRW Metal Mine Programme,Ceredigion County Council,112870,"1,939.64",
"Department for Business, Energy and Industrial Strategy",The Coal Authority,15/10/2021,Minewater Feasibility / Scoping,NRW Metal Mine Programme,Byfield Environment and Ecology Ltd.,114334,225.00,
"Department for Business, Energy and Industrial Strategy",The Coal Authority,15/10/2021,Minewater Feasibility / Scoping,NRW Metal Mine Programme,Byfield Environment and Ecology Ltd.,114334,225.00,
"Department for Business, Energy and Industrial Strategy",The Coal Authority,10/09/2021,Minewater Land Agents (Acquisitions),PS&S - General Claims,Government Procurement Card,114630,50.00,
"Department for Business, Energy and Industrial Strategy",The Coal Authority,30/09/2021,Minewater Liability & Monitoring Sites - Ad-hoc,ENV - Technical,Sepa,113463,"2,766.63",
"Department for Business, Energy and Industrial Strategy",The Coal Authority,13/10/2021,Minewater Liability & Monitoring Sites - Ad-hoc,ENV - Mine Water Operations,Severn Trent Serv Ops Uk Ltd,113822,"1,311.76",
"Department for Business, Energy and Industrial Strategy",The Coal Authority,30/09/2021,Minewater Liability & Monitoring Sites - Ad-hoc,ENV - Technical,Sepa,114163,"2,766.63",
"Department for Business, Energy and Industrial Strategy",The Coal Authority,22/10/2021,Minewater Management Fees,DEFRA Metal Mine Programme,John F Hunt Regeneration Ltd,114214,"36,373.99",
"Department for Business, Energy and Industrial Strategy",The Coal Authority,30/09/2021,Minewater Monitoring & Flow Measurement,DEFRA Metal Mine Programme,Hydro-Logic Services Int Limited,112806,919.50,
"Department for Business, Energy and Industrial Strategy",The Coal Authority,30/09/2021,Minewater Monitoring & Flow Measurement,DEFRA Metal Mine Programme,Hydro-Logic Services Int Limited,112806,919.50,
"Department for Business, Energy and Industrial Strategy",The Coal Authority,28/09/2021,Minewater Monitoring & Flow Measurement,ENV - Projects & Delivery,Hydro-Logic Services Int Limited,112835,"2,500.00",
"Department for Business, Energy and Industrial Strategy",The Coal Authority,26/10/2021,Minewater Monitoring & Flow Measurement,NRW Metal Mine Programme,Hydro-Logic Services Int Limited,114540,894.00,
"Department for Business, Energy and Industrial Strategy",The Coal Authority,07/10/2021,Minewater Power Costs,DEFRA Metal Mine Programme,Edf Energy,113724,"29,325.98",
"Department for Business, Energy and Industrial Strategy",The Coal Authority,07/10/2021,Minewater Power Costs,DEFRA Metal Mine Programme,Edf Energy,113724,"2,534.63",
"Department for Business, Energy and Industrial Strategy",The Coal Authority,07/10/2021,Minewater Power Costs,ENV - Mine Water Operations,Edf Energy,113724,"1,053.14",
"Department for Business, Energy and Industrial Strategy",The Coal Authority,07/10/2021,Minewater Power Costs,ENV - Mine Water Operations,Edf Energy,113724,632.88,
"Department for Business, Energy and Industrial Strategy",The Coal Authority,07/10/2021,Minewater Power Costs,ENV - Mine Water Operations,Edf Energy,113724,"11,681.47",
"Department for Business, Energy and Industrial Strategy",The Coal Authority,07/10/2021,Minewater Power Costs,ENV - Mine Water Operations,Edf Energy,113724,"2,867.06",
"Department for Business, Energy and Industrial Strategy",The Coal Authority,07/10/2021,Minewater Power Costs,ENV - Mine Water Operations,Edf Energy,113724,18.85,
"Department for Business, Energy and Industrial Strategy",The Coal Authority,07/10/2021,Minewater Power Costs,ENV - Mine Water Operations,Edf Energy,113724,"6,200.49",
"Department for Business, Energy and Industrial Strategy",The Coal Authority,07/10/2021,Minewater Power Costs,ENV - Mine Water Operations,Edf Energy,113724,"1,026.47",
"Department for Business, Energy and Industrial Strategy",The Coal Authority,07/10/2021,Minewater Power Costs,ENV - Mine Water Operations,Edf Energy,113724,54.70,
"Department for Business, Energy and Industrial Strategy",The Coal Authority,07/10/2021,Minewater Power Costs,ENV - Mine Water Operations,Edf Energy,113724,596.69,
"Department for Business, Energy and Industrial Strategy",The Coal Authority,07/10/2021,Minewater Power Costs,ENV - Mine Water Operations,Edf Energy,113724,"3,142.70",
"Department for Business, Energy and Industrial Strategy",The Coal Authority,07/10/2021,Minewater Power Costs,ENV - Mine Water Operations,Edf Energy,113724,21.92,
"Department for Business, Energy and Industrial Strategy",The Coal Authority,07/10/2021,Minewater Power Costs,ENV - Mine Water Operations,Edf Energy,113724,48.12,
"Department for Business, Energy and Industrial Strategy",The Coal Authority,07/10/2021,Minewater Power Costs,ENV - Mine Water Operations,Edf Energy,113724,"1,878.20",
"Department for Business, Energy and Industrial Strategy",The Coal Authority,07/10/2021,Minewater Power Costs,ENV - Mine Water Operations,Edf Energy,113724,"5,212.31",
"Department for Business, Energy and Industrial Strategy",The Coal Authority,07/10/2021,Minewater Power Costs,ENV - Mine Water Operations,Edf Energy,113724,140.70,
"Department for Business, Energy and Industrial Strategy",The Coal Authority,07/10/2021,Minewater Power Costs,ENV - Mine Water Operations,Edf Energy,113724,"1,074.01",
"Department for Business, Energy and Industrial Strategy",The Coal Authority,07/10/2021,Minewater Power Costs,ENV - Mine Water Operations,Edf Energy,113724,281.75,
"Department for Business, Energy and Industrial Strategy",The Coal Authority,07/10/2021,Minewater Power Costs,ENV - Mine Water Operations,Edf Energy,113724,"16,920.66",
"Department for Business, Energy and Industrial Strategy",The Coal Authority,07/10/2021,Minewater Power Costs,ENV - Mine Water Operations,Edf Energy,113724,86.46,
"Department for Business, Energy and Industrial Strategy",The Coal Authority,07/10/2021,Minewater Power Costs,ENV - Mine Water Operations,Edf Energy,113724,"13,809.92",
"Department for Business, Energy and Industrial Strategy",The Coal Authority,07/10/2021,Minewater Power Costs,ENV - Mine Water Operations,Edf Energy,113724,"2,241.67",
"Department for Business, Energy and Industrial Strategy",The Coal Authority,07/10/2021,Minewater Power Costs,ENV - Mine Water Operations,Edf Energy,113724,"2,325.93",
"Department for Business, Energy and Industrial Strategy",The Coal Authority,07/10/2021,Minewater Power Costs,ENV - Mine Water Operations,Edf Energy,113724,238.76,
"Department for Business, Energy and Industrial Strategy",The Coal Authority,07/10/2021,Minewater Power Costs,ENV - Mine Water Operations,Edf Energy,113724,900.42,
"Department for Business, Energy and Industrial Strategy",The Coal Authority,07/10/2021,Minewater Power Costs,ENV - Mine Water Operations,Edf Energy,113724,736.08,
"Department for Business, Energy and Industrial Strategy",The Coal Authority,07/10/2021,Minewater Power Costs,ENV - Mine Water Operations,Edf Energy,113724,876.95,
"Department for Business, Energy and Industrial Strategy",The Coal Authority,07/10/2021,Minewater Power Costs,ENV - Mine Water Operations,Edf Energy,113724,"1,491.27",
"Department for Business, Energy and Industrial Strategy",The Coal Authority,07/10/2021,Minewater Power Costs,ENV - Mine Water Operations,Edf Energy,113724,"2,209.35",
"Department for Business, Energy and Industrial Strategy",The Coal Authority,07/10/2021,Minewater Power Costs,ENV - Mine Water Operations,Edf Energy,113724,828.42,
"Department for Business, Energy and Industrial Strategy",The Coal Authority,07/10/2021,Minewater Power Costs,ENV - Mine Water Operations,Edf Energy,113724,"3,713.66",
"Department for Business, Energy and Industrial Strategy",The Coal Authority,07/10/2021,Minewater Power Costs,ENV - Mine Water Operations,Edf Energy,113724,"5,015.41",
"Department for Business, Energy and Industrial Strategy",The Coal Authority,07/10/2021,Minewater Power Costs,ENV - Mine Water Operations,Edf Energy,113724,426.17,
"Department for Business, Energy and Industrial Strategy",The Coal Authority,07/10/2021,Minewater Power Costs,ENV - Mine Water Operations,Edf Energy,113724,"11,319.81",
"Department for Business, Energy and Industrial Strategy",The Coal Authority,07/10/2021,Minewater Power Costs,ENV - Mine Water Operations,Edf Energy,113724,"13,639.42",
"Department for Business, Energy and Industrial Strategy",The Coal Authority,07/10/2021,Minewater Power Costs,ENV - Mine Water Operations,Edf Energy,113724,728.68,
"Department for Business, Energy and Industrial Strategy",The Coal Authority,07/10/2021,Minewater Power Costs,ENV - Mine Water Operations,Edf Energy,113724,287.95,
"Department for Business, Energy and Industrial Strategy",The Coal Authority,07/10/2021,Minewater Power Costs,ENV - Mine Water Operations,Edf Energy,113724,"8,083.72",
"Department for Business, Energy and Industrial Strategy",The Coal Authority,07/10/2021,Minewater Power Costs,ENV - Mine Water Operations,Edf Energy,113724,"4,125.07",
"Department for Business, Energy and Industrial Strategy",The Coal Authority,07/10/2021,Minewater Power Costs,ENV - Mine Water Operations,Edf Energy,113724,"16,460.77",
"Department for Business, Energy and Industrial Strategy",The Coal Authority,07/10/2021,Minewater Power Costs,ENV - Mine Water Operations,Edf Energy,113724,25.60,
"Department for Business, Energy and Industrial Strategy",The Coal Authority,07/10/2021,Minewater Power Costs,ENV - Mine Water Operations,Edf Energy,113724,"1,206.81",
"Department for Business, Energy and Industrial Strategy",The Coal Authority,07/10/2021,Minewater Power Costs,ENV - Mine Water Operations,Edf Energy,113724,"2,215.30",
"Department for Business, Energy and Industrial Strategy",The Coal Authority,07/10/2021,Minewater Power Costs,ENV - Mine Water Operations,Edf Energy,113724,"4,226.19",
"Department for Business, Energy and Industrial Strategy",The Coal Authority,07/10/2021,Minewater Power Costs,ENV - Mine Water Operations,Edf Energy,113724,"6,638.40",
"Department for Business, Energy and Industrial Strategy",The Coal Authority,07/10/2021,Minewater Power Costs,ENV - Mine Water Operations,Edf Energy,113724,"7,188.38",
"Department for Business, Energy and Industrial Strategy",The Coal Authority,07/10/2021,Minewater Power Costs,ENV - Mine Water Operations,Edf Energy,113724,615.77,
"Department for Business, Energy and Industrial Strategy",The Coal Authority,07/10/2021,Minewater Power Costs,ENV - Mine Water Operations,Edf Energy,113724,"8,644.59",
"Department for Business, Energy and Industrial Strategy",The Coal Authority,07/10/2021,Minewater Power Costs,ENV - Mine Water Operations,Edf Energy,113724,"15,004.92",
"Department for Business, Energy and Industrial Strategy",The Coal Authority,07/10/2021,Minewater Power Costs,ENV - Mine Water Operations,Edf Energy,113724,"18,710.94",
"Department for Business, Energy and Industrial Strategy",The Coal Authority,07/10/2021,Minewater Power Costs,ENV - Mine Water Operations,Edf Energy,113724,125.86,
"Department for Business, Energy and Industrial Strategy",The Coal Authority,07/10/2021,Minewater Power Costs,ENV - Mine Water Operations,Edf Energy,113724,606.71,
"Department for Business, Energy and Industrial Strategy",The Coal Authority,07/10/2021,Minewater Power Costs,ENV - Mine Water Operations,Edf Energy,113724,"3,100.59",
"Department for Business, Energy and Industrial Strategy",The Coal Authority,05/10/2021,Minewater Power Costs,DEFRA Metal Mine Programme,Wheal Jane Ltd,114165,"1,767.63",
"Department for Business, Energy and Industrial Strategy",The Coal Authority,13/10/2021,Minewater Pump Overhauls,ENV - Mine Water Operations,Severn Trent Serv Ops Uk Ltd,113822,"10,137.88",
"Department for Business, Energy and Industrial Strategy",The Coal Authority,13/10/2021,Minewater Pump Overhauls,ENV - Mine Water Operations,Severn Trent Serv Ops Uk Ltd,113822,"16,222.07",
"Department for Business, Energy and Industrial Strategy",The Coal Authority,13/10/2021,Minewater Pump Overhauls,ENV - Mine Water Operations,Severn Trent Serv Ops Uk Ltd,113822,146.10,
"Department for Business, Energy and Industrial Strategy",The Coal Authority,07/10/2021,Minewater Pumping Tests,ENV - Projects & Delivery,Edf Energy,113724,116.67,
"Department for Business, Energy and Industrial Strategy",The Coal Authority,13/10/2021,Minewater Pumping Tests,ENV - Mine Water Operations,Severn Trent Serv Ops Uk Ltd,113822,"6,510.00",
"Department for Business, Energy and Industrial Strategy",The Coal Authority,13/10/2021,Minewater Pumping Tests,ENV - Mine Water Operations,Severn Trent Serv Ops Uk Ltd,113822,169.26,
"Department for Business, Energy and Industrial Strategy",The Coal Authority,13/10/2021,Minewater Pumping Tests,ENV - Projects & Delivery,Severn Trent Serv Ops Uk Ltd,113822,479.41,
"Department for Business, Energy and Industrial Strategy",The Coal Authority,13/10/2021,Minewater Pumping Tests,ENV - Projects & Delivery,Severn Trent Serv Ops Uk Ltd,113822,632.94,
"Department for Business, Energy and Industrial Strategy",The Coal Authority,13/10/2021,Minewater Pumping Tests,ENV - Projects & Delivery,Severn Trent Serv Ops Uk Ltd,113822,19.59,
"Department for Business, Energy and Industrial Strategy",The Coal Authority,13/10/2021,Minewater Pumping Tests,ENV - Projects & Delivery,Severn Trent Serv Ops Uk Ltd,113822,"3,219.44",
"Department for Business, Energy and Industrial Strategy",The Coal Authority,13/10/2021,Minewater Pumping Tests,ENV - Projects & Delivery,Severn Trent Serv Ops Uk Ltd,113822,981.73,
"Department for Business, Energy and Industrial Strategy",The Coal Authority,13/10/2021,Minewater Pumping Tests,ENV - Technical,Severn Trent Serv Ops Uk Ltd,113822,527.81,
"Department for Business, Energy and Industrial Strategy",The Coal Authority,13/10/2021,Minewater Pumping Tests,ENV - Technical,Severn Trent Serv Ops Uk Ltd,113822,"6,316.39",
"Department for Business, Energy and Industrial Strategy",The Coal Authority,13/10/2021,Minewater Pumping Tests,ENV - Technical,Severn Trent Serv Ops Uk Ltd,113822,"4,915.24",
"Department for Business, Energy and Industrial Strategy",The Coal Authority,30/09/2021,Minewater Rates,ENV - Mine Water Operations,Merthyr Tydfil Cbc,113460,"6,687.50",
"Department for Business, Energy and Industrial Strategy",The Coal Authority,13/10/2021,Minewater Remediation,ENV - Mine Water Operations,Severn Trent Serv Ops Uk Ltd,113822,663.67,
"Department for Business, Energy and Industrial Strategy",The Coal Authority,13/10/2021,Minewater Remediation,ENV - Mine Water Operations,Severn Trent Serv Ops Uk Ltd,113822,118.30,
"Department for Business, Energy and Industrial Strategy",The Coal Authority,13/10/2021,Minewater Remediation,ENV - Mine Water Operations,Severn Trent Serv Ops Uk Ltd,113822,258.25,
"Department for Business, Energy and Industrial Strategy",The Coal Authority,13/10/2021,Minewater Remediation,ENV - Mine Water Operations,Severn Trent Serv Ops Uk Ltd,113822,40.60,
"Department for Business, Energy and Industrial Strategy",The Coal Authority,13/10/2021,Minewater Remediation,ENV - Mine Water Operations,Severn Trent Serv Ops Uk Ltd,113822,0.01,
"Department for Business, Energy and Industrial Strategy",The Coal Authority,24/09/2021,Minewater Rent,DEFRA Metal Mine Programme,Wharton Estates,112904,758.16,
"Department for Business, Energy and Industrial Strategy",The Coal Authority,04/10/2021,Minewater Rent,DEFRA Metal Mine Programme,Wharton Estates,113046,"8,541.68",
"Department for Business, Energy and Industrial Strategy",The Coal Authority,04/10/2021,Minewater Rent,DEFRA Metal Mine Programme,Wharton Estates,113047,989.66,
"Department for Business, Energy and Industrial Strategy",The Coal Authority,01/01/2021,Minewater Rent,ENV - Mine Water Operations,S W Fraser 1992 Sett Fund B,113403,20.00,
"Department for Business, Energy and Industrial Strategy",The Coal Authority,06/10/2021,Minewater Rent,ENV - Mine Water Operations,Rental Payment,113486,"17,899.37",
"Department for Business, Energy and Industrial Strategy",The Coal Authority,09/11/2020,Minewater Rent,ENV - Mine Water Operations,Wemyss Estates Trustees,113488,"1,300.00",
"Department for Business, Energy and Industrial Strategy",The Coal Authority,21/12/2020,Minewater Rent,ENV - Mine Water Operations,Northumberland County Council,113489,5.00,
"Department for Business, Energy and Industrial Strategy",The Coal Authority,06/10/2021,Minewater Rent,ENV - Mine Water Operations,Balgonie Estates Ltd,113491,150.00,
"Department for Business, Energy and Industrial Strategy",The Coal Authority,06/10/2021,Minewater Rent,ENV - Mine Water Operations,Rental Payment,113492,100.00,
"Department for Business, Energy and Industrial Strategy",The Coal Authority,06/10/2021,Minewater Rent,ENV - Mine Water Operations,Rental Payment,113493,100.00,
"Department for Business, Energy and Industrial Strategy",The Coal Authority,06/10/2021,Minewater Rent,ENV - Mine Water Operations,Rental Payment,113502,555.78,
"Department for Business, Energy and Industrial Strategy",The Coal Authority,11/08/2021,Minewater Rent,ENV - Mine Water Operations,Harbour House Farm,113503,"29,465.33",
"Department for Business, Energy and Industrial Strategy",The Coal Authority,12/10/2021,Minewater Rent,ENV - Mine Water Operations,Forest Enterprise Scotland,113504,"3,101.20",
"Department for Business, Energy and Industrial Strategy",The Coal Authority,12/03/2021,Minewater Rent,ENV - Mine Water Operations,Savills Uk Ltd Client Recpt A/c,113615,410.00,
"Department for Business, Energy and Industrial Strategy",The Coal Authority,20/10/2021,Minewater Rent,ENV - Mine Water Operations,Harbour House Farm,114453,"1,131.74",
"Department for Business, Energy and Industrial Strategy",The Coal Authority,11/10/2021,Minewater Rent,ENV - Mine Water Operations,Lambton Estates No 2 Acct,114454,50.00,
"Department for Business, Energy and Industrial Strategy",The Coal Authority,01/11/2021,Minewater Rent,ENV - Mine Water Operations,Wentworth Joint Estates,114605,250.00,
"Department for Business, Energy and Industrial Strategy",The Coal Authority,30/09/2021,Minewater Sampling - 'Non-operational' Sites,DEFRA Metal Mine Programme,Socotec,113180,60.38,
"Department for Business, Energy and Industrial Strategy",The Coal Authority,30/09/2021,Minewater Sampling - 'Non-operational' Sites,DEFRA Metal Mine Programme,Socotec,113180,60.38,
"Department for Business, Energy and Industrial Strategy",The Coal Authority,30/09/2021,Minewater Sampling - 'Non-operational' Sites,DEFRA Metal Mine Programme,Socotec,113180,10.00,
"Department for Business, Energy and Industrial Strategy",The Coal Authority,30/09/2021,Minewater Sampling - 'Non-operational' Sites,DEFRA Metal Mine Programme,Socotec,113180,10.00,
"Department for Business, Energy and Industrial Strategy",The Coal Authority,07/10/2021,Minewater Sampling - 'Non-operational' Sites,DEFRA Metal Mine Programme,Ramboll Uk Ltd,113327,"3,000.00",
"Department for Business, Energy and Industrial Strategy",The Coal Authority,13/10/2021,Minewater Sampling - 'Non-operational' Sites,ENV - Projects & Delivery,Severn Trent Serv Ops Uk Ltd,113822,20.00,
"Department for Business, Energy and Industrial Strategy",The Coal Authority,13/10/2021,Minewater Sampling - 'Non-operational' Sites,ENV - Projects & Delivery,Severn Trent Serv Ops Uk Ltd,113822,313.68,
"Department for Business, Energy and Industrial Strategy",The Coal Authority,08/10/2021,Minewater Sampling - Operational Sites,ENV - Mine Water Operations,Socotec,113360,421.32,
"Department for Business, Energy and Industrial Strategy",The Coal Authority,13/10/2021,Minewater Sampling - Operational Sites,ENV - Projects & Delivery,Severn Trent Serv Ops Uk Ltd,113822,57.80,
"Department for Business, Energy and Industrial Strategy",The Coal Authority,13/10/2021,Minewater Sampling - Operational Sites,ENV - Projects & Delivery,Severn Trent Serv Ops Uk Ltd,113822,418.51,
"Department for Business, Energy and Industrial Strategy",The Coal Authority,22/10/2021,Minewater Sampling - Operational Sites,DEFRA Metal Mine Programme,John F Hunt Regeneration Ltd,114214,142.66,
"Department for Business, Energy and Industrial Strategy",The Coal Authority,30/09/2021,Minewater Site Surveys,NRW Metal Mine Programme,AECOM Ltd,112862,"8,936.80",
"Department for Business, Energy and Industrial Strategy",The Coal Authority,30/09/2021,Minewater Site Surveys,NRW Metal Mine Programme,AECOM Ltd,113042,"1,010.00",
"Department for Business, Energy and Industrial Strategy",The Coal Authority,30/09/2021,Minewater Site Surveys,NRW Metal Mine Programme,AECOM Ltd,113042,"1,775.00",
"Department for Business, Energy and Industrial Strategy",The Coal Authority,30/09/2021,Minewater Site Surveys,DEFRA Metal Mine Programme,AECOM Ltd,113191,"4,893.41",
"Department for Business, Energy and Industrial Strategy",The Coal Authority,30/09/2021,Minewater Site Surveys,DEFRA Metal Mine Programme,AECOM Ltd,113191,792.00,
"Department for Business, Energy and Industrial Strategy",The Coal Authority,30/09/2021,Minewater Site Surveys,DEFRA Metal Mine Programme,AECOM Ltd,113191,800.00,
"Department for Business, Energy and Industrial Strategy",The Coal Authority,30/09/2021,Minewater Site Surveys,DEFRA Metal Mine Programme,AECOM Ltd,113191,480.00,
"Department for Business, Energy and Industrial Strategy",The Coal Authority,29/09/2021,Minewater Site Surveys,NRW Metal Mine Programme,RPS Consulting Services Limited,113330,"2,009.48",
"Department for Business, Energy and Industrial Strategy",The Coal Authority,13/10/2021,Minewater Sludge Disposal,ENV - Mine Water Operations,Severn Trent Serv Ops Uk Ltd,113822,"51,938.11",
"Department for Business, Energy and Industrial Strategy",The Coal Authority,13/10/2021,Minewater Sludge Disposal,ENV - Mine Water Operations,Severn Trent Serv Ops Uk Ltd,113822,"2,466.70",
"Department for Business, Energy and Industrial Strategy",The Coal Authority,13/10/2021,Minewater Sludge Disposal,ENV - Mine Water Operations,Severn Trent Serv Ops Uk Ltd,113822,244.67,
"Department for Business, Energy and Industrial Strategy",The Coal Authority,13/10/2021,Minewater Sludge Disposal,ENV - Mine Water Operations,Severn Trent Serv Ops Uk Ltd,113822,"72,521.08",
"Department for Business, Energy and Industrial Strategy",The Coal Authority,13/10/2021,Minewater Sludge Disposal,ENV - Mine Water Operations,Severn Trent Serv Ops Uk Ltd,113822,242.28,
"Department for Business, Energy and Industrial Strategy",The Coal Authority,02/10/2021,Minewater Telecoms & Telemetry,ENV - Mine Water Operations,KORE Wireless UK PLC,113132,15.00,
"Department for Business, Energy and Industrial Strategy",The Coal Authority,04/10/2021,Minewater Telecoms & Telemetry,ENV - Mine Water Operations,KORE Wireless UK PLC,113133,35.00,
"Department for Business, Energy and Industrial Strategy",The Coal Authority,01/10/2021,Minewater Telecoms & Telemetry,ENV - Mine Water Operations,British Telecommunications Plc,113349,109.84,
"Department for Business, Energy and Industrial Strategy",The Coal Authority,15/09/2021,Minewater Telecoms & Telemetry,ENV - Mine Water Operations,Vodafone Limited (Corporate),113452,20.85,
"Department for Business, Energy and Industrial Strategy",The Coal Authority,07/10/2021,Minewater Water Charges,ENV - Mine Water Operations,Business Stream,113710,566.00,
"Department for Business, Energy and Industrial Strategy",The Coal Authority,18/10/2021,Minewater Water Charges,ENV - Mine Water Operations,Water Plus Limited,113833,-593.78,
"Department for Business, Energy and Industrial Strategy",The Coal Authority,12/10/2021,Minewater Water Charges,ENV - Mine Water Operations,Water Plus Limited,113834,593.78,
"Department for Business, Energy and Industrial Strategy",The Coal Authority,01/09/2021,Mobiles Phones - Call Charges,DIG - Service & Assurance,Daisy Corporate Services Trading Services Ltd,113943,27.69,
"Department for Business, Energy and Industrial Strategy",The Coal Authority,01/09/2021,Mobiles Phones - Line Rent,DIG - Service & Assurance,Daisy Corporate Services Trading Services Ltd,113943,"1,414.99",
"Department for Business, Energy and Industrial Strategy",The Coal Authority,13/10/2021,Networking / Cabling,DIG - Technical Delivery,Nowcomm,113785,208.09,
"Department for Business, Energy and Industrial Strategy",The Coal Authority,13/09/2021,Networking / Cabling,DIG - Service & Assurance,Government Procurement Card,114630,123.75,
"Department for Business, Energy and Industrial Strategy",The Coal Authority,28/09/2021,Office Furniture,Facilities,Wagstaff,113286,567.00,
"Department for Business, Energy and Industrial Strategy",The Coal Authority,28/09/2021,Office Furniture,Facilities,Wagstaff,113286,195.00,
"Department for Business, Energy and Industrial Strategy",The Coal Authority,28/09/2021,Office Furniture,Facilities,Wagstaff,113286,126.00,
"Department for Business, Energy and Industrial Strategy",The Coal Authority,28/09/2021,Office Furniture,Facilities,Wagstaff,113286,15.00,
"Department for Business, Energy and Industrial Strategy",The Coal Authority,28/09/2021,Office Furniture,Facilities,Wagstaff,113286,51.00,
"Department for Business, Energy and Industrial Strategy",The Coal Authority,28/09/2021,Office Furniture,Facilities,Wagstaff,113286,477.00,
"Department for Business, Energy and Industrial Strategy",The Coal Authority,28/09/2021,Office Furniture,Facilities,Wagstaff,113286,100.00,
"Department for Business, Energy and Industrial Strategy",The Coal Authority,19/09/2021,Office Furniture,ENV - Sustainability & Environmental Compliance,Staff Expenses Control,113393,74.99,
"Department for Business, Energy and Industrial Strategy",The Coal Authority,19/09/2021,Office Furniture,ENV - Sustainability & Environmental Compliance,Staff Expenses Control,113393,87.49,
"Department for Business, Energy and Industrial Strategy",The Coal Authority,13/09/2021,Office Furniture,PS&S - Industry Claims,Government Procurement Card,114630,65.81,
"Department for Business, Energy and Industrial Strategy",The Coal Authority,20/09/2021,Office Furniture,Facilities,Government Procurement Card,114630,124.73,
"Department for Business, Energy and Industrial Strategy",The Coal Authority,21/09/2021,Office Furniture,Facilities,Government Procurement Card,114630,28.32,
"Department for Business, Energy and Industrial Strategy",The Coal Authority,28/09/2021,Office Furniture,Facilities,Government Procurement Card,114630,19.16,
"Department for Business, Energy and Industrial Strategy",The Coal Authority,27/10/2021,Office Printing Services,DIG - Service & Assurance,Konica Minolta Business Sltns Ltd,114611,123.10,
"Department for Business, Energy and Industrial Strategy",The Coal Authority,14/09/2021,Office Telephony - Call Charges,DIG - Service & Assurance,British Telecommunications Plc,113139,29.15,
"Department for Business, Energy and Industrial Strategy",The Coal Authority,01/10/2021,Office Telephony - Call Charges,DIG - Service & Assurance,Daisy Corporate Services Trading Services Ltd,113944,59.13,
"Department for Business, Energy and Industrial Strategy",The Coal Authority,14/09/2021,Office Telephony - Line Rent,DIG - Service & Assurance,British Telecommunications Plc,113139,817.10,
"Department for Business, Energy and Industrial Strategy",The Coal Authority,01/10/2021,Office Telephony - Line Rent,DIG - Service & Assurance,Daisy Corporate Services Trading Services Ltd,113944,659.03,
"Department for Business, Energy and Industrial Strategy",The Coal Authority,04/10/2021,Other Hosting / IaaS,Mining Reports,Bytemark Limited,112947,-0.24,
"Department for Business, Energy and Industrial Strategy",The Coal Authority,04/10/2021,Other Hosting / IaaS,Mining Reports,Bytemark Limited,112951,-0.18,
"Department for Business, Energy and Industrial Strategy",The Coal Authority,02/10/2021,Other Hosting / IaaS,DIG - Service & Assurance,Amazon Web Services EMEA SARL,113137,"4,181.88",
"Department for Business, Energy and Industrial Strategy",The Coal Authority,11/10/2021,Other Hosting / IaaS,Mining Reports,Bytemark Limited,113343,159.90,
"Department for Business, Energy and Industrial Strategy",The Coal Authority,01/10/2021,Outsourced Cleaning Staff,Facilities,Regent Office Care Ltd T/A Regent Samsic,114401,"6,309.49",
"Department for Business, Energy and Industrial Strategy",The Coal Authority,30/09/2021,Outsourced Security Staff,Facilities,Regent Office Care Ltd T/A Regent Samsic,113287,"9,668.19",
"Department for Business, Energy and Industrial Strategy",The Coal Authority,30/09/2021,Outsourced Security Staff,Facilities,Regent Office Care Ltd T/A Regent Samsic,113632,105.92,
"Department for Business, Energy and Industrial Strategy",The Coal Authority,13/10/2021,Outsourced Security Staff,Facilities,Regent Office Care Ltd T/A Regent Samsic,113633,-105.92,
"Department for Business, Energy and Industrial Strategy",The Coal Authority,24/09/2021,Payroll Processing Fees,Finance,Cgi It Uk Ltd,112955,175.32,
"Department for Business, Energy and Industrial Strategy",The Coal Authority,28/09/2021,Payroll Processing Fees,Finance,Cgi It Uk Ltd,112956,"1,747.36",
"Department for Business, Energy and Industrial Strategy",The Coal Authority,28/09/2021,Payroll Processing Fees,Finance,Cgi It Uk Ltd,114496,616.37,
"Department for Business, Energy and Industrial Strategy",The Coal Authority,09/09/2021,Peripherals / Consumables (MEP),DIG - Technical Delivery,Ergo Computing  UK Ltd,113021,"2,378.75",
"Department for Business, Energy and Industrial Strategy",The Coal Authority,09/09/2021,Peripherals / Consumables (MEP),DIG - Technical Delivery,Ergo Computing  UK Ltd,113021,10.00,
"Department for Business, Energy and Industrial Strategy",The Coal Authority,15/09/2021,Peripherals / Consumables (MEP),DIG - Technical Delivery,Ergo Computing  UK Ltd,113022,"17,380.00",
"Department for Business, Energy and Industrial Strategy",The Coal Authority,16/09/2021,Peripherals / Consumables (MEP),DIG - Technical Delivery,Ergo Computing  UK Ltd,113138,132.40,
"Department for Business, Energy and Industrial Strategy",The Coal Authority,16/09/2021,Peripherals / Consumables (MEP),DIG - Technical Delivery,Ergo Computing  UK Ltd,113138,10.00,
"Department for Business, Energy and Industrial Strategy",The Coal Authority,23/09/2021,Peripherals / Consumables (MEP),PS&S - Industry Claims,Staff Expenses Control,113817,69.35,
"Department for Business, Energy and Industrial Strategy",The Coal Authority,06/09/2021,Peripherals / Consumables (MEP),Finance,Staff Expenses Control,114289,47.91,
"Department for Business, Energy and Industrial Strategy",The Coal Authority,12/10/2021,Peripherals / Consumables (MEP),DIG - Technical Delivery,Ergo Computing  UK Ltd,114460,199.75,
"Department for Business, Energy and Industrial Strategy",The Coal Authority,06/09/2021,Peripherals / Consumables (MEP),DIG - Service & Assurance,Government Procurement Card,114630,"1,103.89",
"Department for Business, Energy and Industrial Strategy",The Coal Authority,06/09/2021,Peripherals / Consumables (MEP),DIG - Service & Assurance,Government Procurement Card,114630,"1,499.70",
"Department for Business, Energy and Industrial Strategy",The Coal Authority,07/09/2021,Peripherals / Consumables (MEP),Facilities,Government Procurement Card,114630,382.92,
"Department for Business, Energy and Industrial Strategy",The Coal Authority,08/09/2021,Peripherals / Consumables (MEP),DIG - Service & Assurance,Government Procurement Card,114630,14.40,
"Department for Business, Energy and Industrial Strategy",The Coal Authority,08/09/2021,Peripherals / Consumables (MEP),PS&S - Industry Claims,Government Procurement Card,114630,16.75,
"Department for Business, Energy and Industrial Strategy",The Coal Authority,10/09/2021,Peripherals / Consumables (MEP),PS&S - General Claims,Government Procurement Card,114630,84.48,
"Department for Business, Energy and Industrial Strategy",The Coal Authority,14/09/2021,Peripherals / Consumables (MEP),DIG - Service & Assurance,Government Procurement Card,114630,254.09,
"Department for Business, Energy and Industrial Strategy",The Coal Authority,14/09/2021,Peripherals / Consumables (MEP),PS&S - Industry Claims,Government Procurement Card,114630,18.75,
"Department for Business, Energy and Industrial Strategy",The Coal Authority,15/09/2021,Peripherals / Consumables (MEP),DIG - Service & Assurance,Government Procurement Card,114630,99.05,
"Department for Business, Energy and Industrial Strategy",The Coal Authority,18/09/2021,Peripherals / Consumables (MEP),DIG - Service & Assurance,Government Procurement Card,114630,-50.83,
"Department for Business, Energy and Industrial Strategy",The Coal Authority,19/09/2021,Peripherals / Consumables (MEP),DIG - Service & Assurance,Government Procurement Card,114630,17.46,
"Department for Business, Energy and Industrial Strategy",The Coal Authority,19/09/2021,Peripherals / Consumables (MEP),DIG - Service & Assurance,Government Procurement Card,114630,94.07,
"Department for Business, Energy and Industrial Strategy",The Coal Authority,22/09/2021,Peripherals / Consumables (MEP),DIG - Service & Assurance,Government Procurement Card,114630,24.99,
"Department for Business, Energy and Industrial Strategy",The Coal Authority,22/09/2021,Peripherals / Consumables (MEP),DIG - Service & Assurance,Government Procurement Card,114630,240.00,
"Department for Business, Energy and Industrial Strategy",The Coal Authority,27/09/2021,Peripherals / Consumables (MEP),DIG - Service & Assurance,Government Procurement Card,114630,167.25,
"Department for Business, Energy and Industrial Strategy",The Coal Authority,27/09/2021,Peripherals / Consumables (MEP),DIG - Service & Assurance,Government Procurement Card,114630,0.01,
"Department for Business, Energy and Industrial Strategy",The Coal Authority,27/09/2021,Peripherals / Consumables (MEP),DIG - Service & Assurance,Government Procurement Card,114630,212.90,
"Department for Business, Energy and Industrial Strategy",The Coal Authority,05/10/2021,Peripherals / Consumables (MEP),Legal & Governance,Government Procurement Card,114630,12.49,
"Department for Business, Energy and Industrial Strategy",The Coal Authority,27/07/2021,Plant Maintenance,Facilities,Total Integrated Solutions,113288,"4,500.00",
"Department for Business, Energy and Industrial Strategy",The Coal Authority,06/10/2021,Plant Maintenance,Facilities,Briggs & Forrester Building Services Maintenance L,113299,317.19,
"Department for Business, Energy and Industrial Strategy",The Coal Authority,12/10/2021,Plant Maintenance,Facilities,Briggs & Forrester Building Services Maintenance L,113607,"1,719.03",
"Department for Business, Energy and Industrial Strategy",The Coal Authority,12/10/2021,Plant Maintenance,Facilities,Briggs & Forrester Building Services Maintenance L,113608,"1,034.66",
"Department for Business, Energy and Industrial Strategy",The Coal Authority,06/10/2021,Plant Maintenance,Facilities,TYCO Integrated Fire & Security,113778,194.90,
"Department for Business, Energy and Industrial Strategy",The Coal Authority,30/09/2021,Plant Maintenance,Facilities,Total Integrated Solutions,113781,"3,010.00",
"Department for Business, Energy and Industrial Strategy",The Coal Authority,30/08/2021,Plant Maintenance,Facilities,Briggs & Forrester Building Services Maintenance L,113794,"8,008.18",
"Department for Business, Energy and Industrial Strategy",The Coal Authority,11/10/2021,Plant Maintenance,Facilities,Siemens Plc,113877,"16,119.00",
"Department for Business, Energy and Industrial Strategy",The Coal Authority,13/10/2021,Plant Maintenance,Facilities,Briggs & Forrester Building Services Maintenance L,114300,"1,193.00",
"Department for Business, Energy and Industrial Strategy",The Coal Authority,01/10/2021,Postage & Couriers,Customer Services & Strategy,FedEx Express UK Transportaion Limited,113531,29.83,
"Department for Business, Energy and Industrial Strategy",The Coal Authority,01/10/2021,Postage & Couriers,PS&S - Industry Claims,Staff Expenses Control,113817,4.32,
"Department for Business, Energy and Industrial Strategy",The Coal Authority,07/10/2021,Postage & Couriers,DIG - Service & Assurance,Staff Expenses Control,114289,89.25,
"Department for Business, Energy and Industrial Strategy",The Coal Authority,06/09/2021,Postage & Couriers,Customer Services & Strategy,THE MAILING ROOM LTD,114299,625.00,
"Department for Business, Energy and Industrial Strategy",The Coal Authority,15/10/2021,Postage & Couriers,Customer Services & Strategy,FedEx Express UK Transportaion Limited,114548,67.28,
"Department for Business, Energy and Industrial Strategy",The Coal Authority,10/09/2021,Postage & Couriers,Innovation By-Product & Services Delivery,Government Procurement Card,114630,15.10,
"Department for Business, Energy and Industrial Strategy",The Coal Authority,23/09/2021,Postage & Couriers,Customer Services & Strategy,Government Procurement Card,114630,73.10,
"Department for Business, Energy and Industrial Strategy",The Coal Authority,03/09/2021,Professional Subscriptions,Innovation By-Product & Services Delivery,Future Water Association,113590,975.00,
"Department for Business, Energy and Industrial Strategy",The Coal Authority,18/10/2021,Professional Subscriptions,Mining Information,Staff Expenses Control,114289,150.00,
"Department for Business, Energy and Industrial Strategy",The Coal Authority,22/09/2021,Property Rates Payable,DEV - Historic Property Liabilities,Business Stream,113642,740.64,
"Department for Business, Energy and Industrial Strategy",The Coal Authority,11/01/2021,Property Rents Payable,DEV - Property Management,Thwaites Brewery,113490,"1,750.00",
"Department for Business, Energy and Industrial Strategy",The Coal Authority,11/01/2021,Property Rents Payable,DEV - Property Management,Midlothian Council,113501,100.00,
"Department for Business, Energy and Industrial Strategy",The Coal Authority,30/09/2021,Property Site Maintenance,DEV - Property Management,JMC Engineering Uk Ltd,113154,609.35,
"Department for Business, Energy and Industrial Strategy",The Coal Authority,30/09/2021,Property Site Maintenance,DEV - Property Management,JMC Engineering Uk Ltd,113154,3.60,
"Department for Business, Energy and Industrial Strategy",The Coal Authority,30/09/2021,Property Site Maintenance,DEV - Property Management,JMC Engineering Uk Ltd,113154,126.50,
"Department for Business, Energy and Industrial Strategy",The Coal Authority,30/09/2021,Property Site Maintenance,DEV - Property Management,JMC Engineering Uk Ltd,113155,261.15,
"Department for Business, Energy and Industrial Strategy",The Coal Authority,30/09/2021,Property Site Maintenance,DEV - Property Management,JMC Engineering Uk Ltd,113155,73.80,
"Department for Business, Energy and Industrial Strategy",The Coal Authority,30/09/2021,Property Site Maintenance,DEV - Property Management,JMC Engineering Uk Ltd,113155,208.92,
"Department for Business, Energy and Industrial Strategy",The Coal Authority,30/09/2021,Property Site Maintenance,DEV - Historic Property Liabilities,Ovenden Plant Hire Limited,113525,32.61,
"Department for Business, Energy and Industrial Strategy",The Coal Authority,30/09/2021,Property Site Maintenance,DEV - Property Management,Marshall Farming Limited,113745,"6,163.14",
"Department for Business, Energy and Industrial Strategy",The Coal Authority,30/09/2021,Property Site Maintenance,DEV - Property Management,Marshall Farming Limited,113746,"1,324.31",
"Department for Business, Energy and Industrial Strategy",The Coal Authority,30/09/2021,Property Site Maintenance,DEV - Historic Property Liabilities,Ovenden Plant Hire Limited,114517,"6,378.80",
"Department for Business, Energy and Industrial Strategy",The Coal Authority,28/10/2021,Property Site Maintenance,PS&S - General Claims,Cornerstone  Projects Ltd,114578,98.00,
"Department for Business, Energy and Industrial Strategy",The Coal Authority,28/10/2021,Property Site Maintenance,PS&S - General Claims,Cornerstone  Projects Ltd,114579,98.00,
"Department for Business, Energy and Industrial Strategy",The Coal Authority,28/10/2021,Property Site Maintenance,PS&S - General Claims,Cornerstone  Projects Ltd,114580,98.00,
"Department for Business, Energy and Industrial Strategy",The Coal Authority,28/10/2021,Property Site Maintenance,PS&S - General Claims,Cornerstone  Projects Ltd,114582,98.00,
"Department for Business, Energy and Industrial Strategy",The Coal Authority,12/10/2021,Property Site Maintenance,DEV - Historic Property Liabilities,A R Thompson Landscapes,114657,"1,900.00",
"Department for Business, Energy and Industrial Strategy",The Coal Authority,27/10/2021,Property Site Maintenance,PS&S - General Claims,Durham Wildlife Services,114662,475.00,
"Department for Business, Energy and Industrial Strategy",The Coal Authority,27/08/2021,Public Relations,Community Response,Meltwater,113079,"13,584.00",
"Department for Business, Energy and Industrial Strategy",The Coal Authority,08/10/2021,Public Relations,DEFRA LEP Funding,Nenthead Village Hall,113328,110.00,
"Department for Business, Energy and Industrial Strategy",The Coal Authority,21/09/2021,Public Relations,Business Intelligence,DeHavilland Political Intelligence,113329,"1,050.00",
"Department for Business, Energy and Industrial Strategy",The Coal Authority,21/10/2021,Public Relations,Business Intelligence,DeHavilland Political Intelligence,114278,"1,050.00",
"Department for Business, Energy and Industrial Strategy",The Coal Authority,30/09/2021,Recruitment Advertising,People & Organisational Development,Redactive Publishing Limited,113187,"1,450.00",
"Department for Business, Energy and Industrial Strategy",The Coal Authority,27/08/2021,Recruitment Advertising,People & Organisational Development,Redactive Publishing Limited,113190,790.00,
"Department for Business, Energy and Industrial Strategy",The Coal Authority,07/10/2021,Recruitment Advertising,People & Organisational Development,XJB LTD,113505,99.00,
"Department for Business, Energy and Industrial Strategy",The Coal Authority,11/10/2021,Recruitment Advertising,People & Organisational Development,360 Resourcing,114025,"14,000.00",
"Department for Business, Energy and Industrial Strategy",The Coal Authority,11/10/2021,Recruitment Advertising,People & Organisational Development,360 Resourcing,114026,"13,950.00",
"Department for Business, Energy and Industrial Strategy",The Coal Authority,19/10/2021,Recruitment Advertising,People & Organisational Development,360 Resourcing,114027,"-14,000.00",
"Department for Business, Energy and Industrial Strategy",The Coal Authority,19/10/2021,Recruitment Advertising,People & Organisational Development,Working Planet Limited,114581,199.00,
"Department for Business, Energy and Industrial Strategy",The Coal Authority,30/09/2021,Research & Development (BEIS Funded),People & Organisational Development,BMG Research Ltd,112853,"2,250.00",
"Department for Business, Energy and Industrial Strategy",The Coal Authority,30/09/2021,Research & Development (BEIS Funded),DEFRA Metal Mine Programme,Enitial Limited,113390,839.90,
"Department for Business, Energy and Industrial Strategy",The Coal Authority,30/09/2021,Research & Development (Non BEIS Funded),DEFRA Metal Mine Programme,Enitial Limited,113389,"1,300.00",
"Department for Business, Energy and Industrial Strategy",The Coal Authority,30/09/2021,Research & Development (Non BEIS Funded),DEFRA Metal Mine Programme,Enitial Limited,113391,250.00,
"Department for Business, Energy and Industrial Strategy",The Coal Authority,05/10/2021,Research & Development (Non BEIS Funded),DEFRA Metal Mine Programme,Socotec,113392,201.53,
"Department for Business, Energy and Industrial Strategy",The Coal Authority,19/10/2021,Research & Development (Non BEIS Funded),DEFRA Metal Mine Programme,Socotec,114513,201.53,
"Department for Business, Energy and Industrial Strategy",The Coal Authority,30/09/2021,Short Term Vehicle Hire,Facilities,Edan Holding Ltd,112944,175.00,
"Department for Business, Energy and Industrial Strategy",The Coal Authority,30/09/2021,Short Term Vehicle Hire,Facilities,Enterprise Rent A Car,113289,"2,943.32",
"Department for Business, Energy and Industrial Strategy",The Coal Authority,08/09/2021,Short Term Vehicle Hire,Other Customers,Government Procurement Card,114630,145.82,
"Department for Business, Energy and Industrial Strategy",The Coal Authority,30/09/2021,Site Repairs & Maintenance,Facilities,Ulyett Landscapes Ltd,112903,"1,406.25",
"Department for Business, Energy and Industrial Strategy",The Coal Authority,05/10/2021,Site Repairs & Maintenance,Facilities,M. Shooter Electrical,113244,363.43,
"Department for Business, Energy and Industrial Strategy",The Coal Authority,07/10/2021,Site Repairs & Maintenance,Facilities,Arco Limited,113600,"1,519.99",
"Department for Business, Energy and Industrial Strategy",The Coal Authority,21/09/2021,Site Repairs & Maintenance,Facilities,Lee Glass & Glazing Nottm Ltd,114304,485.00,
"Department for Business, Energy and Industrial Strategy",The Coal Authority,02/09/2021,Site Repairs & Maintenance,Facilities,Government Procurement Card,114630,37.49,
"Department for Business, Energy and Industrial Strategy",The Coal Authority,15/09/2021,Site Repairs & Maintenance,Facilities,Government Procurement Card,114630,63.33,
"Department for Business, Energy and Industrial Strategy",The Coal Authority,17/09/2021,Site Repairs & Maintenance,Facilities,Government Procurement Card,114630,63.33,
"Department for Business, Energy and Industrial Strategy",The Coal Authority,29/09/2021,Site Repairs & Maintenance,Facilities,Government Procurement Card,114630,62.48,
"Department for Business, Energy and Industrial Strategy",The Coal Authority,29/09/2021,Site Repairs & Maintenance,Facilities,Government Procurement Card,114630,14.17,
"Department for Business, Energy and Industrial Strategy",The Coal Authority,28/09/2021,Site Services,Facilities,Hatherley Commercial Services Limited,112945,161.73,
"Department for Business, Energy and Industrial Strategy",The Coal Authority,28/09/2021,Site Services,Facilities,Hatherley Commercial Services Limited,112945,177.92,
"Department for Business, Energy and Industrial Strategy",The Coal Authority,28/09/2021,Site Services,Facilities,Hatherley Commercial Services Limited,112945,203.10,
"Department for Business, Energy and Industrial Strategy",The Coal Authority,07/10/2021,Site Services,Facilities,Restore Datashred,113626,79.99,
"Department for Business, Energy and Industrial Strategy",The Coal Authority,07/10/2021,Site Services,Facilities,Restore Datashred,113626,0.01,
"Department for Business, Energy and Industrial Strategy",The Coal Authority,16/10/2021,Site Services,Facilities,Midland Movable Walls Ltd,113868,320.00,
"Department for Business, Energy and Industrial Strategy",The Coal Authority,22/10/2021,Site Services,Facilities,Biffa Waste Services Ltd,114405,114.96,
"Department for Business, Energy and Industrial Strategy",The Coal Authority,22/10/2021,Site Services,Facilities,Biffa Waste Services Ltd,114405,105.60,
"Department for Business, Energy and Industrial Strategy",The Coal Authority,08/09/2021,Site Services,Facilities,Government Procurement Card,114630,94.33,
"Department for Business, Energy and Industrial Strategy",The Coal Authority,29/09/2021,Site Services,Facilities,Government Procurement Card,114630,9.92,
"Department for Business, Energy and Industrial Strategy",The Coal Authority,15/10/2021,Software Licenses - On Premise,DIG - Service & Assurance,Experian Ltd,114389,"25,565.82",
"Department for Business, Energy and Industrial Strategy",The Coal Authority,10/09/2021,Software Licenses - On Premise,DIG - Service & Assurance,Government Procurement Card,114630,130.47,
"Department for Business, Energy and Industrial Strategy",The Coal Authority,04/10/2021,Software Licenses - SaaS,ENV - Mine Water Operations,Hyde Park Solutions Limited,113019,"7,374.50",
"Department for Business, Energy and Industrial Strategy",The Coal Authority,18/08/2021,Software Licenses - SaaS,"Health, Safety & Wellbeing",Peoplesafe,113949,"1,920.00",
"Department for Business, Energy and Industrial Strategy",The Coal Authority,05/09/2021,Software Licenses - SaaS,DIG - Service & Assurance,Government Procurement Card,114630,75.00,
"Department for Business, Energy and Industrial Strategy",The Coal Authority,08/09/2021,Software Licenses - SaaS,Community Response,Government Procurement Card,114630,48.00,
"Department for Business, Energy and Industrial Strategy",The Coal Authority,13/09/2021,Software Licenses - SaaS,DIG - Service & Assurance,Government Procurement Card,114630,9.28,
"Department for Business, Energy and Industrial Strategy",The Coal Authority,16/09/2021,Software Licenses - SaaS,DIG - Service & Assurance,Government Procurement Card,114630,1.54,
"Department for Business, Energy and Industrial Strategy",The Coal Authority,19/09/2021,Software Licenses - SaaS,DIG - Service & Assurance,Government Procurement Card,114630,"2,574.39",
"Department for Business, Energy and Industrial Strategy",The Coal Authority,20/09/2021,Software Licenses - SaaS,DIG - Service & Assurance,Government Procurement Card,114630,15.45,
"Department for Business, Energy and Industrial Strategy",The Coal Authority,22/09/2021,Software Licenses - SaaS,DIG - Service & Assurance,Government Procurement Card,114630,355.00,
"Department for Business, Energy and Industrial Strategy",The Coal Authority,22/09/2021,Software Licenses - SaaS,DIG - Service & Assurance,Government Procurement Card,114630,43.18,
"Department for Business, Energy and Industrial Strategy",The Coal Authority,04/10/2021,Software Support & Maintenance - SaaS,ENV - Mine Water Operations,Hyde Park Solutions Limited,113020,"6,850.00",
"Department for Business, Energy and Industrial Strategy",The Coal Authority,15/10/2021,Software Support & Maintenance - SaaS,DIG - Technical Delivery,Egress Software Technologies,113211,"6,250.00",
"Department for Business, Energy and Industrial Strategy",The Coal Authority,07/10/2021,Software Support & Maintenance - SaaS,DIG - Technical Delivery,Egress Software Technologies,113212,"-6,250.00",
"Department for Business, Energy and Industrial Strategy",The Coal Authority,27/09/2021,Software Support & Maintenance - SaaS,Procurement,Medius Software Limited,113228,"14,402.50",
"Department for Business, Energy and Industrial Strategy",The Coal Authority,27/09/2021,Software Support & Maintenance - SaaS,Procurement,Medius Software Limited,113228,"1,875.00",
"Department for Business, Energy and Industrial Strategy",The Coal Authority,08/09/2021,Software Support & Maintenance - SaaS,DIG - Data Licensing,Dotted Eyes Limited,113373,165.00,
"Department for Business, Energy and Industrial Strategy",The Coal Authority,30/09/2021,Software Support & Maintenance - SaaS,Finance,Bottomline Technologies D/D,113564,171.33,
"Department for Business, Energy and Industrial Strategy",The Coal Authority,24/09/2021,Staff Events,People & Organisational Development,Government Procurement Card,114630,39.60,
"Department for Business, Energy and Industrial Strategy",The Coal Authority,22/09/2021,Staff Medicals,People & Organisational Development,Bupa Wellness Finance,113572,425.00,
"Department for Business, Energy and Industrial Strategy",The Coal Authority,11/07/2021,Stationery,ENV - Sustainability & Environmental Compliance,Staff Expenses Control,113393,5.83,
"Department for Business, Energy and Industrial Strategy",The Coal Authority,06/10/2021,Stationery,Customer Services & Strategy,Quadient UK Ltd,113530,56.52,
"Department for Business, Energy and Industrial Strategy",The Coal Authority,06/10/2021,Stationery,Customer Services & Strategy,Quadient UK Ltd,113530,55.44,
"Department for Business, Energy and Industrial Strategy",The Coal Authority,27/09/2021,Stationery,NRW Metal Mine Programme,Staff Expenses Control,113817,23.50,
"Department for Business, Energy and Industrial Strategy",The Coal Authority,27/09/2021,Stationery,NRW Metal Mine Programme,Staff Expenses Control,113817,7.50,
"Department for Business, Energy and Industrial Strategy",The Coal Authority,21/10/2021,Stationery,Customer Services & Strategy,Imprint,114236,97.00,
"Department for Business, Energy and Industrial Strategy",The Coal Authority,09/09/2021,Stationery,PS&S - General Claims,Government Procurement Card,114630,1.50,
"Department for Business, Energy and Industrial Strategy",The Coal Authority,13/09/2021,Stationery,ENV - Technical,Government Procurement Card,114630,5.60,
"Department for Business, Energy and Industrial Strategy",The Coal Authority,13/09/2021,Stationery,Heat & By-Product Innovation,Government Procurement Card,114630,1.50,
"Department for Business, Energy and Industrial Strategy",The Coal Authority,20/09/2021,Stationery,PS&S - Industry Claims,Government Procurement Card,114630,4.25,
"Department for Business, Energy and Industrial Strategy",The Coal Authority,28/09/2021,Stationery,ENV - Projects & Delivery,Government Procurement Card,114630,1.50,
"Department for Business, Energy and Industrial Strategy",The Coal Authority,28/09/2021,Stationery,PS&S - General Claims,Government Procurement Card,114630,3.50,
"Department for Business, Energy and Industrial Strategy",The Coal Authority,28/09/2021,Stationery,PS&S - Industry Claims,Government Procurement Card,114630,18.50,
"Department for Business, Energy and Industrial Strategy",The Coal Authority,04/10/2021,Subsidence - Contractor Costs,PS&S - General Claims,Compensation Payment,112939,500.00,
"Department for Business, Energy and Industrial Strategy",The Coal Authority,04/10/2021,Subsidence - Contractor Costs,PS&S - Kellingley,Philip Hobson T/A Motor Body Repairer,112940,"20,092.33",
"Department for Business, Energy and Industrial Strategy",The Coal Authority,04/10/2021,Subsidence - Contractor Costs,PS&S - General Claims,Compensation Payment,112941,350.00,
"Department for Business, Energy and Industrial Strategy",The Coal Authority,01/10/2021,Subsidence - Contractor Costs,PS&S - General Claims,Compensation Payment,112942,"1,418.88",
"Department for Business, Energy and Industrial Strategy",The Coal Authority,04/10/2021,Subsidence - Contractor Costs,PS&S - General Claims,Compensation Payment,112943,"3,059.00",
"Department for Business, Energy and Industrial Strategy",The Coal Authority,04/10/2021,Subsidence - Contractor Costs,PS&S - General Claims,Compensation Payment,112943,696.23,
"Department for Business, Energy and Industrial Strategy",The Coal Authority,30/08/2021,Subsidence - Contractor Costs,PS&S - General Claims,No Red Tape Ltd,113004,"19,060.56",
"Department for Business, Energy and Industrial Strategy",The Coal Authority,27/09/2021,Subsidence - Contractor Costs,PS&S - Kellingley,E.ON Next,113226,10.87,
"Department for Business, Energy and Industrial Strategy",The Coal Authority,07/10/2021,Subsidence - Contractor Costs,PS&S - General Claims,Thomas Menzies Builders Ltd,113253,200.00,
"Department for Business, Energy and Industrial Strategy",The Coal Authority,07/10/2021,Subsidence - Contractor Costs,PS&S - General Claims,Thomas Menzies Builders Ltd,113253,336.00,
"Department for Business, Energy and Industrial Strategy",The Coal Authority,04/08/2021,Subsidence - Contractor Costs,PS&S - Kellingley,E.ON Next,113308,13.23,
"Department for Business, Energy and Industrial Strategy",The Coal Authority,04/09/2021,Subsidence - Contractor Costs,PS&S - Kellingley,E.ON Next,113310,28.71,
"Department for Business, Energy and Industrial Strategy",The Coal Authority,11/10/2021,Subsidence - Contractor Costs,PS&S - General Claims,Compensation Payment,113484,"2,471.60",
"Department for Business, Energy and Industrial Strategy",The Coal Authority,11/10/2021,Subsidence - Contractor Costs,PS&S - General Claims,Compensation Payment,113485,479.95,
"Department for Business, Energy and Industrial Strategy",The Coal Authority,11/10/2021,Subsidence - Contractor Costs,PS&S - General Claims,Compensation Payment,113487,100.00,
"Department for Business, Energy and Industrial Strategy",The Coal Authority,06/10/2021,Subsidence - Contractor Costs,PS&S - Thoresby,Pierrepont Estate Management Ltd,113614,"1,762.50",
"Department for Business, Energy and Industrial Strategy",The Coal Authority,06/10/2021,Subsidence - Contractor Costs,PS&S - Thoresby,Pierrepont Estate Management Ltd,113618,176.25,
"Department for Business, Energy and Industrial Strategy",The Coal Authority,14/10/2021,Subsidence - Contractor Costs,PS&S - General Claims,Shell BACS refund,113656,-636.78,
"Department for Business, Energy and Industrial Strategy",The Coal Authority,14/10/2021,Subsidence - Contractor Costs,PS&S - Kellingley,Shell BACS refund,113656,636.78,
"Department for Business, Energy and Industrial Strategy",The Coal Authority,12/10/2021,Subsidence - Contractor Costs,PS&S - General Claims,Compensation Payment,113747,"2,282.74",
"Department for Business, Energy and Industrial Strategy",The Coal Authority,12/10/2021,Subsidence - Contractor Costs,PS&S - General Claims,Compensation Payment,113747,"4,596.06",
"Department for Business, Energy and Industrial Strategy",The Coal Authority,12/10/2021,Subsidence - Contractor Costs,PS&S - General Claims,Compensation Payment,113747,"1,520.00",
"Department for Business, Energy and Industrial Strategy",The Coal Authority,06/10/2021,Subsidence - Contractor Costs,PS&S - General Claims,M Thomson Ltd,113853,"1,700.00",
"Department for Business, Energy and Industrial Strategy",The Coal Authority,30/09/2021,Subsidence - Contractor Costs,PS&S - Kellingley,Ray Holt Land Drainage Ltd,113882,"6,415.85",
"Department for Business, Energy and Industrial Strategy",The Coal Authority,27/08/2021,Subsidence - Contractor Costs,PS&S - General Claims,Mar Scaffolding Scotland Ltd,113887,507.80,
"Department for Business, Energy and Industrial Strategy",The Coal Authority,30/09/2021,Subsidence - Contractor Costs,PS&S - General Claims,Mar Scaffolding Scotland Ltd,113888,502.00,
"Department for Business, Energy and Industrial Strategy",The Coal Authority,13/10/2021,Subsidence - Contractor Costs,PS&S - Thoresby,Nal Plant Limited,113919,91.17,
"Department for Business, Energy and Industrial Strategy",The Coal Authority,13/10/2021,Subsidence - Contractor Costs,PS&S - Thoresby,Nal Plant Limited,113919,53.07,
"Department for Business, Energy and Industrial Strategy",The Coal Authority,13/10/2021,Subsidence - Contractor Costs,PS&S - Thoresby,Nal Plant Limited,113919,108.00,
"Department for Business, Energy and Industrial Strategy",The Coal Authority,13/10/2021,Subsidence - Contractor Costs,PS&S - Thoresby,Nal Plant Limited,113919,120.00,
"Department for Business, Energy and Industrial Strategy",The Coal Authority,13/10/2021,Subsidence - Contractor Costs,PS&S - Thoresby,Nal Plant Limited,113919,50.00,
"Department for Business, Energy and Industrial Strategy",The Coal Authority,13/10/2021,Subsidence - Contractor Costs,PS&S - Thoresby,Nal Plant Limited,113919,45.00,
"Department for Business, Energy and Industrial Strategy",The Coal Authority,13/10/2021,Subsidence - Contractor Costs,PS&S - Thoresby,Nal Plant Limited,113919,14.08,
"Department for Business, Energy and Industrial Strategy",The Coal Authority,13/10/2021,Subsidence - Contractor Costs,PS&S - Thoresby,Nal Plant Limited,113919,8.00,
"Department for Business, Energy and Industrial Strategy",The Coal Authority,13/10/2021,Subsidence - Contractor Costs,PS&S - Thoresby,Nal Plant Limited,113919,26.55,
"Department for Business, Energy and Industrial Strategy",The Coal Authority,13/10/2021,Subsidence - Contractor Costs,PS&S - Thoresby,Nal Plant Limited,113919,75.60,
"Department for Business, Energy and Industrial Strategy",The Coal Authority,13/10/2021,Subsidence - Contractor Costs,PS&S - Thoresby,Nal Plant Limited,113919,12.42,
"Department for Business, Energy and Industrial Strategy",The Coal Authority,13/10/2021,Subsidence - Contractor Costs,PS&S - Thoresby,Nal Plant Limited,113920,182.34,
"Department for Business, Energy and Industrial Strategy",The Coal Authority,13/10/2021,Subsidence - Contractor Costs,PS&S - Thoresby,Nal Plant Limited,113920,53.07,
"Department for Business, Energy and Industrial Strategy",The Coal Authority,13/10/2021,Subsidence - Contractor Costs,PS&S - Thoresby,Nal Plant Limited,113920,162.00,
"Department for Business, Energy and Industrial Strategy",The Coal Authority,13/10/2021,Subsidence - Contractor Costs,PS&S - Thoresby,Nal Plant Limited,113920,240.00,
"Department for Business, Energy and Industrial Strategy",The Coal Authority,13/10/2021,Subsidence - Contractor Costs,PS&S - Thoresby,Nal Plant Limited,113920,50.00,
"Department for Business, Energy and Industrial Strategy",The Coal Authority,13/10/2021,Subsidence - Contractor Costs,PS&S - Thoresby,Nal Plant Limited,113920,45.00,
"Department for Business, Energy and Industrial Strategy",The Coal Authority,13/10/2021,Subsidence - Contractor Costs,PS&S - Thoresby,Nal Plant Limited,113920,107.34,
"Department for Business, Energy and Industrial Strategy",The Coal Authority,13/10/2021,Subsidence - Contractor Costs,PS&S - Thoresby,Nal Plant Limited,113920,31.68,
"Department for Business, Energy and Industrial Strategy",The Coal Authority,13/10/2021,Subsidence - Contractor Costs,PS&S - Thoresby,Nal Plant Limited,113920,12.00,
"Department for Business, Energy and Industrial Strategy",The Coal Authority,13/10/2021,Subsidence - Contractor Costs,PS&S - Thoresby,Nal Plant Limited,113920,29.50,
"Department for Business, Energy and Industrial Strategy",The Coal Authority,13/10/2021,Subsidence - Contractor Costs,PS&S - Thoresby,Nal Plant Limited,113920,75.60,
"Department for Business, Energy and Industrial Strategy",The Coal Authority,13/10/2021,Subsidence - Contractor Costs,PS&S - Thoresby,Nal Plant Limited,113920,80.00,
"Department for Business, Energy and Industrial Strategy",The Coal Authority,13/10/2021,Subsidence - Contractor Costs,PS&S - Thoresby,Nal Plant Limited,113920,22.88,
"Department for Business, Energy and Industrial Strategy",The Coal Authority,28/04/2021,Subsidence - Contractor Costs,PS&S - General Claims,Northumbrian Water Limited,113934,34.55,
"Department for Business, Energy and Industrial Strategy",The Coal Authority,18/10/2021,Subsidence - Contractor Costs,PS&S - General Claims,Compensation Payment,113950,960.00,
"Department for Business, Energy and Industrial Strategy",The Coal Authority,15/10/2021,Subsidence - Contractor Costs,PS&S - General Claims,Quicksilver,113951,90.00,
"Department for Business, Energy and Industrial Strategy",The Coal Authority,15/10/2021,Subsidence - Contractor Costs,PS&S - General Claims,Quicksilver,113951,40.00,
"Department for Business, Energy and Industrial Strategy",The Coal Authority,18/10/2021,Subsidence - Contractor Costs,PS&S - General Claims,Compensation Payment,113952,480.00,
"Department for Business, Energy and Industrial Strategy",The Coal Authority,18/10/2021,Subsidence - Contractor Costs,PS&S - General Claims,Compensation Payment,113959,480.00,
"Department for Business, Energy and Industrial Strategy",The Coal Authority,18/10/2021,Subsidence - Contractor Costs,PS&S - General Claims,Compensation Payment,113960,960.00,
"Department for Business, Energy and Industrial Strategy",The Coal Authority,18/10/2021,Subsidence - Contractor Costs,PS&S - General Claims,Compensation Payment,113961,270.00,
"Department for Business, Energy and Industrial Strategy",The Coal Authority,18/10/2021,Subsidence - Contractor Costs,PS&S - General Claims,Compensation Payment,113962,540.00,
"Department for Business, Energy and Industrial Strategy",The Coal Authority,18/10/2021,Subsidence - Contractor Costs,PS&S - General Claims,Compensation Payment,113963,480.00,
"Department for Business, Energy and Industrial Strategy",The Coal Authority,18/10/2021,Subsidence - Contractor Costs,PS&S - General Claims,Compensation Payment,113964,960.00,
"Department for Business, Energy and Industrial Strategy",The Coal Authority,18/10/2021,Subsidence - Contractor Costs,PS&S - General Claims,Compensation Payment,114007,"1,200.00",
"Department for Business, Energy and Industrial Strategy",The Coal Authority,08/10/2021,Subsidence - Contractor Costs,PS&S - Kellingley,David Wilson,114035,"1,000.00",
"Department for Business, Energy and Industrial Strategy",The Coal Authority,12/10/2021,Subsidence - Contractor Costs,PS&S - Kellingley,K W Garden Maintenance & Landscaping,114047,220.00,
"Department for Business, Energy and Industrial Strategy",The Coal Authority,12/10/2021,Subsidence - Contractor Costs,PS&S - Kellingley,K W Garden Maintenance & Landscaping,114047,220.00,
"Department for Business, Energy and Industrial Strategy",The Coal Authority,13/10/2021,Subsidence - Contractor Costs,PS&S - Thoresby,Nal Plant Limited,114155,"1,867.73",
"Department for Business, Energy and Industrial Strategy",The Coal Authority,12/10/2021,Subsidence - Contractor Costs,PS&S - General Claims,Edf Energy,114169,14.66,
"Department for Business, Energy and Industrial Strategy",The Coal Authority,04/08/2021,Subsidence - Contractor Costs,PS&S - General Claims,Christie Gillespie Consulting Engineers,114216,910.00,
"Department for Business, Energy and Industrial Strategy",The Coal Authority,18/10/2021,Subsidence - Contractor Costs,PS&S - Thoresby,Thoresby Farming,114331,737.00,
"Department for Business, Energy and Industrial Strategy",The Coal Authority,19/10/2021,Subsidence - Contractor Costs,PS&S - General Claims,Valuation Office Agency,114363,"1,000.00",
"Department for Business, Energy and Industrial Strategy",The Coal Authority,21/10/2021,Subsidence - Contractor Costs,PS&S - Thoresby,Cornerstone  Projects Ltd,114391,222.70,
"Department for Business, Energy and Industrial Strategy",The Coal Authority,21/10/2021,Subsidence - Contractor Costs,PS&S - General Claims,Cornerstone  Projects Ltd,114392,80.00,
"Department for Business, Energy and Industrial Strategy",The Coal Authority,22/10/2021,Subsidence - Contractor Costs,PS&S - General Claims,Compensation Payment,114420,"7,696.99",
"Department for Business, Energy and Industrial Strategy",The Coal Authority,25/10/2021,Subsidence - Contractor Costs,PS&S - General Claims,Compensation Payment,114421,377.35,
"Department for Business, Energy and Industrial Strategy",The Coal Authority,26/10/2021,Subsidence - Contractor Costs,PS&S - General Claims,Compensation Payment,114436,420.00,
"Department for Business, Energy and Industrial Strategy",The Coal Authority,26/10/2021,Subsidence - Contractor Costs,PS&S - General Claims,Compensation Payment,114437,210.00,
"Department for Business, Energy and Industrial Strategy",The Coal Authority,26/10/2021,Subsidence - Contractor Costs,PS&S - General Claims,Compensation Payment,114438,210.00,
"Department for Business, Energy and Industrial Strategy",The Coal Authority,26/10/2021,Subsidence - Contractor Costs,PS&S - General Claims,Compensation Payment,114439,420.00,
"Department for Business, Energy and Industrial Strategy",The Coal Authority,26/10/2021,Subsidence - Contractor Costs,PS&S - General Claims,Compensation Payment,114440,210.00,
"Department for Business, Energy and Industrial Strategy",The Coal Authority,26/10/2021,Subsidence - Contractor Costs,PS&S - General Claims,Compensation Payment,114441,300.00,
"Department for Business, Energy and Industrial Strategy",The Coal Authority,26/10/2021,Subsidence - Contractor Costs,PS&S - General Claims,Compensation Payment,114442,330.00,
"Department for Business, Energy and Industrial Strategy",The Coal Authority,26/10/2021,Subsidence - Contractor Costs,PS&S - General Claims,Compensation Payment,114443,420.00,
"Department for Business, Energy and Industrial Strategy",The Coal Authority,25/10/2021,Subsidence - Contractor Costs,PS&S - Thoresby,Cornerstone  Projects Ltd,114465,249.75,
"Department for Business, Energy and Industrial Strategy",The Coal Authority,17/10/2021,Subsidence - Contractor Costs,PS&S - Kellingley,Shell Energy,114477,81.86,
"Department for Business, Energy and Industrial Strategy",The Coal Authority,12/10/2021,Subsidence - Contractor Costs,PS&S - General Claims,Leeds City Council,114494,686.48,
"Department for Business, Energy and Industrial Strategy",The Coal Authority,26/10/2021,Subsidence - Contractor Costs,PS&S - General Claims,Nal Plant Limited,114533,336.11,
"Department for Business, Energy and Industrial Strategy",The Coal Authority,26/10/2021,Subsidence - Contractor Costs,PS&S - General Claims,Nal Plant Limited,114533,494.00,
"Department for Business, Energy and Industrial Strategy",The Coal Authority,26/10/2021,Subsidence - Contractor Costs,PS&S - General Claims,Nal Plant Limited,114533,342.00,
"Department for Business, Energy and Industrial Strategy",The Coal Authority,26/10/2021,Subsidence - Contractor Costs,PS&S - General Claims,Nal Plant Limited,114533,53.28,
"Department for Business, Energy and Industrial Strategy",The Coal Authority,26/10/2021,Subsidence - Contractor Costs,PS&S - General Claims,Nal Plant Limited,114533,25.00,
"Department for Business, Energy and Industrial Strategy",The Coal Authority,26/10/2021,Subsidence - Contractor Costs,PS&S - General Claims,Nal Plant Limited,114533,180.00,
"Department for Business, Energy and Industrial Strategy",The Coal Authority,26/10/2021,Subsidence - Contractor Costs,PS&S - General Claims,Nal Plant Limited,114533,13.32,
"Department for Business, Energy and Industrial Strategy",The Coal Authority,26/10/2021,Subsidence - Contractor Costs,PS&S - General Claims,Nal Plant Limited,114533,17.55,
"Department for Business, Energy and Industrial Strategy",The Coal Authority,26/10/2021,Subsidence - Contractor Costs,PS&S - General Claims,Nal Plant Limited,114533,125.00,
"Department for Business, Energy and Industrial Strategy",The Coal Authority,26/10/2021,Subsidence - Contractor Costs,PS&S - General Claims,Nal Plant Limited,114533,"2,617.50",
"Department for Business, Energy and Industrial Strategy",The Coal Authority,26/10/2021,Subsidence - Contractor Costs,PS&S - General Claims,Nal Plant Limited,114533,276.01,
"Department for Business, Energy and Industrial Strategy",The Coal Authority,26/10/2021,Subsidence - Contractor Costs,PS&S - General Claims,Nal Plant Limited,114534,477.63,
"Department for Business, Energy and Industrial Strategy",The Coal Authority,26/10/2021,Subsidence - Contractor Costs,PS&S - General Claims,Nal Plant Limited,114534,216.00,
"Department for Business, Energy and Industrial Strategy",The Coal Authority,26/10/2021,Subsidence - Contractor Costs,PS&S - General Claims,Nal Plant Limited,114534,312.00,
"Department for Business, Energy and Industrial Strategy",The Coal Authority,26/10/2021,Subsidence - Contractor Costs,PS&S - General Claims,Nal Plant Limited,114534,15.00,
"Department for Business, Energy and Industrial Strategy",The Coal Authority,26/10/2021,Subsidence - Contractor Costs,PS&S - General Claims,Nal Plant Limited,114534,300.00,
"Department for Business, Energy and Industrial Strategy",The Coal Authority,26/10/2021,Subsidence - Contractor Costs,PS&S - General Claims,Nal Plant Limited,114534,8.72,
"Department for Business, Energy and Industrial Strategy",The Coal Authority,26/10/2021,Subsidence - Contractor Costs,PS&S - General Claims,Nal Plant Limited,114534,70.00,
"Department for Business, Energy and Industrial Strategy",The Coal Authority,26/10/2021,Subsidence - Contractor Costs,PS&S - General Claims,Nal Plant Limited,114534,780.00,
"Department for Business, Energy and Industrial Strategy",The Coal Authority,26/10/2021,Subsidence - Contractor Costs,PS&S - General Claims,Nal Plant Limited,114534,8.00,
"Department for Business, Energy and Industrial Strategy",The Coal Authority,26/10/2021,Subsidence - Contractor Costs,PS&S - General Claims,Nal Plant Limited,114534,86.60,
"Department for Business, Energy and Industrial Strategy",The Coal Authority,26/10/2021,Subsidence - Contractor Costs,PS&S - General Claims,Nal Plant Limited,114534,8.00,
"Department for Business, Energy and Industrial Strategy",The Coal Authority,26/10/2021,Subsidence - Contractor Costs,PS&S - General Claims,WSP UK Ltd,114549,"5,307.73",
"Department for Business, Energy and Industrial Strategy",The Coal Authority,27/10/2021,Subsidence - Contractor Costs,PS&S - General Claims,Alliance Contracting Solutions Ltd,114561,333.30,
"Department for Business, Energy and Industrial Strategy",The Coal Authority,27/10/2021,Subsidence - Contractor Costs,PS&S - General Claims,Alliance Contracting Solutions Ltd,114561,100.00,
"Department for Business, Energy and Industrial Strategy",The Coal Authority,27/10/2021,Subsidence - Contractor Costs,PS&S - General Claims,Alliance Contracting Solutions Ltd,114561,224.10,
"Department for Business, Energy and Industrial Strategy",The Coal Authority,28/10/2021,Subsidence - Contractor Costs,PS&S - General Claims,Llettyshenkin Cons Co Ltd,114647,336.00,
"Department for Business, Energy and Industrial Strategy",The Coal Authority,28/10/2021,Subsidence - Contractor Costs,PS&S - General Claims,Llettyshenkin Cons Co Ltd,114647,360.00,
"Department for Business, Energy and Industrial Strategy",The Coal Authority,28/10/2021,Subsidence - Contractor Costs,PS&S - General Claims,Llettyshenkin Cons Co Ltd,114647,"7,890.00",
"Department for Business, Energy and Industrial Strategy",The Coal Authority,28/10/2021,Subsidence - Contractor Costs,PS&S - General Claims,Llettyshenkin Cons Co Ltd,114647,108.00,
"Department for Business, Energy and Industrial Strategy",The Coal Authority,28/10/2021,Subsidence - Contractor Costs,PS&S - General Claims,Llettyshenkin Cons Co Ltd,114647,200.00,
"Department for Business, Energy and Industrial Strategy",The Coal Authority,28/10/2021,Subsidence - Contractor Costs,PS&S - General Claims,Llettyshenkin Cons Co Ltd,114647,180.00,
"Department for Business, Energy and Industrial Strategy",The Coal Authority,28/10/2021,Subsidence - Contractor Costs,PS&S - General Claims,Llettyshenkin Cons Co Ltd,114647,48.80,
"Department for Business, Energy and Industrial Strategy",The Coal Authority,27/10/2021,Subsidence - Contractor Costs,PS&S - General Claims,AMC Removals UK Ltd,114673,236.82,
"Department for Business, Energy and Industrial Strategy",The Coal Authority,30/06/2021,Subsidence Pumping - Management Fees,ENV - Mine Water Operations,Ouse&Derwnt Intern Drainge Brd,113994,"1,563.26",
"Department for Business, Energy and Industrial Strategy",The Coal Authority,30/06/2021,Subsidence Pumping - Management Fees,ENV - Mine Water Operations,Ouse&Derwnt Intern Drainge Brd,113999,182.35,
"Department for Business, Energy and Industrial Strategy",The Coal Authority,30/09/2021,Subsidence Pumping - Management Fees,ENV - Mine Water Operations,Ouse&Derwnt Intern Drainge Brd,114177,433.55,
"Department for Business, Energy and Industrial Strategy",The Coal Authority,30/09/2021,Subsidence Pumping - Management Fees,ENV - Mine Water Operations,Ouse&Derwnt Intern Drainge Brd,114178,57.14,
"Department for Business, Energy and Industrial Strategy",The Coal Authority,30/09/2021,Subsidence Pumping - Management Fees,ENV - Mine Water Operations,Ouse&Derwnt Intern Drainge Brd,114179,20.35,
"Department for Business, Energy and Industrial Strategy",The Coal Authority,30/09/2021,Subsidence Pumping - Management Fees,ENV - Mine Water Operations,Ouse&Derwnt Intern Drainge Brd,114185,147.17,
"Department for Business, Energy and Industrial Strategy",The Coal Authority,30/09/2021,Subsidence Pumping - Management Fees,ENV - Mine Water Operations,Ouse&Derwnt Intern Drainge Brd,114186,234.10,
"Department for Business, Energy and Industrial Strategy",The Coal Authority,30/09/2021,Subsidence Pumping - Management Fees,ENV - Mine Water Operations,Ouse&Derwnt Intern Drainge Brd,114203,511.95,
"Department for Business, Energy and Industrial Strategy",The Coal Authority,13/10/2021,Subsidence Pumping Maintenance - Ad Hoc,ENV - Mine Water Operations,Severn Trent Serv Ops Uk Ltd,113822,369.93,
"Department for Business, Energy and Industrial Strategy",The Coal Authority,13/10/2021,Subsidence Pumping Maintenance - Ad Hoc,ENV - Mine Water Operations,Severn Trent Serv Ops Uk Ltd,113822,"1,641.10",
"Department for Business, Energy and Industrial Strategy",The Coal Authority,30/06/2021,Subsidence Pumping Maintenance - Ad Hoc,ENV - Mine Water Operations,Ouse&Derwnt Intern Drainge Brd,113994,"4,467.80",
"Department for Business, Energy and Industrial Strategy",The Coal Authority,30/06/2021,Subsidence Pumping Maintenance - Ad Hoc,ENV - Mine Water Operations,Ouse&Derwnt Intern Drainge Brd,113999,17.38,
"Department for Business, Energy and Industrial Strategy",The Coal Authority,30/09/2021,Subsidence Pumping Maintenance - Ad Hoc,ENV - Mine Water Operations,Ouse&Derwnt Intern Drainge Brd,114178,11.50,
"Department for Business, Energy and Industrial Strategy",The Coal Authority,30/09/2021,Subsidence Pumping Maintenance - Ad Hoc,ENV - Mine Water Operations,Ouse&Derwnt Intern Drainge Brd,114179,29.73,
"Department for Business, Energy and Industrial Strategy",The Coal Authority,30/09/2021,Subsidence Pumping Maintenance - Ad Hoc,ENV - Mine Water Operations,Ouse&Derwnt Intern Drainge Brd,114185,5.50,
"Department for Business, Energy and Industrial Strategy",The Coal Authority,30/09/2021,Subsidence Pumping Maintenance - Ad Hoc,ENV - Mine Water Operations,Ouse&Derwnt Intern Drainge Brd,114186,596.20,
"Department for Business, Energy and Industrial Strategy",The Coal Authority,30/06/2021,Subsidence Pumping Maintenance - Planned,ENV - Mine Water Operations,Ouse&Derwnt Intern Drainge Brd,113994,"1,058.66",
"Department for Business, Energy and Industrial Strategy",The Coal Authority,30/06/2021,Subsidence Pumping Maintenance - Planned,ENV - Mine Water Operations,Ouse&Derwnt Intern Drainge Brd,113999,216.53,
"Department for Business, Energy and Industrial Strategy",The Coal Authority,30/09/2021,Subsidence Pumping Maintenance - Planned,ENV - Mine Water Operations,Ouse&Derwnt Intern Drainge Brd,114177,251.31,
"Department for Business, Energy and Industrial Strategy",The Coal Authority,30/09/2021,Subsidence Pumping Maintenance - Planned,ENV - Mine Water Operations,Ouse&Derwnt Intern Drainge Brd,114177,905.26,
"Department for Business, Energy and Industrial Strategy",The Coal Authority,30/09/2021,Subsidence Pumping Maintenance - Planned,ENV - Mine Water Operations,Ouse&Derwnt Intern Drainge Brd,114178,104.85,
"Department for Business, Energy and Industrial Strategy",The Coal Authority,30/09/2021,Subsidence Pumping Maintenance - Planned,ENV - Mine Water Operations,Ouse&Derwnt Intern Drainge Brd,114179,105.97,
"Department for Business, Energy and Industrial Strategy",The Coal Authority,30/09/2021,Subsidence Pumping Maintenance - Planned,ENV - Mine Water Operations,Ouse&Derwnt Intern Drainge Brd,114185,129.58,
"Department for Business, Energy and Industrial Strategy",The Coal Authority,30/09/2021,Subsidence Pumping Maintenance - Planned,ENV - Mine Water Operations,Ouse&Derwnt Intern Drainge Brd,114186,138.19,
"Department for Business, Energy and Industrial Strategy",The Coal Authority,30/09/2021,Subsidence Pumping Maintenance - Planned,ENV - Mine Water Operations,Ouse&Derwnt Intern Drainge Brd,114203,197.72,
"Department for Business, Energy and Industrial Strategy",The Coal Authority,30/09/2021,Subsidence Pumping Maintenance - Planned,ENV - Mine Water Operations,Ouse&Derwnt Intern Drainge Brd,114203,606.42,
"Department for Business, Energy and Industrial Strategy",The Coal Authority,08/10/2021,Subsidence Pumping Maintenance - Power,ENV - Mine Water Operations,RA & RL Smith Ltd,113574,585.00,
"Department for Business, Energy and Industrial Strategy",The Coal Authority,07/10/2021,Subsidence Pumping Maintenance - Power,ENV - Mine Water Operations,Edf Energy,113724,153.45,
"Department for Business, Energy and Industrial Strategy",The Coal Authority,07/10/2021,Subsidence Pumping Maintenance - Power,ENV - Mine Water Operations,Edf Energy,113724,373.02,
"Department for Business, Energy and Industrial Strategy",The Coal Authority,07/10/2021,Subsidence Pumping Maintenance - Power,ENV - Mine Water Operations,Edf Energy,113724,20.75,
"Department for Business, Energy and Industrial Strategy",The Coal Authority,07/10/2021,Subsidence Pumping Maintenance - Power,ENV - Mine Water Operations,Edf Energy,113724,566.33,
"Department for Business, Energy and Industrial Strategy",The Coal Authority,07/10/2021,Subsidence Pumping Maintenance - Power,ENV - Mine Water Operations,Edf Energy,113724,47.80,
"Department for Business, Energy and Industrial Strategy",The Coal Authority,07/10/2021,Subsidence Pumping Maintenance - Power,ENV - Mine Water Operations,Edf Energy,113724,302.31,
"Department for Business, Energy and Industrial Strategy",The Coal Authority,07/10/2021,Subsidence Pumping Maintenance - Power,ENV - Mine Water Operations,Edf Energy,113724,51.35,
"Department for Business, Energy and Industrial Strategy",The Coal Authority,07/10/2021,Subsidence Pumping Maintenance - Power,ENV - Mine Water Operations,Edf Energy,113724,112.45,
"Department for Business, Energy and Industrial Strategy",The Coal Authority,07/10/2021,Subsidence Pumping Maintenance - Power,ENV - Mine Water Operations,Edf Energy,113724,575.16,
"Department for Business, Energy and Industrial Strategy",The Coal Authority,07/10/2021,Subsidence Pumping Maintenance - Power,ENV - Mine Water Operations,Edf Energy,113724,719.28,
"Department for Business, Energy and Industrial Strategy",The Coal Authority,07/10/2021,Subsidence Pumping Maintenance - Power,ENV - Mine Water Operations,Edf Energy,113724,23.32,
"Department for Business, Energy and Industrial Strategy",The Coal Authority,07/10/2021,Subsidence Pumping Maintenance - Power,ENV - Mine Water Operations,Edf Energy,113724,313.71,
"Department for Business, Energy and Industrial Strategy",The Coal Authority,07/10/2021,Subsidence Pumping Maintenance - Power,ENV - Mine Water Operations,Edf Energy,113724,136.64,
"Department for Business, Energy and Industrial Strategy",The Coal Authority,07/10/2021,Subsidence Pumping Maintenance - Power,ENV - Mine Water Operations,Edf Energy,113724,141.73,
"Department for Business, Energy and Industrial Strategy",The Coal Authority,07/10/2021,Subsidence Pumping Maintenance - Power,ENV - Mine Water Operations,Edf Energy,113724,110.85,
"Department for Business, Energy and Industrial Strategy",The Coal Authority,07/10/2021,Subsidence Pumping Maintenance - Power,ENV - Mine Water Operations,Edf Energy,113724,48.39,
"Department for Business, Energy and Industrial Strategy",The Coal Authority,07/10/2021,Subsidence Pumping Maintenance - Power,ENV - Mine Water Operations,Edf Energy,113724,426.37,
"Department for Business, Energy and Industrial Strategy",The Coal Authority,07/10/2021,Subsidence Pumping Maintenance - Power,ENV - Mine Water Operations,Edf Energy,113724,562.79,
"Department for Business, Energy and Industrial Strategy",The Coal Authority,07/10/2021,Subsidence Pumping Maintenance - Power,ENV - Mine Water Operations,Edf Energy,113724,59.61,
"Department for Business, Energy and Industrial Strategy",The Coal Authority,07/10/2021,Subsidence Pumping Maintenance - Power,ENV - Mine Water Operations,Edf Energy,113724,205.06,
"Department for Business, Energy and Industrial Strategy",The Coal Authority,30/06/2021,Subsidence Pumping Maintenance - Power,ENV - Mine Water Operations,Ouse&Derwnt Intern Drainge Brd,113994,"4,895.30",
"Department for Business, Energy and Industrial Strategy",The Coal Authority,30/06/2021,Subsidence Pumping Maintenance - Power,ENV - Mine Water Operations,Ouse&Derwnt Intern Drainge Brd,113999,981.74,
"Department for Business, Energy and Industrial Strategy",The Coal Authority,30/09/2021,Subsidence Pumping Maintenance - Power,ENV - Mine Water Operations,Ouse&Derwnt Intern Drainge Brd,114177,"1,733.76",
"Department for Business, Energy and Industrial Strategy",The Coal Authority,30/09/2021,Subsidence Pumping Maintenance - Power,ENV - Mine Water Operations,Ouse&Derwnt Intern Drainge Brd,114178,264.62,
"Department for Business, Energy and Industrial Strategy",The Coal Authority,30/09/2021,Subsidence Pumping Maintenance - Power,ENV - Mine Water Operations,Ouse&Derwnt Intern Drainge Brd,114185,846.08,
"Department for Business, Energy and Industrial Strategy",The Coal Authority,30/09/2021,Subsidence Pumping Maintenance - Power,ENV - Mine Water Operations,Ouse&Derwnt Intern Drainge Brd,114186,392.60,
"Department for Business, Energy and Industrial Strategy",The Coal Authority,30/09/2021,Subsidence Pumping Maintenance - Power,ENV - Mine Water Operations,Ouse&Derwnt Intern Drainge Brd,114186,433.73,
"Department for Business, Energy and Industrial Strategy",The Coal Authority,30/09/2021,Subsidence Pumping Maintenance - Power,ENV - Mine Water Operations,Ouse&Derwnt Intern Drainge Brd,114203,713.70,
"Department for Business, Energy and Industrial Strategy",The Coal Authority,30/09/2021,Subsidence Pumping Maintenance - Power,ENV - Mine Water Operations,Ouse&Derwnt Intern Drainge Brd,114203,"1,895.18",
"Department for Business, Energy and Industrial Strategy",The Coal Authority,23/08/2021,Subsistence Allowances,PS&S - Industry Claims,Staff Expenses Control,112948,2.91,
"Department for Business, Energy and Industrial Strategy",The Coal Authority,08/09/2021,Subsistence Allowances,ENV - Technical,Staff Expenses Control,112948,4.50,
"Department for Business, Energy and Industrial Strategy",The Coal Authority,20/09/2021,Subsistence Allowances,Other Customers,Staff Expenses Control,112948,5.22,
"Department for Business, Energy and Industrial Strategy",The Coal Authority,20/09/2021,Subsistence Allowances,PS&S - Industry Claims,Staff Expenses Control,112948,4.20,
"Department for Business, Energy and Industrial Strategy",The Coal Authority,20/09/2021,Subsistence Allowances,PS&S - Industry Claims,Staff Expenses Control,112948,3.70,
"Department for Business, Energy and Industrial Strategy",The Coal Authority,21/09/2021,Subsistence Allowances,DEFRA Metal Mine Programme,Staff Expenses Control,112948,3.66,
"Department for Business, Energy and Industrial Strategy",The Coal Authority,21/09/2021,Subsistence Allowances,Innovation By-Product & Services Delivery,Staff Expenses Control,112948,6.60,
"Department for Business, Energy and Industrial Strategy",The Coal Authority,21/09/2021,Subsistence Allowances,Other Customers,Staff Expenses Control,112948,5.31,
"Department for Business, Energy and Industrial Strategy",The Coal Authority,21/09/2021,Subsistence Allowances,Other Customers,Staff Expenses Control,112948,23.00,
"Department for Business, Energy and Industrial Strategy",The Coal Authority,21/09/2021,Subsistence Allowances,PS&S - Industry Claims,Staff Expenses Control,112948,1.84,
"Department for Business, Energy and Industrial Strategy",The Coal Authority,22/09/2021,Subsistence Allowances,DEFRA Metal Mine Programme,Staff Expenses Control,112948,4.69,
"Department for Business, Energy and Industrial Strategy",The Coal Authority,22/09/2021,Subsistence Allowances,Other Customers,Staff Expenses Control,112948,4.83,
"Department for Business, Energy and Industrial Strategy",The Coal Authority,22/09/2021,Subsistence Allowances,Other Customers,Staff Expenses Control,112948,23.50,
"Department for Business, Energy and Industrial Strategy",The Coal Authority,23/09/2021,Subsistence Allowances,Innovation By-Product & Services Delivery,Staff Expenses Control,112948,5.00,
"Department for Business, Energy and Industrial Strategy",The Coal Authority,23/09/2021,Subsistence Allowances,PS&S - Industry Claims,Staff Expenses Control,112948,2.91,
"Department for Business, Energy and Industrial Strategy",The Coal Authority,28/09/2021,Subsistence Allowances,PS&S - Industry Claims,Staff Expenses Control,112948,3.89,
"Department for Business, Energy and Industrial Strategy",The Coal Authority,29/09/2021,Subsistence Allowances,PS&S - Industry Claims,Staff Expenses Control,112948,3.25,
"Department for Business, Energy and Industrial Strategy",The Coal Authority,15/09/2021,Subsistence Allowances,Engineering,Staff Expenses Control,113393,7.58,
"Department for Business, Energy and Industrial Strategy",The Coal Authority,16/09/2021,Subsistence Allowances,Engineering,Staff Expenses Control,113393,4.61,
"Department for Business, Energy and Industrial Strategy",The Coal Authority,21/09/2021,Subsistence Allowances,ENV - Mine Water Operations,Staff Expenses Control,113393,2.37,
"Department for Business, Energy and Industrial Strategy",The Coal Authority,21/09/2021,Subsistence Allowances,ENV - Mine Water Operations,Staff Expenses Control,113393,6.51,
"Department for Business, Energy and Industrial Strategy",The Coal Authority,21/09/2021,Subsistence Allowances,ENV - Mine Water Operations,Staff Expenses Control,113393,1.95,
"Department for Business, Energy and Industrial Strategy",The Coal Authority,21/09/2021,Subsistence Allowances,ENV - Mine Water Operations,Staff Expenses Control,113393,3.37,
"Department for Business, Energy and Industrial Strategy",The Coal Authority,22/09/2021,Subsistence Allowances,ENV - Mine Water Operations,Staff Expenses Control,113393,0.95,
"Department for Business, Energy and Industrial Strategy",The Coal Authority,22/09/2021,Subsistence Allowances,ENV - Mine Water Operations,Staff Expenses Control,113393,4.41,
"Department for Business, Energy and Industrial Strategy",The Coal Authority,22/09/2021,Subsistence Allowances,ENV - Mine Water Operations,Staff Expenses Control,113393,0.95,
"Department for Business, Energy and Industrial Strategy",The Coal Authority,22/09/2021,Subsistence Allowances,ENV - Mine Water Operations,Staff Expenses Control,113393,2.33,
"Department for Business, Energy and Industrial Strategy",The Coal Authority,22/09/2021,Subsistence Allowances,ENV - Mine Water Operations,Staff Expenses Control,113393,2.33,
"Department for Business, Energy and Industrial Strategy",The Coal Authority,27/09/2021,Subsistence Allowances,Engineering,Staff Expenses Control,113393,1.24,
"Department for Business, Energy and Industrial Strategy",The Coal Authority,29/09/2021,Subsistence Allowances,Heat & By-Product Innovation,Staff Expenses Control,113393,6.60,
"Department for Business, Energy and Industrial Strategy",The Coal Authority,30/09/2021,Subsistence Allowances,ENV - Technical,Staff Expenses Control,113393,15.80,
"Department for Business, Energy and Industrial Strategy",The Coal Authority,06/10/2021,Subsistence Allowances,Innovation By-Product & Services Delivery,Staff Expenses Control,113393,2.62,
"Department for Business, Energy and Industrial Strategy",The Coal Authority,22/09/2021,Subsistence Allowances,DEFRA LEP Funding,Staff Expenses Control,113817,6.98,
"Department for Business, Energy and Industrial Strategy",The Coal Authority,05/10/2021,Subsistence Allowances,PS&S - Industry Claims,Staff Expenses Control,113817,3.75,
"Department for Business, Energy and Industrial Strategy",The Coal Authority,05/10/2021,Subsistence Allowances,PS&S - Industry Claims,Staff Expenses Control,113817,3.74,
"Department for Business, Energy and Industrial Strategy",The Coal Authority,13/09/2021,Subsistence Allowances,ENV - Mine Water Operations,Staff Expenses Control,114289,3.12,
"Department for Business, Energy and Industrial Strategy",The Coal Authority,28/09/2021,Subsistence Allowances,ENV - Mine Water Operations,Staff Expenses Control,114289,12.14,
"Department for Business, Energy and Industrial Strategy",The Coal Authority,28/09/2021,Subsistence Allowances,ENV - Mine Water Operations,Staff Expenses Control,114289,12.14,
"Department for Business, Energy and Industrial Strategy",The Coal Authority,29/09/2021,Subsistence Allowances,ENV - Mine Water Operations,Staff Expenses Control,114289,20.47,
"Department for Business, Energy and Industrial Strategy",The Coal Authority,29/09/2021,Subsistence Allowances,ENV - Mine Water Operations,Staff Expenses Control,114289,20.48,
"Department for Business, Energy and Industrial Strategy",The Coal Authority,29/09/2021,Subsistence Allowances,ENV - Projects & Delivery,Staff Expenses Control,114289,8.00,
"Department for Business, Energy and Industrial Strategy",The Coal Authority,30/09/2021,Subsistence Allowances,ENV - Mine Water Operations,Staff Expenses Control,114289,13.60,
"Department for Business, Energy and Industrial Strategy",The Coal Authority,01/10/2021,Subsistence Allowances,ENV - Mine Water Operations,Staff Expenses Control,114289,3.99,
"Department for Business, Energy and Industrial Strategy",The Coal Authority,01/10/2021,Subsistence Allowances,ENV - Mine Water Operations,Staff Expenses Control,114289,3.00,
"Department for Business, Energy and Industrial Strategy",The Coal Authority,01/10/2021,Subsistence Allowances,ENV - Mine Water Operations,Staff Expenses Control,114289,0.83,
"Department for Business, Energy and Industrial Strategy",The Coal Authority,04/10/2021,Subsistence Allowances,Heat & By-Product Innovation,Staff Expenses Control,114289,10.00,
"Department for Business, Energy and Industrial Strategy",The Coal Authority,05/10/2021,Subsistence Allowances,Heat & By-Product Innovation,Staff Expenses Control,114289,6.93,
"Department for Business, Energy and Industrial Strategy",The Coal Authority,05/10/2021,Subsistence Allowances,Heat & By-Product Innovation,Staff Expenses Control,114289,6.93,
"Department for Business, Energy and Industrial Strategy",The Coal Authority,05/10/2021,Subsistence Allowances,Heat & By-Product Innovation,Staff Expenses Control,114289,6.93,
"Department for Business, Energy and Industrial Strategy",The Coal Authority,05/10/2021,Subsistence Allowances,Heat & By-Product Innovation,Staff Expenses Control,114289,6.93,
"Department for Business, Energy and Industrial Strategy",The Coal Authority,14/10/2021,Subsistence Allowances,Innovation By-Product & Services Delivery,Staff Expenses Control,114289,9.53,
"Department for Business, Energy and Industrial Strategy",The Coal Authority,14/10/2021,Subsistence Allowances,Innovation By-Product & Services Delivery,Staff Expenses Control,114289,9.53,
"Department for Business, Energy and Industrial Strategy",The Coal Authority,14/10/2021,Subsistence Allowances,Innovation By-Product & Services Delivery,Staff Expenses Control,114289,9.53,
"Department for Business, Energy and Industrial Strategy",The Coal Authority,20/10/2021,Subsistence Allowances,DEV - Management,Staff Expenses Control,114289,4.89,
"Department for Business, Energy and Industrial Strategy",The Coal Authority,21/10/2021,Subsistence Allowances,DEV - Management,Staff Expenses Control,114289,3.64,
"Department for Business, Energy and Industrial Strategy",The Coal Authority,21/10/2021,Subsistence Allowances,DEV - Management,Staff Expenses Control,114289,7.19,
"Department for Business, Energy and Industrial Strategy",The Coal Authority,11/08/2021,Subsistence Allowances,DEV - Property Management,Government Procurement Card,114629,5.17,
"Department for Business, Energy and Industrial Strategy",The Coal Authority,02/09/2021,Subsistence Allowances,Legal & Governance,Government Procurement Card,114630,19.22,
"Department for Business, Energy and Industrial Strategy",The Coal Authority,02/09/2021,Subsistence Allowances,Tips Response,Government Procurement Card,114630,19.23,
"Department for Business, Energy and Industrial Strategy",The Coal Authority,03/09/2021,Subsistence Allowances,ENV - Projects & Delivery,Government Procurement Card,114630,4.95,
"Department for Business, Energy and Industrial Strategy",The Coal Authority,03/09/2021,Subsistence Allowances,ENV - Projects & Delivery,Government Procurement Card,114630,3.35,
"Department for Business, Energy and Industrial Strategy",The Coal Authority,03/09/2021,Subsistence Allowances,ENV - Projects & Delivery,Government Procurement Card,114630,4.95,
"Department for Business, Energy and Industrial Strategy",The Coal Authority,03/09/2021,Subsistence Allowances,ENV - Projects & Delivery,Government Procurement Card,114630,3.35,
"Department for Business, Energy and Industrial Strategy",The Coal Authority,03/09/2021,Subsistence Allowances,ENV - Projects & Delivery,Government Procurement Card,114630,3.46,
"Department for Business, Energy and Industrial Strategy",The Coal Authority,06/09/2021,Subsistence Allowances,DEV - Property Management,Government Procurement Card,114630,4.57,
"Department for Business, Energy and Industrial Strategy",The Coal Authority,06/09/2021,Subsistence Allowances,ENV - Mine Water Operations,Government Procurement Card,114630,13.73,
"Department for Business, Energy and Industrial Strategy",The Coal Authority,06/09/2021,Subsistence Allowances,PS&S - Industry Claims,Government Procurement Card,114630,11.43,
"Department for Business, Energy and Industrial Strategy",The Coal Authority,07/09/2021,Subsistence Allowances,Innovation By-Product & Services Delivery,Government Procurement Card,114630,2.00,
"Department for Business, Energy and Industrial Strategy",The Coal Authority,07/09/2021,Subsistence Allowances,Innovation By-Product & Services Delivery,Government Procurement Card,114630,19.15,
"Department for Business, Energy and Industrial Strategy",The Coal Authority,07/09/2021,Subsistence Allowances,Innovation By-Product & Services Delivery,Government Procurement Card,114630,3.50,
"Department for Business, Energy and Industrial Strategy",The Coal Authority,07/09/2021,Subsistence Allowances,PS&S - General Claims,Government Procurement Card,114630,3.00,
"Department for Business, Energy and Industrial Strategy",The Coal Authority,07/09/2021,Subsistence Allowances,PS&S - General Claims,Government Procurement Card,114630,3.06,
"Department for Business, Energy and Industrial Strategy",The Coal Authority,07/09/2021,Subsistence Allowances,PS&S - General Claims,Government Procurement Card,114630,17.35,
"Department for Business, Energy and Industrial Strategy",The Coal Authority,07/09/2021,Subsistence Allowances,PS&S - General Claims,Government Procurement Card,114630,3.08,
"Department for Business, Energy and Industrial Strategy",The Coal Authority,07/09/2021,Subsistence Allowances,PS&S - General Claims,Government Procurement Card,114630,17.34,
"Department for Business, Energy and Industrial Strategy",The Coal Authority,07/09/2021,Subsistence Allowances,PS&S - General Claims,Government Procurement Card,114630,3.00,
"Department for Business, Energy and Industrial Strategy",The Coal Authority,07/09/2021,Subsistence Allowances,PS&S - General Claims,Government Procurement Card,114630,6.79,
"Department for Business, Energy and Industrial Strategy",The Coal Authority,07/09/2021,Subsistence Allowances,PS&S - General Claims,Government Procurement Card,114630,7.60,
"Department for Business, Energy and Industrial Strategy",The Coal Authority,07/09/2021,Subsistence Allowances,PS&S - Industry Claims,Government Procurement Card,114630,8.00,
"Department for Business, Energy and Industrial Strategy",The Coal Authority,07/09/2021,Subsistence Allowances,PS&S - Industry Claims,Government Procurement Card,114630,11.43,
"Department for Business, Energy and Industrial Strategy",The Coal Authority,08/09/2021,Subsistence Allowances,DEV - Permissions,Government Procurement Card,114630,5.00,
"Department for Business, Energy and Industrial Strategy",The Coal Authority,08/09/2021,Subsistence Allowances,Engineering,Government Procurement Card,114630,9.10,
"Department for Business, Energy and Industrial Strategy",The Coal Authority,08/09/2021,Subsistence Allowances,"Health, Safety & Wellbeing",Government Procurement Card,114630,4.35,
"Department for Business, Energy and Industrial Strategy",The Coal Authority,08/09/2021,Subsistence Allowances,Innovation By-Product & Services Delivery,Government Procurement Card,114630,4.53,
